NUMERO_MANDATO;RIGA_MANDATO;QUIET;IMPORTO_RIGA;IMPORTO_MANDATO;BENEFICIARIO;CIG;TITOLO_PAGAMENTO;DATA_MANDATO;CAPITOLO;ARTICOLO;NUMERO_IMPEGNO;TITOLO;DESCR_TITOLO;LIVELLO_II;DESCR_LIVELLO_II;LIVELLO_III;DESCR_LIVELLO_III;LIVELLO_IV;DESCR_LIVELLO_IV;LIVELLO_V;DESCR_LIVELLO_V;DATA_PAG_EFF
501;1;0;201,48;201,48;MINISTERO INTERNO; ;COMUNE DI LAERRU CORRISPETTIVO PER RILASCIO N.12 C.I. ELETTRONICHE PERIODO 31/05/2018 AL 30/06/2018;05/07/2018;1039;0;92;1;Spese correnti;3;Acquisto di beni e servizi;2;Acquisto di servizi;16;Servizi amministrativi;999;Altre spese per servizi amministrativi;05/07/2018
502;1;0;258,24;258,24;RUGGIU ANTINCENDIO E SICUREZZA; ;liquidazione;06/07/2018;1036;0;0;1;Spese correnti;3;Acquisto di beni e servizi;2;Acquisto di servizi;9;Manutenzione ordinaria e riparazioni;5;Manutenzione ordinaria e riparazioni di attrezzature;06/07/2018
503;1;0;349,76;349,76;RUGGIU ANTINCENDIO E SICUREZZA; ;FATTURA;06/07/2018;1043;9;0;1;Spese correnti;3;Acquisto di beni e servizi;2;Acquisto di servizi;9;Manutenzione ordinaria e riparazioni;4;Manutenzione ordinaria e riparazioni di impianti e macchinari;06/07/2018
504;1;0;375;375;OMESSO NOMINATIVO NEL RISPETTO DELLA NORMATIVA SULLA PROTEZIONE DATI PERSONALI; ;L.162/98 GIUGNO 2018;06/07/2018;1927;3;87;1;Spese correnti;4;Trasferimenti correnti;2;Trasferimenti correnti a Famiglie;2;Interventi assistenziali;999;Altri assegni e sussidi assistenziali;06/07/2018
505;1;0;122,84;322,62;OMESSO NOMINATIVO NEL RISPETTO DELLA NORMATIVA SULLA PROTEZIONE DATI PERSONALI; ;L.162/98 GIUGNO;06/07/2018;1927;3;87;1;Spese correnti;4;Trasferimenti correnti;2;Trasferimenti correnti a Famiglie;2;Interventi assistenziali;999;Altri assegni e sussidi assistenziali;06/07/2018
505;2;0;98,5;322,62;OMESSO NOMINATIVO NEL RISPETTO DELLA NORMATIVA SULLA PROTEZIONE DATI PERSONALI; ;L.162/98 GIUGNO;06/07/2018;1927;3;87;1;Spese correnti;4;Trasferimenti correnti;2;Trasferimenti correnti a Famiglie;2;Interventi assistenziali;999;Altri assegni e sussidi assistenziali;06/07/2018
505;3;0;101,28;322,62;OMESSO NOMINATIVO NEL RISPETTO DELLA NORMATIVA SULLA PROTEZIONE DATI PERSONALI; ;L.162/98 GIUGNO;06/07/2018;1927;3;87;1;Spese correnti;4;Trasferimenti correnti;2;Trasferimenti correnti a Famiglie;2;Interventi assistenziali;999;Altri assegni e sussidi assistenziali;06/07/2018
506;1;0;1.626,67;1.626,67;CHESSA ALESSANDRO;Z9A1CFA2F9;SALDO Fatt.n. FATTPA 71_18  del 01/07/2018 vs. dare per manutenzione ordinaria impianto di illuminazione pubblica ed impianti elettrici immobili comunali GIUGNO 2018;06/07/2018;1939;0;34;1;Spese correnti;3;Acquisto di beni e servizi;2;Acquisto di servizi;9;Manutenzione ordinaria e riparazioni;8;Manutenzione ordinaria e riparazioni di beni immobili;06/07/2018
507;1;0;7.273,08;7.273,08;DENEGRI PAOLO;Z8F1EFB75B;ACCONTO Fatt.n. PA3/2018  del 03/07/2018;06/07/2018;3200;0;229;2;Spese in conto capitale;2;Investimenti fissi lordi e acquisto di terreni;1;Beni materiali;9;Beni immobili;16;Impianti sportivi;06/07/2018
508;1;0;290,92;290,92;DENEGRI PAOLO;Z8F1EFB75B;SALDO Fatt.n. PA3/2018  del 03/07/2018;06/07/2018;3200;0;229;2;Spese in conto capitale;2;Investimenti fissi lordi e acquisto di terreni;1;Beni materiali;9;Beni immobili;16;Impianti sportivi;06/07/2018
509;1;0;1.829,49;1.829,49;OMESSO NOMINATIVO NEL RISPETTO DELLA NORMATIVA SULLA PROTEZIONE DATI PERSONALI;Z791CFA3E2;SALDO Fatt.n. 3/2018/PA  del 04/07/2018;06/07/2018;1699;0;76;1;Spese correnti;3;Acquisto di beni e servizi;2;Acquisto di servizi;9;Manutenzione ordinaria e riparazioni;8;Manutenzione ordinaria e riparazioni di beni immobili;06/07/2018
510;1;0;166,4;166,4;OMESSO NOMINATIVO NEL RISPETTO DELLA NORMATIVA SULLA PROTEZIONE DATI PERSONALI; ;L.162/98 GIUGNO;06/07/2018;1927;3;87;1;Spese correnti;4;Trasferimenti correnti;2;Trasferimenti correnti a Famiglie;2;Interventi assistenziali;999;Altri assegni e sussidi assistenziali;06/07/2018
511;1;0;516,99;1.107,21;; ;l.r. 20/97 SECONDO TRIMESTRE;09/07/2018;1906;0;54;1;Spese correnti;4;Trasferimenti correnti;2;Trasferimenti correnti a Famiglie;2;Interventi assistenziali;999;Altri assegni e sussidi assistenziali;09/07/2018
511;2;0;590,22;1.107,21;; ;l.r. 20/97 SECONDO TRIMESTRE;09/07/2018;1906;0;54;1;Spese correnti;4;Trasferimenti correnti;2;Trasferimenti correnti a Famiglie;2;Interventi assistenziali;999;Altri assegni e sussidi assistenziali;09/07/2018
512;1;0;516,99;1.303,89;; ;l.r. 20/97 SECONDO TRIMESTRE;09/07/2018;1906;0;54;1;Spese correnti;4;Trasferimenti correnti;2;Trasferimenti correnti a Famiglie;2;Interventi assistenziali;999;Altri assegni e sussidi assistenziali;09/07/2018
512;2;0;269,91;1.303,89;; ;l.r. 20/97 SECONDO TRIMESTRE;09/07/2018;1906;0;54;1;Spese correnti;4;Trasferimenti correnti;2;Trasferimenti correnti a Famiglie;2;Interventi assistenziali;999;Altri assegni e sussidi assistenziali;09/07/2018
512;3;0;516,99;1.303,89;; ;l.r. 20/97 SECONDO TRIMESTRE;09/07/2018;1906;0;54;1;Spese correnti;4;Trasferimenti correnti;2;Trasferimenti correnti a Famiglie;2;Interventi assistenziali;999;Altri assegni e sussidi assistenziali;09/07/2018
513;1;0;550,56;1.067,55;; ;l.r. 20/97 SECONDO TRIMESTRE;09/07/2018;1906;0;54;1;Spese correnti;4;Trasferimenti correnti;2;Trasferimenti correnti a Famiglie;2;Interventi assistenziali;999;Altri assegni e sussidi assistenziali;09/07/2018
513;2;0;516,99;1.067,55;; ;l.r. 20/97 SECONDO TRIMESTRE;09/07/2018;1906;0;54;1;Spese correnti;4;Trasferimenti correnti;2;Trasferimenti correnti a Famiglie;2;Interventi assistenziali;999;Altri assegni e sussidi assistenziali;09/07/2018
514;1;0;356,86;356,86;; ;l.r. 20/97 SECONDO TRIMESTRE;09/07/2018;1906;0;54;1;Spese correnti;4;Trasferimenti correnti;2;Trasferimenti correnti a Famiglie;2;Interventi assistenziali;999;Altri assegni e sussidi assistenziali;09/07/2018
515;1;0;1.112,00;1.628,99;; ;legge 8/99;09/07/2018;1906;0;93;1;Spese correnti;4;Trasferimenti correnti;2;Trasferimenti correnti a Famiglie;2;Interventi assistenziali;999;Altri assegni e sussidi assistenziali;09/07/2018
515;2;0;516,99;1.628,99;; ;legge 8/99;09/07/2018;1906;0;93;1;Spese correnti;4;Trasferimenti correnti;2;Trasferimenti correnti a Famiglie;2;Interventi assistenziali;999;Altri assegni e sussidi assistenziali;09/07/2018
516;1;0;12.124,27;12.124,27;IMPRESA TEDDE QUINTO; ;ACCONTO Fatt.n. FATTPA 2_18  del 19/06/2018;09/07/2018;3324;1;175;2;Spese in conto capitale;2;Investimenti fissi lordi e acquisto di terreni;1;Beni materiali;9;Beni immobili;1;Fabbricati ad uso abitativo;09/07/2018
517;1;0;500,6;500,6;IMPRESA TEDDE QUINTO;5344003AC6;ACCONTO Fatt.n. FATTPA 2_18  del 19/06/2018;09/07/2018;3324;0;151;2;Spese in conto capitale;2;Investimenti fissi lordi e acquisto di terreni;1;Beni materiali;9;Beni immobili;1;Fabbricati ad uso abitativo;09/07/2018
518;1;0;4.098,43;4.098,43;IMPRESA TEDDE QUINTO;5,23E+13;SALDO Fatt.n. FATTPA 2_18  del 19/06/2018;09/07/2018;3324;0;248;2;Spese in conto capitale;2;Investimenti fissi lordi e acquisto di terreni;1;Beni materiali;9;Beni immobili;1;Fabbricati ad uso abitativo;09/07/2018
519;1;0;1.253,20;1.253,20;DITTA GASPARI;Z3D242D6EB;SALDO Fatt.n. 11403  del 30/06/2018;09/07/2018;1043;3;90;1;Spese correnti;3;Acquisto di beni e servizi;2;Acquisto di servizi;4;Acquisto di servizi per formazione e addestramento del personale dell'ente;999;Acquisto di servizi per altre spese per formazione e addestramento n.a.c.;09/07/2018
520;1;0;1.481,58;1.481,58;PERSONALE DIVERSO (Confr.Allegato); ;STIPENDI MESE DI: LUGLIO 18;13/07/2018;1001;0;0;1;Spese correnti;3;Acquisto di beni e servizi;2;Acquisto di servizi;1;Organi e incarichi istituzionali dell'amministrazione;1;Organi istituzionali dell'amministrazione - Indennità;13/07/2018
521;1;0;125,94;125,94;TESORERIA PROVINCIALE DELLO STATO; ;VERS. IMPOSTE MESE: LUGLIO 18 PER I.R.A.P.;13/07/2018;1001;0;0;1;Spese correnti;3;Acquisto di beni e servizi;2;Acquisto di servizi;1;Organi e incarichi istituzionali dell'amministrazione;1;Organi istituzionali dell'amministrazione - Indennità;13/07/2018
550;1;0;1.000,00;1.000,00;GRUPPO SPORTIVO ANGLONA LAERRU; ;contributo per organizzazione festa patronale;16/07/2018;1508;0;94;1;Spese correnti;4;Trasferimenti correnti;4;Trasferimenti correnti a Istituzioni Sociali Private;1;Trasferimenti correnti a Istituzioni Sociali Private;1;Trasferimenti correnti a Istituzioni Sociali Private;16/07/2018
551;1;0;2.686,77;2.686,77;HALLEY SARDEGNA SRL;ZA321A72EF;SALDO Fatt.n. 0000842  del 09/07/2018;16/07/2018;1042;0;5;1;Spese correnti;3;Acquisto di beni e servizi;2;Acquisto di servizi;9;Manutenzione ordinaria e riparazioni;6;Manutenzione ordinaria e riparazioni di macchine per ufficio;16/07/2018
552;1;0;2.778,30;2.778,30;AIRONE COOPERATIVA SOCIALE DI ASSISTENZA ONLUS;ZEE2338B92;SALDO Fatt.n. 157  del 11/07/2018 Fattura Cliente;16/07/2018;1899;1;67;1;Spese correnti;3;Acquisto di beni e servizi;2;Acquisto di servizi;11;Prestazioni professionali e specialistiche;999;Altre prestazioni professionali e specialistiche n.a.c.;16/07/2018
553;1;0;593,8;593,8;BOSINCO LUIGI;Z341F3FOCC;SALDO Fatt.n. FATTPA 18_18  del 01/07/2018;16/07/2018;1401;5;2;1;Spese correnti;3;Acquisto di beni e servizi;2;Acquisto di servizi;15;Contratti di servizio pubblico;2;Contratti di servizio di trasporto scolastico;16/07/2018
554;1;0;2.718,00;2.718,00;A.I.A.S.; ;CONTRIBUZIONE PER UN UTENTE INSERITO IN STRUTTURA FATT.N. 1037/A MESE GIUGNO;16/07/2018;1934;0;78;1;Spese correnti;4;Trasferimenti correnti;4;Trasferimenti correnti a Istituzioni Sociali Private;1;Trasferimenti correnti a Istituzioni Sociali Private;1;Trasferimenti correnti a Istituzioni Sociali Private;16/07/2018
555;1;0;304,17;1.379,91;OMESSO NOMINATIVO NEL RISPETTO DELLA NORMATIVA SULLA PROTEZIONE DATI PERSONALI; ;L.R. 162/98 MESE GIUGNO;16/07/2018;1927;3;87;1;Spese correnti;4;Trasferimenti correnti;2;Trasferimenti correnti a Famiglie;2;Interventi assistenziali;999;Altri assegni e sussidi assistenziali;16/07/2018
555;2;0;353,63;1.379,91;OMESSO NOMINATIVO NEL RISPETTO DELLA NORMATIVA SULLA PROTEZIONE DATI PERSONALI; ;L.R. 162/98 MESE GIUGNO;16/07/2018;1927;3;87;1;Spese correnti;4;Trasferimenti correnti;2;Trasferimenti correnti a Famiglie;2;Interventi assistenziali;999;Altri assegni e sussidi assistenziali;16/07/2018
555;3;0;375;1.379,91;OMESSO NOMINATIVO NEL RISPETTO DELLA NORMATIVA SULLA PROTEZIONE DATI PERSONALI; ;L.R. 162/98 MESE GIUGNO;16/07/2018;1927;3;87;1;Spese correnti;4;Trasferimenti correnti;2;Trasferimenti correnti a Famiglie;2;Interventi assistenziali;999;Altri assegni e sussidi assistenziali;16/07/2018
555;4;0;180,45;1.379,91;OMESSO NOMINATIVO NEL RISPETTO DELLA NORMATIVA SULLA PROTEZIONE DATI PERSONALI; ;L.R. 162/98 MESE GIUGNO;16/07/2018;1927;3;87;1;Spese correnti;4;Trasferimenti correnti;2;Trasferimenti correnti a Famiglie;2;Interventi assistenziali;999;Altri assegni e sussidi assistenziali;16/07/2018
555;5;0;166,66;1.379,91;OMESSO NOMINATIVO NEL RISPETTO DELLA NORMATIVA SULLA PROTEZIONE DATI PERSONALI; ;L.R. 162/98 MESE GIUGNO;16/07/2018;1927;3;87;1;Spese correnti;4;Trasferimenti correnti;2;Trasferimenti correnti a Famiglie;2;Interventi assistenziali;999;Altri assegni e sussidi assistenziali;16/07/2018
556;1;0;181,83;2.140,28;OMESSO NOMINATIVO NEL RISPETTO DELLA NORMATIVA SULLA PROTEZIONE DATI PERSONALI; ;L.R. 162/98 MESE GIUGNO;17/07/2018;1927;3;87;1;Spese correnti;4;Trasferimenti correnti;2;Trasferimenti correnti a Famiglie;2;Interventi assistenziali;999;Altri assegni e sussidi assistenziali;17/07/2018
556;2;0;186,71;2.140,28;OMESSO NOMINATIVO NEL RISPETTO DELLA NORMATIVA SULLA PROTEZIONE DATI PERSONALI; ;L.R. 162/98 MESE GIUGNO;17/07/2018;1927;3;87;1;Spese correnti;4;Trasferimenti correnti;2;Trasferimenti correnti a Famiglie;2;Interventi assistenziali;999;Altri assegni e sussidi assistenziali;17/07/2018
556;3;0;634,14;2.140,28;OMESSO NOMINATIVO NEL RISPETTO DELLA NORMATIVA SULLA PROTEZIONE DATI PERSONALI; ;L.R. 162/98 MESE GIUGNO;17/07/2018;1927;3;87;1;Spese correnti;4;Trasferimenti correnti;2;Trasferimenti correnti a Famiglie;2;Interventi assistenziali;999;Altri assegni e sussidi assistenziali;17/07/2018
556;4;0;389,14;2.140,28;OMESSO NOMINATIVO NEL RISPETTO DELLA NORMATIVA SULLA PROTEZIONE DATI PERSONALI; ;L.R. 162/98 MESE GIUGNO;17/07/2018;1927;3;87;1;Spese correnti;4;Trasferimenti correnti;2;Trasferimenti correnti a Famiglie;2;Interventi assistenziali;999;Altri assegni e sussidi assistenziali;17/07/2018
556;5;0;748,46;2.140,28;OMESSO NOMINATIVO NEL RISPETTO DELLA NORMATIVA SULLA PROTEZIONE DATI PERSONALI; ;L.R. 162/98 MESE GIUGNO;17/07/2018;1927;3;87;1;Spese correnti;4;Trasferimenti correnti;2;Trasferimenti correnti a Famiglie;2;Interventi assistenziali;999;Altri assegni e sussidi assistenziali;17/07/2018
557;1;0;175,67;1.210,71;OMESSO NOMINATIVO NEL RISPETTO DELLA NORMATIVA SULLA PROTEZIONE DATI PERSONALI; ;L.R. 162/98 MESE GIUGNO;17/07/2018;1927;3;87;1;Spese correnti;4;Trasferimenti correnti;2;Trasferimenti correnti a Famiglie;2;Interventi assistenziali;999;Altri assegni e sussidi assistenziali;17/07/2018
557;2;0;117,5;1.210,71;OMESSO NOMINATIVO NEL RISPETTO DELLA NORMATIVA SULLA PROTEZIONE DATI PERSONALI; ;L.R. 162/98 MESE GIUGNO;17/07/2018;1927;3;87;1;Spese correnti;4;Trasferimenti correnti;2;Trasferimenti correnti a Famiglie;2;Interventi assistenziali;999;Altri assegni e sussidi assistenziali;17/07/2018
557;3;0;207,41;1.210,71;OMESSO NOMINATIVO NEL RISPETTO DELLA NORMATIVA SULLA PROTEZIONE DATI PERSONALI; ;L.R. 162/98 MESE GIUGNO;17/07/2018;1927;3;87;1;Spese correnti;4;Trasferimenti correnti;2;Trasferimenti correnti a Famiglie;2;Interventi assistenziali;999;Altri assegni e sussidi assistenziali;17/07/2018
557;4;0;188,49;1.210,71;OMESSO NOMINATIVO NEL RISPETTO DELLA NORMATIVA SULLA PROTEZIONE DATI PERSONALI; ;L.R. 162/98 MESE GIUGNO;17/07/2018;1927;3;87;1;Spese correnti;4;Trasferimenti correnti;2;Trasferimenti correnti a Famiglie;2;Interventi assistenziali;999;Altri assegni e sussidi assistenziali;17/07/2018
557;5;0;336,52;1.210,71;OMESSO NOMINATIVO NEL RISPETTO DELLA NORMATIVA SULLA PROTEZIONE DATI PERSONALI; ;L.R. 162/98 MESE GIUGNO;17/07/2018;1927;3;87;1;Spese correnti;4;Trasferimenti correnti;2;Trasferimenti correnti a Famiglie;2;Interventi assistenziali;999;Altri assegni e sussidi assistenziali;17/07/2018
557;6;0;185,12;1.210,71;OMESSO NOMINATIVO NEL RISPETTO DELLA NORMATIVA SULLA PROTEZIONE DATI PERSONALI; ;L.R. 162/98 MESE GIUGNO;17/07/2018;1927;3;87;1;Spese correnti;4;Trasferimenti correnti;2;Trasferimenti correnti a Famiglie;2;Interventi assistenziali;999;Altri assegni e sussidi assistenziali;17/07/2018
558;1;0;200;508,58;OMESSO NOMINATIVO NEL RISPETTO DELLA NORMATIVA SULLA PROTEZIONE DATI PERSONALI; ;L.R. 162/98 MESE GIUGNO;17/07/2018;1927;3;87;1;Spese correnti;4;Trasferimenti correnti;2;Trasferimenti correnti a Famiglie;2;Interventi assistenziali;999;Altri assegni e sussidi assistenziali;17/07/2018
558;2;0;185,25;508,58;OMESSO NOMINATIVO NEL RISPETTO DELLA NORMATIVA SULLA PROTEZIONE DATI PERSONALI; ;L.R. 162/98 MESE GIUGNO;17/07/2018;1927;3;87;1;Spese correnti;4;Trasferimenti correnti;2;Trasferimenti correnti a Famiglie;2;Interventi assistenziali;999;Altri assegni e sussidi assistenziali;17/07/2018
558;3;0;123,33;508,58;OMESSO NOMINATIVO NEL RISPETTO DELLA NORMATIVA SULLA PROTEZIONE DATI PERSONALI; ;L.R. 162/98 MESE GIUGNO;17/07/2018;1927;3;87;1;Spese correnti;4;Trasferimenti correnti;2;Trasferimenti correnti a Famiglie;2;Interventi assistenziali;999;Altri assegni e sussidi assistenziali;17/07/2018
559;1;0;15.864,72;15.864,72;ADIGEST SRL;5842041CBB;SALDO Fatt.n. 138  del 30/06/2018;17/07/2018;1738;0;4;1;Spese correnti;3;Acquisto di beni e servizi;2;Acquisto di servizi;15;Contratti di servizio pubblico;4;Contratti di servizio per la raccolta rifiuti;17/07/2018
560;1;0;21,06;866,52;; ;legge 8/99;17/07/2018;1906;0;93;1;Spese correnti;4;Trasferimenti correnti;2;Trasferimenti correnti a Famiglie;2;Interventi assistenziali;999;Altri assegni e sussidi assistenziali;17/07/2018
560;2;0;310,2;866,52;; ;TRASFERIMENTI;17/07/2018;1906;0;93;1;Spese correnti;4;Trasferimenti correnti;2;Trasferimenti correnti a Famiglie;2;Interventi assistenziali;999;Altri assegni e sussidi assistenziali;17/07/2018
560;3;0;252,72;866,52;; ;legge 8/99;17/07/2018;1906;0;93;1;Spese correnti;4;Trasferimenti correnti;2;Trasferimenti correnti a Famiglie;2;Interventi assistenziali;999;Altri assegni e sussidi assistenziali;17/07/2018
560;4;0;50,52;866,52;; ;legge 8/99;17/07/2018;1906;0;93;1;Spese correnti;4;Trasferimenti correnti;2;Trasferimenti correnti a Famiglie;2;Interventi assistenziali;999;Altri assegni e sussidi assistenziali;17/07/2018
560;5;0;84,24;866,52;; ;legge 8/99;17/07/2018;1906;0;93;1;Spese correnti;4;Trasferimenti correnti;2;Trasferimenti correnti a Famiglie;2;Interventi assistenziali;999;Altri assegni e sussidi assistenziali;17/07/2018
560;6;0;147,78;866,52;; ;legge 8/99;17/07/2018;1906;0;93;1;Spese correnti;4;Trasferimenti correnti;2;Trasferimenti correnti a Famiglie;2;Interventi assistenziali;999;Altri assegni e sussidi assistenziali;17/07/2018
561;1;0;53,98;264,45;ABBANOA; ;SALDO Fatt.n. 0150020180031343600  del 28/06/2018 B/Bollettazione;17/07/2018;1386;2;96;1;Spese correnti;3;Acquisto di beni e servizi;2;Acquisto di servizi;5;Utenze e canoni;5;Acqua;17/07/2018
561;2;0;100,83;264,45;ABBANOA; ;SALDO Fatt.n. 0150020180031343700  del 28/06/2018 B/Bollettazione;17/07/2018;1386;2;96;1;Spese correnti;3;Acquisto di beni e servizi;2;Acquisto di servizi;5;Utenze e canoni;5;Acqua;17/07/2018
561;3;0;109,64;264,45;ABBANOA; ;SALDO Fatt.n. 0150020180031343800  del 28/06/2018 B/Bollettazione;17/07/2018;1386;2;96;1;Spese correnti;3;Acquisto di beni e servizi;2;Acquisto di servizi;5;Utenze e canoni;5;Acqua;17/07/2018
562;1;0;-5.217,11;4.335,23;FRAGRI' MARIO;Z8F1172F93;SALDO Fatt.n. FATTPA 4_18  del 02/07/2018;17/07/2018;3324;0;248;2;Spese in conto capitale;2;Investimenti fissi lordi e acquisto di terreni;1;Beni materiali;9;Beni immobili;1;Fabbricati ad uso abitativo;17/07/2018
562;2;0;4.335,23;4.335,23;FRAGRI' MARIO;Z8F1172F93;SALDO Fatt.n. FATTPA 5_18  del 02/07/2018;17/07/2018;3324;0;248;2;Spese in conto capitale;2;Investimenti fissi lordi e acquisto di terreni;1;Beni materiali;9;Beni immobili;1;Fabbricati ad uso abitativo;17/07/2018
562;3;0;5.217,11;4.335,23;FRAGRI' MARIO;Z8F1172F93;SALDO Fatt.n. FATTPA 3_18  del 19/06/2018;17/07/2018;3324;0;248;2;Spese in conto capitale;2;Investimenti fissi lordi e acquisto di terreni;1;Beni materiali;9;Beni immobili;1;Fabbricati ad uso abitativo;17/07/2018
563;1;0;109,65;109,65;IMPRESA TEDDE QUINTO;5,23E+13;SALDO Fatt.n. FATTPA 3_18  del 19/06/2018;18/07/2018;3324;1;73;2;Spese in conto capitale;2;Investimenti fissi lordi e acquisto di terreni;1;Beni materiali;9;Beni immobili;1;Fabbricati ad uso abitativo;18/07/2018
564;1;0;77;77;RUDAS MARINO; ;RIMBORSO TARI VERSATA IN ECCEDENZA;18/07/2018;1029;0;101;1;Spese correnti;4;Trasferimenti correnti;2;Trasferimenti correnti a Famiglie;2;Interventi assistenziali;999;Altri assegni e sussidi assistenziali;18/07/2018
565;1;0;168,48;168,48;; ;legge 8/99;25/07/2018;1906;0;93;1;Spese correnti;4;Trasferimenti correnti;2;Trasferimenti correnti a Famiglie;2;Interventi assistenziali;999;Altri assegni e sussidi assistenziali;25/07/2018
566;1;0;3.050,00;3.050,00;SGF;Z622448F51;SALDO Fatt.n. 81/PA  del 19/07/2018;25/07/2018;3009;0;97;2;Spese in conto capitale;2;Investimenti fissi lordi e acquisto di terreni;1;Beni materiali;3;Mobili e arredi;999;Mobili e arredi n.a.c.;25/07/2018
567;1;0;59,85;59,85;POSTE ITALIANE;Z2E22DE889;SALDO Fatt.n. 8718227930  del 11/07/2018 Fattura Elettronica relativa all'Identificativo Rendiconto 2098023522 b=000018871822793029;25/07/2018;1043;11;51;1;Spese correnti;3;Acquisto di beni e servizi;2;Acquisto di servizi;16;Servizi amministrativi;2;Spese postali;25/07/2018
568;1;0;349,6;349,6;OMESSO NOMINATIVO NEL RISPETTO DELLA NORMATIVA SULLA PROTEZIONE DATI PERSONALI; ;LIQUIDAZIONE COMPETENZE GIUGNO;25/07/2018;1927;3;87;1;Spese correnti;4;Trasferimenti correnti;2;Trasferimenti correnti a Famiglie;2;Interventi assistenziali;999;Altri assegni e sussidi assistenziali;25/07/2018
569;1;0;15.410,70;15.410,70;COMUNE DI OSILO; ;convenzione segreteria periodo 01/01/2018 al 30/06/2018;27/07/2018;1023;3;102;1;Spese correnti;4;Trasferimenti correnti;1;Trasferimenti correnti a Amministrazioni Pubbliche;2;Trasferimenti correnti a Amministrazioni Locali;3;Trasferimenti correnti a Comuni;27/07/2018
570;1;0;246,1;502,9;OMESSO NOMINATIVO NEL RISPETTO DELLA NORMATIVA SULLA PROTEZIONE DATI PERSONALI; ;l.162/98 maggio 2018;27/07/2018;1927;3;87;1;Spese correnti;4;Trasferimenti correnti;2;Trasferimenti correnti a Famiglie;2;Interventi assistenziali;999;Altri assegni e sussidi assistenziali;27/07/2018
570;2;0;256,8;502,9;OMESSO NOMINATIVO NEL RISPETTO DELLA NORMATIVA SULLA PROTEZIONE DATI PERSONALI; ;l.162/98 maggio 2018;27/07/2018;1927;3;87;1;Spese correnti;4;Trasferimenti correnti;2;Trasferimenti correnti a Famiglie;2;Interventi assistenziali;999;Altri assegni e sussidi assistenziali;27/07/2018
571;1;0;232,96;1.468,95;OMESSO NOMINATIVO NEL RISPETTO DELLA NORMATIVA SULLA PROTEZIONE DATI PERSONALI; ;L.162/98 GIUGNO 2018;27/07/2018;1927;3;87;1;Spese correnti;4;Trasferimenti correnti;2;Trasferimenti correnti a Famiglie;2;Interventi assistenziali;999;Altri assegni e sussidi assistenziali;27/07/2018
571;2;0;267,75;1.468,95;OMESSO NOMINATIVO NEL RISPETTO DELLA NORMATIVA SULLA PROTEZIONE DATI PERSONALI; ;L.162/98 GIUGNO 2018;27/07/2018;1927;3;87;1;Spese correnti;4;Trasferimenti correnti;2;Trasferimenti correnti a Famiglie;2;Interventi assistenziali;999;Altri assegni e sussidi assistenziali;27/07/2018
571;3;0;31,5;1.468,95;OMESSO NOMINATIVO NEL RISPETTO DELLA NORMATIVA SULLA PROTEZIONE DATI PERSONALI; ;L.162/98 GIUGNO 2018;27/07/2018;1927;3;87;1;Spese correnti;4;Trasferimenti correnti;2;Trasferimenti correnti a Famiglie;2;Interventi assistenziali;999;Altri assegni e sussidi assistenziali;27/07/2018
571;4;0;277,76;1.468,95;OMESSO NOMINATIVO NEL RISPETTO DELLA NORMATIVA SULLA PROTEZIONE DATI PERSONALI; ;L.162/98 GIUGNO 2018;27/07/2018;1927;3;87;1;Spese correnti;4;Trasferimenti correnti;2;Trasferimenti correnti a Famiglie;2;Interventi assistenziali;999;Altri assegni e sussidi assistenziali;27/07/2018
571;5;0;304,64;1.468,95;OMESSO NOMINATIVO NEL RISPETTO DELLA NORMATIVA SULLA PROTEZIONE DATI PERSONALI; ;L.162/98 GIUGNO 2018;27/07/2018;1927;3;87;1;Spese correnti;4;Trasferimenti correnti;2;Trasferimenti correnti a Famiglie;2;Interventi assistenziali;999;Altri assegni e sussidi assistenziali;27/07/2018
571;6;0;170,24;1.468,95;OMESSO NOMINATIVO NEL RISPETTO DELLA NORMATIVA SULLA PROTEZIONE DATI PERSONALI; ;L.162/98 GIUGNO 2018;27/07/2018;1927;3;87;1;Spese correnti;4;Trasferimenti correnti;2;Trasferimenti correnti a Famiglie;2;Interventi assistenziali;999;Altri assegni e sussidi assistenziali;27/07/2018
571;7;0;184,1;1.468,95;OMESSO NOMINATIVO NEL RISPETTO DELLA NORMATIVA SULLA PROTEZIONE DATI PERSONALI; ;L.162/98 GIUGNO 2018;27/07/2018;1927;3;87;1;Spese correnti;4;Trasferimenti correnti;2;Trasferimenti correnti a Famiglie;2;Interventi assistenziali;999;Altri assegni e sussidi assistenziali;27/07/2018
573;1;0;2.118,11;2.118,11;GLOBAL POWER;Z6E2234C3D;ACCONTO Fatt.n. V0/59563  del 02/05/2018 Fattura Energia Elettrica;31/07/2018;1937;1;22;1;Spese correnti;3;Acquisto di beni e servizi;2;Acquisto di servizi;5;Utenze e canoni;4;Energia elettrica;31/07/2018
574;1;0;465,98;465,98;GLOBAL POWER;Z6E2234C3D;SALDO Fatt.n. V0/59563  del 02/05/2018 Fattura Energia Elettrica;31/07/2018;1937;1;22;1;Spese correnti;3;Acquisto di beni e servizi;2;Acquisto di servizi;5;Utenze e canoni;4;Energia elettrica;31/07/2018
575;1;0;1.530,34;1.530,34;GLOBAL POWER;Z6E2234C3D;ACCONTO Fatt.n. V0/59564  del 02/05/2018 Fattura Energia Elettrica;31/07/2018;1937;1;22;1;Spese correnti;3;Acquisto di beni e servizi;2;Acquisto di servizi;5;Utenze e canoni;4;Energia elettrica;31/07/2018
576;1;0;336,67;336,67;GLOBAL POWER;Z6E2234C3D;SALDO Fatt.n. V0/59564  del 02/05/2018 Fattura Energia Elettrica;31/07/2018;1829;0;23;1;Spese correnti;3;Acquisto di beni e servizi;2;Acquisto di servizi;5;Utenze e canoni;4;Energia elettrica;31/07/2018
577;1;0;1.312,96;1.312,96;GLOBAL POWER;Z6E2234C3D;ACCONTO Fatt.n. V0/72072  del 01/06/2018 Fattura Energia Elettrica;31/07/2018;1937;1;22;1;Spese correnti;3;Acquisto di beni e servizi;2;Acquisto di servizi;5;Utenze e canoni;4;Energia elettrica;31/07/2018
578;1;0;293,25;293,25;GLOBAL POWER;Z6E2234C3D;SALDO Fatt.n. V0/72072  del 01/06/2018 Fattura Energia Elettrica;31/07/2018;1043;10;27;1;Spese correnti;3;Acquisto di beni e servizi;2;Acquisto di servizi;5;Utenze e canoni;4;Energia elettrica;31/07/2018
579;1;0;1.786,36;1.786,36;GLOBAL POWER;Z6E2234C3D;ACCONTO Fatt.n. V0/72071  del 01/06/2018 Fattura Energia Elettrica;31/07/2018;1937;1;22;1;Spese correnti;3;Acquisto di beni e servizi;2;Acquisto di servizi;5;Utenze e canoni;4;Energia elettrica;31/07/2018
580;1;0;393;393;GLOBAL POWER;Z6E2234C3D;SALDO Fatt.n. V0/72071  del 01/06/2018 Fattura Energia Elettrica;31/07/2018;1937;1;22;1;Spese correnti;3;Acquisto di beni e servizi;2;Acquisto di servizi;5;Utenze e canoni;4;Energia elettrica;31/07/2018
581;1;0;1.616,95;1.616,95;GLOBAL POWER;Z6E2234C3D;ACCONTO Fatt.n. V0/84402  del 02/07/2018 Fattura Energia Elettrica;31/07/2018;1937;1;22;1;Spese correnti;3;Acquisto di beni e servizi;2;Acquisto di servizi;5;Utenze e canoni;4;Energia elettrica;31/07/2018
582;1;0;355,73;355,73;GLOBAL POWER;Z6E2234C3D;SALDO Fatt.n. V0/84402  del 02/07/2018 Fattura Energia Elettrica;31/07/2018;1937;1;22;1;Spese correnti;3;Acquisto di beni e servizi;2;Acquisto di servizi;5;Utenze e canoni;4;Energia elettrica;31/07/2018
583;1;0;1.076,76;1.076,76;GLOBAL POWER;Z6E2234C3D;ACCONTO Fatt.n. V0/84403  del 02/07/2018 Fattura Energia Elettrica;31/07/2018;1937;1;22;1;Spese correnti;3;Acquisto di beni e servizi;2;Acquisto di servizi;5;Utenze e canoni;4;Energia elettrica;31/07/2018
584;1;0;236,89;236,89;GLOBAL POWER;Z6E2234C3D;SALDO Fatt.n. V0/84403  del 02/07/2018 Fattura Energia Elettrica;31/07/2018;1043;10;27;1;Spese correnti;3;Acquisto di beni e servizi;2;Acquisto di servizi;5;Utenze e canoni;4;Energia elettrica;31/07/2018
585;1;0;1;8;BANCO SARDEGNA; ;BOLLI;31/07/2018;1054;0;0;1;Spese correnti;3;Acquisto di beni e servizi;2;Acquisto di servizi;17;Servizi finanziari;2;Oneri per servizio di tesoreria;31/07/2018
585;2;0;1;8;BANCO SARDEGNA; ;BOLLI;31/07/2018;1054;0;0;1;Spese correnti;3;Acquisto di beni e servizi;2;Acquisto di servizi;17;Servizi finanziari;2;Oneri per servizio di tesoreria;31/07/2018
585;3;0;1;8;BANCO SARDEGNA; ;BOLLI;31/07/2018;1054;0;0;1;Spese correnti;3;Acquisto di beni e servizi;2;Acquisto di servizi;17;Servizi finanziari;2;Oneri per servizio di tesoreria;31/07/2018
585;4;0;1;8;BANCO SARDEGNA; ;BOLLI;31/07/2018;1054;0;0;1;Spese correnti;3;Acquisto di beni e servizi;2;Acquisto di servizi;17;Servizi finanziari;2;Oneri per servizio di tesoreria;31/07/2018
585;5;0;1;8;BANCO SARDEGNA; ;BOLLI;31/07/2018;1054;0;0;1;Spese correnti;3;Acquisto di beni e servizi;2;Acquisto di servizi;17;Servizi finanziari;2;Oneri per servizio di tesoreria;31/07/2018
585;6;0;1;8;BANCO SARDEGNA; ;BOLLI;31/07/2018;1054;0;0;1;Spese correnti;3;Acquisto di beni e servizi;2;Acquisto di servizi;17;Servizi finanziari;2;Oneri per servizio di tesoreria;31/07/2018
585;7;0;1;8;BANCO SARDEGNA; ;BOLLI;31/07/2018;1054;0;0;1;Spese correnti;3;Acquisto di beni e servizi;2;Acquisto di servizi;17;Servizi finanziari;2;Oneri per servizio di tesoreria;31/07/2018
585;8;0;1;8;BANCO SARDEGNA; ;BOLLI;31/07/2018;1054;0;0;1;Spese correnti;3;Acquisto di beni e servizi;2;Acquisto di servizi;17;Servizi finanziari;2;Oneri per servizio di tesoreria;31/07/2018
588;1;0;177,6;177,6;DITTA GASPARI;ZB72434A29;SALDO Fatt.n. 13115  del 31/07/2018;03/08/2018;1043;3;91;1;Spese correnti;3;Acquisto di beni e servizi;2;Acquisto di servizi;4;Acquisto di servizi per formazione e addestramento del personale dell'ente;999;Acquisto di servizi per altre spese per formazione e addestramento n.a.c.;03/08/2018
589;1;0;467,57;467,57;GBR ROSSETTO;Z38242C4E7;SALDO Fatt.n. 76519/2018/V1  del 31/07/2018;03/08/2018;1043;2;89;1;Spese correnti;3;Acquisto di beni e servizi;1;Acquisto di beni;2;Altri beni di consumo;1;Carta, cancelleria e stampati;03/08/2018
590;1;0;2,93;2,93;POSTE ITALIANE;Z2E22DE889;SALDO Fatt.n. 8718263835  del 02/08/2018 Fattura Elettronica relativa all'Identificativo Rendiconto 2098308362;03/08/2018;1043;11;51;1;Spese correnti;3;Acquisto di beni e servizi;2;Acquisto di servizi;16;Servizi amministrativi;2;Spese postali;03/08/2018
591;1;0;300;300;; ;CONTRIBUTO ECONOMICO;03/08/2018;1935;0;103;1;Spese correnti;4;Trasferimenti correnti;2;Trasferimenti correnti a Famiglie;2;Interventi assistenziali;999;Altri assegni e sussidi assistenziali;03/08/2018
592;1;0;117,5;767,77;OMESSO NOMINATIVO NEL RISPETTO DELLA NORMATIVA SULLA PROTEZIONE DATI PERSONALI; ;l.162/98 luglio;06/08/2018;1927;3;87;1;Spese correnti;4;Trasferimenti correnti;2;Trasferimenti correnti a Famiglie;2;Interventi assistenziali;999;Altri assegni e sussidi assistenziali;06/08/2018
592;2;0;108,16;767,77;OMESSO NOMINATIVO NEL RISPETTO DELLA NORMATIVA SULLA PROTEZIONE DATI PERSONALI; ;l.162/98 luglio;06/08/2018;1927;3;87;1;Spese correnti;4;Trasferimenti correnti;2;Trasferimenti correnti a Famiglie;2;Interventi assistenziali;999;Altri assegni e sussidi assistenziali;06/08/2018
592;3;0;136,74;767,77;OMESSO NOMINATIVO NEL RISPETTO DELLA NORMATIVA SULLA PROTEZIONE DATI PERSONALI; ;l.162/98 luglio;06/08/2018;1927;3;87;1;Spese correnti;4;Trasferimenti correnti;2;Trasferimenti correnti a Famiglie;2;Interventi assistenziali;999;Altri assegni e sussidi assistenziali;06/08/2018
592;4;0;250,28;767,77;OMESSO NOMINATIVO NEL RISPETTO DELLA NORMATIVA SULLA PROTEZIONE DATI PERSONALI; ;l.162/98 luglio;06/08/2018;1927;3;87;1;Spese correnti;4;Trasferimenti correnti;2;Trasferimenti correnti a Famiglie;2;Interventi assistenziali;999;Altri assegni e sussidi assistenziali;06/08/2018
592;5;0;155,09;767,77;OMESSO NOMINATIVO NEL RISPETTO DELLA NORMATIVA SULLA PROTEZIONE DATI PERSONALI; ;l.162/98 luglio;06/08/2018;1927;3;87;1;Spese correnti;4;Trasferimenti correnti;2;Trasferimenti correnti a Famiglie;2;Interventi assistenziali;999;Altri assegni e sussidi assistenziali;06/08/2018
593;1;0;126,39;908,99;OMESSO NOMINATIVO NEL RISPETTO DELLA NORMATIVA SULLA PROTEZIONE DATI PERSONALI; ;l.162/98 luglio;06/08/2018;1927;3;87;1;Spese correnti;4;Trasferimenti correnti;2;Trasferimenti correnti a Famiglie;2;Interventi assistenziali;999;Altri assegni e sussidi assistenziali;06/08/2018
593;2;0;126,23;908,99;OMESSO NOMINATIVO NEL RISPETTO DELLA NORMATIVA SULLA PROTEZIONE DATI PERSONALI; ;l.162/98 luglio;06/08/2018;1927;3;87;1;Spese correnti;4;Trasferimenti correnti;2;Trasferimenti correnti a Famiglie;2;Interventi assistenziali;999;Altri assegni e sussidi assistenziali;06/08/2018
593;3;0;431,73;908,99;OMESSO NOMINATIVO NEL RISPETTO DELLA NORMATIVA SULLA PROTEZIONE DATI PERSONALI; ;l.162/98 luglio;06/08/2018;1927;3;87;1;Spese correnti;4;Trasferimenti correnti;2;Trasferimenti correnti a Famiglie;2;Interventi assistenziali;999;Altri assegni e sussidi assistenziali;06/08/2018
593;4;0;134,43;908,99;OMESSO NOMINATIVO NEL RISPETTO DELLA NORMATIVA SULLA PROTEZIONE DATI PERSONALI; ;l.162/98 luglio;06/08/2018;1927;3;87;1;Spese correnti;4;Trasferimenti correnti;2;Trasferimenti correnti a Famiglie;2;Interventi assistenziali;999;Altri assegni e sussidi assistenziali;06/08/2018
593;5;0;90,21;908,99;OMESSO NOMINATIVO NEL RISPETTO DELLA NORMATIVA SULLA PROTEZIONE DATI PERSONALI; ;l.162/98 luglio;06/08/2018;1927;3;87;1;Spese correnti;4;Trasferimenti correnti;2;Trasferimenti correnti a Famiglie;2;Interventi assistenziali;999;Altri assegni e sussidi assistenziali;06/08/2018
594;1;0;209,04;1.868,21;OMESSO NOMINATIVO NEL RISPETTO DELLA NORMATIVA SULLA PROTEZIONE DATI PERSONALI; ;l.162/98 luglio;06/08/2018;1927;3;87;1;Spese correnti;4;Trasferimenti correnti;2;Trasferimenti correnti a Famiglie;2;Interventi assistenziali;999;Altri assegni e sussidi assistenziali;06/08/2018
594;2;0;181,83;1.868,21;OMESSO NOMINATIVO NEL RISPETTO DELLA NORMATIVA SULLA PROTEZIONE DATI PERSONALI; ;l.162/98 luglio;06/08/2018;1927;3;87;1;Spese correnti;4;Trasferimenti correnti;2;Trasferimenti correnti a Famiglie;2;Interventi assistenziali;999;Altri assegni e sussidi assistenziali;06/08/2018
594;3;0;247,96;1.868,21;OMESSO NOMINATIVO NEL RISPETTO DELLA NORMATIVA SULLA PROTEZIONE DATI PERSONALI; ;l.162/98 luglio;06/08/2018;1927;3;87;1;Spese correnti;4;Trasferimenti correnti;2;Trasferimenti correnti a Famiglie;2;Interventi assistenziali;999;Altri assegni e sussidi assistenziali;06/08/2018
594;4;0;314,26;1.868,21;OMESSO NOMINATIVO NEL RISPETTO DELLA NORMATIVA SULLA PROTEZIONE DATI PERSONALI; ;l.162/98 luglio;06/08/2018;1927;3;87;1;Spese correnti;4;Trasferimenti correnti;2;Trasferimenti correnti a Famiglie;2;Interventi assistenziali;999;Altri assegni e sussidi assistenziali;06/08/2018
594;5;0;166,66;1.868,21;OMESSO NOMINATIVO NEL RISPETTO DELLA NORMATIVA SULLA PROTEZIONE DATI PERSONALI; ;l.162/98 luglio;06/08/2018;1927;3;87;1;Spese correnti;4;Trasferimenti correnti;2;Trasferimenti correnti a Famiglie;2;Interventi assistenziali;999;Altri assegni e sussidi assistenziali;06/08/2018
594;6;0;748,46;1.868,21;OMESSO NOMINATIVO NEL RISPETTO DELLA NORMATIVA SULLA PROTEZIONE DATI PERSONALI; ;l.162/98 luglio;06/08/2018;1927;3;87;1;Spese correnti;4;Trasferimenti correnti;2;Trasferimenti correnti a Famiglie;2;Interventi assistenziali;999;Altri assegni e sussidi assistenziali;06/08/2018
595;1;0;199,44;798,55;OMESSO NOMINATIVO NEL RISPETTO DELLA NORMATIVA SULLA PROTEZIONE DATI PERSONALI; ;l.162/98 luglio;06/08/2018;1927;3;87;1;Spese correnti;4;Trasferimenti correnti;2;Trasferimenti correnti a Famiglie;2;Interventi assistenziali;999;Altri assegni e sussidi assistenziali;06/08/2018
595;2;0;312;798,55;OMESSO NOMINATIVO NEL RISPETTO DELLA NORMATIVA SULLA PROTEZIONE DATI PERSONALI; ;l.162/98 luglio;06/08/2018;1927;3;87;1;Spese correnti;4;Trasferimenti correnti;2;Trasferimenti correnti a Famiglie;2;Interventi assistenziali;999;Altri assegni e sussidi assistenziali;06/08/2018
595;3;0;287,11;798,55;OMESSO NOMINATIVO NEL RISPETTO DELLA NORMATIVA SULLA PROTEZIONE DATI PERSONALI; ;l.162/98 luglio;06/08/2018;1927;3;87;1;Spese correnti;4;Trasferimenti correnti;2;Trasferimenti correnti a Famiglie;2;Interventi assistenziali;999;Altri assegni e sussidi assistenziali;06/08/2018
596;1;0;166,4;166,4;OMESSO NOMINATIVO NEL RISPETTO DELLA NORMATIVA SULLA PROTEZIONE DATI PERSONALI; ;l.162/98 luglio;06/08/2018;1927;3;87;1;Spese correnti;4;Trasferimenti correnti;2;Trasferimenti correnti a Famiglie;2;Interventi assistenziali;999;Altri assegni e sussidi assistenziali;06/08/2018
597;1;0;-8;9.760,00;SERVIZI E PROGETTI SRL;ZF624531C4;"ACCONTO Fatt.n. 6  del 30/07/2018 Stesura e aggiornamento Piani Gestione Siti Natura 2000 - SIC ""Grotte su Coloru""";07/08/2018;3410;1;100;2;Spese in conto capitale;2;Investimenti fissi lordi e acquisto di terreni;1;Beni materiali;10;Beni immobili di valore culturale, storico ed artistico;5;Siti archeologici di valore culturale, storico ed artistico;07/08/2018
597;2;0;9.768,00;9.760,00;SERVIZI E PROGETTI SRL;zf624531c4;"SALDO Fatt.n. 6  del 30/07/2018 Stesura e aggiornamento Piani Gestione Siti Natura 2000 - SIC ""Grotte su Coloru""";07/08/2018;3410;1;100;2;Spese in conto capitale;2;Investimenti fissi lordi e acquisto di terreni;1;Beni materiali;10;Beni immobili di valore culturale, storico ed artistico;5;Siti archeologici di valore culturale, storico ed artistico;07/08/2018
598;1;0;1.829,49;1.829,49;OMESSO NOMINATIVO NEL RISPETTO DELLA NORMATIVA SULLA PROTEZIONE DATI PERSONALI;Z791CFA3E2;SALDO Fatt.n. 4/2018/PA  del 02/08/2018;07/08/2018;1699;0;76;1;Spese correnti;3;Acquisto di beni e servizi;2;Acquisto di servizi;9;Manutenzione ordinaria e riparazioni;8;Manutenzione ordinaria e riparazioni di beni immobili;07/08/2018
599;1;0;1.626,67;1.626,67;CHESSA ALESSANDRO;Z9A1CFA2F9;SALDO Fatt.n. FATTPA 77_18  del 31/07/2018 Vs. dare per manutenzione ordinaria impianti di illuminazione pubblica ed impianti elettrici immobili comunali LUGLIO 2018;07/08/2018;1939;0;34;1;Spese correnti;3;Acquisto di beni e servizi;2;Acquisto di servizi;9;Manutenzione ordinaria e riparazioni;8;Manutenzione ordinaria e riparazioni di beni immobili;07/08/2018
600;1;0;2.239,92;2.239,92;POMPEI MAURO;Z322008CF1;SALDO Fatt.n. FATTPA 8_18  del 23/07/2018 RICONVERSIONE DELL'ATTUALE CAMPO DI CALCIO IN TERRA BATTUTA DI LAERRU - REALIZZAZIONE DI N. 4 TORRI FARO Procedura amministrativa presupposta all'ottenimento dell'omologazione LND-FIGC;07/08/2018;3200;0;263;2;Spese in conto capitale;2;Investimenti fissi lordi e acquisto di terreni;1;Beni materiali;9;Beni immobili;16;Impianti sportivi;07/08/2018
601;1;0;1.070,05;2.218,46;ECOAL;5842041CBB;SALDO Fatt.n. 154  del 31/07/2018;08/08/2018;1738;0;105;1;Spese correnti;3;Acquisto di beni e servizi;2;Acquisto di servizi;15;Contratti di servizio pubblico;5;Contratti di servizio per il conferimento in discarica dei rifiuti;08/08/2018
601;2;0;1.148,41;2.218,46;ECOAL;5842041CBB;ACCONTO Fatt.n. 154  del 31/07/2018;08/08/2018;1738;0;105;1;Spese correnti;3;Acquisto di beni e servizi;2;Acquisto di servizi;15;Contratti di servizio pubblico;5;Contratti di servizio per il conferimento in discarica dei rifiuti;08/08/2018
602;1;0;2.854,11;9.552,13;ECOAL;5842041CBB;ACCONTO Fatt.n. 154  del 31/07/2018;08/08/2018;1738;0;105;1;Spese correnti;3;Acquisto di beni e servizi;2;Acquisto di servizi;15;Contratti di servizio pubblico;5;Contratti di servizio per il conferimento in discarica dei rifiuti;08/08/2018
602;2;0;3.567,37;9.552,13;ECOAL;5842041CBB;ACCONTO Fatt.n. 154  del 31/07/2018;08/08/2018;1738;0;105;1;Spese correnti;3;Acquisto di beni e servizi;2;Acquisto di servizi;15;Contratti di servizio pubblico;5;Contratti di servizio per il conferimento in discarica dei rifiuti;08/08/2018
602;3;0;3.130,65;9.552,13;ECOAL;5842041CBB;ACCONTO Fatt.n. 154  del 31/07/2018;08/08/2018;1738;0;105;1;Spese correnti;3;Acquisto di beni e servizi;2;Acquisto di servizi;15;Contratti di servizio pubblico;5;Contratti di servizio per il conferimento in discarica dei rifiuti;08/08/2018
603;1;0;1.481,58;1.481,58;PERSONALE DIVERSO (Confr.Allegato); ;STIPENDI MESE DI: AGOSTO 18;08/08/2018;1001;0;0;1;Spese correnti;3;Acquisto di beni e servizi;2;Acquisto di servizi;1;Organi e incarichi istituzionali dell'amministrazione;1;Organi istituzionali dell'amministrazione - Indennità;08/08/2018
604;1;0;125,94;125,94;TESORERIA PROVINCIALE DELLO STATO; ;VERS. IMPOSTE MESE: AGOSTO 18 PER I.R.A.P.;08/08/2018;1001;0;0;1;Spese correnti;3;Acquisto di beni e servizi;2;Acquisto di servizi;1;Organi e incarichi istituzionali dell'amministrazione;1;Organi istituzionali dell'amministrazione - Indennità;08/08/2018
633;1;0;149,65;149,65;OMESSO NOMINATIVO NEL RISPETTO DELLA NORMATIVA SULLA PROTEZIONE DATI PERSONALI; ;162/98 LUGLIO;09/08/2018;1927;3;87;1;Spese correnti;4;Trasferimenti correnti;2;Trasferimenti correnti a Famiglie;2;Interventi assistenziali;999;Altri assegni e sussidi assistenziali;09/08/2018
634;1;0;1.403,00;1.403,00;SARDEGNA VERIFICHE;Z392444E57;SALDO Fatt.n. 20  del 31/07/2018 FATTURA;09/08/2018;1099;1;99;1;Spese correnti;3;Acquisto di beni e servizi;2;Acquisto di servizi;11;Prestazioni professionali e specialistiche;999;Altre prestazioni professionali e specialistiche n.a.c.;09/08/2018
635;1;0;1.317,60;1.317,60;BRUNDU MARCELLO;ZA42498FF3;SALDO Fatt.n. 12PA  del 07/08/2018;09/08/2018;3009;0;106;2;Spese in conto capitale;2;Investimenti fissi lordi e acquisto di terreni;1;Beni materiali;3;Mobili e arredi;999;Mobili e arredi n.a.c.;09/08/2018
636;1;0;70,02;1.243,96;ABBANOA; ;SALDO Fatt.n. 0150020180031637500  del 13/07/2018 B/Bollettazione;09/08/2018;1476;3;108;1;Spese correnti;3;Acquisto di beni e servizi;1;Acquisto di beni;2;Altri beni di consumo;999;Altri beni e materiali di consumo n.a.c.;09/08/2018
636;2;0;1.173,94;1.243,96;ABBANOA; ;SALDO Fatt.n. 0150020180031637600  del 13/07/2018 B/Bollettazione;09/08/2018;1476;3;108;1;Spese correnti;3;Acquisto di beni e servizi;1;Acquisto di beni;2;Altri beni di consumo;999;Altri beni e materiali di consumo n.a.c.;09/08/2018
637;1;0;375;375;OMESSO NOMINATIVO NEL RISPETTO DELLA NORMATIVA SULLA PROTEZIONE DATI PERSONALI; ;162/98 mese di luglio;10/08/2018;1927;3;87;1;Spese correnti;4;Trasferimenti correnti;2;Trasferimenti correnti a Famiglie;2;Interventi assistenziali;999;Altri assegni e sussidi assistenziali;10/08/2018
638;1;0;375;375;OMESSO NOMINATIVO NEL RISPETTO DELLA NORMATIVA SULLA PROTEZIONE DATI PERSONALI; ;162/98 mese di luglio;10/08/2018;1927;3;87;1;Spese correnti;4;Trasferimenti correnti;2;Trasferimenti correnti a Famiglie;2;Interventi assistenziali;999;Altri assegni e sussidi assistenziali;10/08/2018
639;1;0;1.946,14;1.946,14;COMUNE DI SASSARI; ;SALDO Fatt.n. 43/12  del 08/08/2018 SCISSIONE DEI PAGAMENTI;03/09/2018;1738;0;110;1;Spese correnti;3;Acquisto di beni e servizi;2;Acquisto di servizi;15;Contratti di servizio pubblico;5;Contratti di servizio per il conferimento in discarica dei rifiuti;03/09/2018
640;1;0;35,55;261,45;TELECOM ITALIA SPA;ZD32272852;SALDO Fatt.n. 8R00168933  del 06/08/2018 5BIM 2018;03/09/2018;1043;12;36;1;Spese correnti;3;Acquisto di beni e servizi;2;Acquisto di servizi;5;Utenze e canoni;1;Telefonia fissa;03/09/2018
640;2;0;40,99;261,45;TELECOM ITALIA SPA;ZD32272852;SALDO Fatt.n. 8R00168375  del 06/08/2018 5BIM 2018;03/09/2018;1043;12;36;1;Spese correnti;3;Acquisto di beni e servizi;2;Acquisto di servizi;5;Utenze e canoni;1;Telefonia fissa;03/09/2018
640;3;0;87,69;261,45;TELECOM ITALIA SPA;ZD32272852;SALDO Fatt.n. 8R00167513  del 06/08/2018 5BIM 2018;03/09/2018;1043;12;36;1;Spese correnti;3;Acquisto di beni e servizi;2;Acquisto di servizi;5;Utenze e canoni;1;Telefonia fissa;03/09/2018
640;4;0;97,22;261,45;TELECOM ITALIA SPA;ZD32272852;SALDO Fatt.n. 8R00167532  del 06/08/2018 5BIM 2018;03/09/2018;1043;12;36;1;Spese correnti;3;Acquisto di beni e servizi;2;Acquisto di servizi;5;Utenze e canoni;1;Telefonia fissa;03/09/2018
641;1;0;98,8;98,8;TELECOM ITALIA SPA;ZD32272852;SALDO Fatt.n. 8R00167511  del 06/08/2018 5BIM 2018;03/09/2018;1476;1;37;1;Spese correnti;3;Acquisto di beni e servizi;2;Acquisto di servizi;5;Utenze e canoni;1;Telefonia fissa;03/09/2018
642;1;0;50,95;129,41;TELECOM ITALIA SPA;ZD32272852;SALDO Fatt.n. 8R00168953  del 06/08/2018 5BIM 2018;03/09/2018;1366;0;38;1;Spese correnti;3;Acquisto di beni e servizi;2;Acquisto di servizi;5;Utenze e canoni;1;Telefonia fissa;03/09/2018
642;2;0;78,46;129,41;TELECOM ITALIA SPA;ZD32272852;SALDO Fatt.n. 8R00168059  del 06/08/2018 5BIM 2018;03/09/2018;1366;0;38;1;Spese correnti;3;Acquisto di beni e servizi;2;Acquisto di servizi;5;Utenze e canoni;1;Telefonia fissa;03/09/2018
643;1;0;4.094,12;4.094,12;ECONOVA;5842041CBB;SALDO Fatt.n. 29  del 09/08/2018 FATTURA;03/09/2018;1738;0;107;1;Spese correnti;3;Acquisto di beni e servizi;2;Acquisto di servizi;15;Contratti di servizio pubblico;5;Contratti di servizio per il conferimento in discarica dei rifiuti;03/09/2018
644;1;0;1.132,57;2.413,77;IL PICCOLO PRINCIPE;Z2B14002E4;SALDO Fatt.n. 180PA /2018  del 31/07/2018 SERVIZI IN RETE CIG-Z2B14002E4 periodo GIUGNO 2018;03/09/2018;1902;0;82;1;Spese correnti;3;Acquisto di beni e servizi;2;Acquisto di servizi;15;Contratti di servizio pubblico;9;Contratti di servizio di assistenza sociale domiciliare;03/09/2018
644;2;0;1.281,20;2.413,77;IL PICCOLO PRINCIPE;Z2B14002E4;SALDO Fatt.n. 187PA /2018  del 14/08/2018 SERVIZI IN RETE CIG-Z2B14002E4 periodo LUGLIO 2018;03/09/2018;1902;0;82;1;Spese correnti;3;Acquisto di beni e servizi;2;Acquisto di servizi;15;Contratti di servizio pubblico;9;Contratti di servizio di assistenza sociale domiciliare;03/09/2018
645;1;0;2.778,30;2.778,30;AIRONE COOPERATIVA SOCIALE DI ASSISTENZA ONLUS;ZEE2338B92;SALDO Fatt.n. 196  del 09/08/2018 Fattura Cliente;03/09/2018;1899;1;67;1;Spese correnti;3;Acquisto di beni e servizi;2;Acquisto di servizi;11;Prestazioni professionali e specialistiche;999;Altre prestazioni professionali e specialistiche n.a.c.;03/09/2018
646;1;0;2.265,00;2.265,00;A.I.A.S.; ;CONTRIBUZIONE PER UN UTENTE INSERITO IN STRUTTURA LUGLIO;03/09/2018;1934;0;78;1;Spese correnti;4;Trasferimenti correnti;4;Trasferimenti correnti a Istituzioni Sociali Private;1;Trasferimenti correnti a Istituzioni Sociali Private;1;Trasferimenti correnti a Istituzioni Sociali Private;03/09/2018
647;1;0;232,96;796,39;OMESSO NOMINATIVO NEL RISPETTO DELLA NORMATIVA SULLA PROTEZIONE DATI PERSONALI; ;l.162/98;03/09/2018;1927;3;87;1;Spese correnti;4;Trasferimenti correnti;2;Trasferimenti correnti a Famiglie;2;Interventi assistenziali;999;Altri assegni e sussidi assistenziali;03/09/2018
647;2;0;267,75;796,39;OMESSO NOMINATIVO NEL RISPETTO DELLA NORMATIVA SULLA PROTEZIONE DATI PERSONALI; ;l.162/98;03/09/2018;1927;3;87;1;Spese correnti;4;Trasferimenti correnti;2;Trasferimenti correnti a Famiglie;2;Interventi assistenziali;999;Altri assegni e sussidi assistenziali;03/09/2018
647;3;0;295,68;796,39;OMESSO NOMINATIVO NEL RISPETTO DELLA NORMATIVA SULLA PROTEZIONE DATI PERSONALI; ;l.162/98;03/09/2018;1927;3;87;1;Spese correnti;4;Trasferimenti correnti;2;Trasferimenti correnti a Famiglie;2;Interventi assistenziali;999;Altri assegni e sussidi assistenziali;03/09/2018
648;1;0;149,65;149,65;OMESSO NOMINATIVO NEL RISPETTO DELLA NORMATIVA SULLA PROTEZIONE DATI PERSONALI; ;L.162/98;03/09/2018;1927;3;87;1;Spese correnti;4;Trasferimenti correnti;2;Trasferimenti correnti a Famiglie;2;Interventi assistenziali;999;Altri assegni e sussidi assistenziali;03/09/2018
649;1;0;304,64;658,98;OMESSO NOMINATIVO NEL RISPETTO DELLA NORMATIVA SULLA PROTEZIONE DATI PERSONALI; ;L.162/98;03/09/2018;1927;3;87;1;Spese correnti;4;Trasferimenti correnti;2;Trasferimenti correnti a Famiglie;2;Interventi assistenziali;999;Altri assegni e sussidi assistenziali;03/09/2018
649;2;0;170,24;658,98;OMESSO NOMINATIVO NEL RISPETTO DELLA NORMATIVA SULLA PROTEZIONE DATI PERSONALI; ;L.162/98;03/09/2018;1927;3;87;1;Spese correnti;4;Trasferimenti correnti;2;Trasferimenti correnti a Famiglie;2;Interventi assistenziali;999;Altri assegni e sussidi assistenziali;03/09/2018
649;3;0;184,1;658,98;OMESSO NOMINATIVO NEL RISPETTO DELLA NORMATIVA SULLA PROTEZIONE DATI PERSONALI; ;L.162/98;03/09/2018;1927;3;87;1;Spese correnti;4;Trasferimenti correnti;2;Trasferimenti correnti a Famiglie;2;Interventi assistenziali;999;Altri assegni e sussidi assistenziali;03/09/2018
650;1;0;300;300;ASSORGIA EFISIO; ;CONTRIBUTO ECONOMICO;03/09/2018;1935;0;104;1;Spese correnti;4;Trasferimenti correnti;2;Trasferimenti correnti a Famiglie;2;Interventi assistenziali;999;Altri assegni e sussidi assistenziali;03/09/2018
653;1;0;321;321;OMESSO NOMINATIVO NEL RISPETTO DELLA NORMATIVA SULLA PROTEZIONE DATI PERSONALI; ;L.162/98 LUGLIO;06/09/2018;1927;3;87;1;Spese correnti;4;Trasferimenti correnti;2;Trasferimenti correnti a Famiglie;2;Interventi assistenziali;999;Altri assegni e sussidi assistenziali;06/09/2018
654;1;0;10.000,00;10.000,00;COMPAGNIA BARRACELLARE; ;CAMPAGNA ANTINCENDIO 2018;10/09/2018;1324;0;111;1;Spese correnti;4;Trasferimenti correnti;4;Trasferimenti correnti a Istituzioni Sociali Private;1;Trasferimenti correnti a Istituzioni Sociali Private;1;Trasferimenti correnti a Istituzioni Sociali Private;10/09/2018
656;1;0;268,64;268,64;MINISTERO INTERNO; ;COMUNE DI LAERRU CORRISPETTIVO PER RILASCIO N.16 C.I. ELETTRONICHE PERIODO  DAL 01/07/AL 31/08/2018;10/09/2018;1039;0;113;1;Spese correnti;3;Acquisto di beni e servizi;2;Acquisto di servizi;16;Servizi amministrativi;999;Altre spese per servizi amministrativi;10/09/2018
657;1;0;117,5;117,5;OMESSO NOMINATIVO NEL RISPETTO DELLA NORMATIVA SULLA PROTEZIONE DATI PERSONALI; ;L.162/98 MESE LUGLIO;10/09/2018;1927;3;87;1;Spese correnti;4;Trasferimenti correnti;2;Trasferimenti correnti a Famiglie;2;Interventi assistenziali;999;Altri assegni e sussidi assistenziali;10/09/2018
659;1;0;209,04;1.479,44;OMESSO NOMINATIVO NEL RISPETTO DELLA NORMATIVA SULLA PROTEZIONE DATI PERSONALI; ;L.162/98 MESE LUGLIO;10/09/2018;1927;3;87;1;Spese correnti;4;Trasferimenti correnti;2;Trasferimenti correnti a Famiglie;2;Interventi assistenziali;999;Altri assegni e sussidi assistenziali;10/09/2018
659;2;0;431,73;1.479,44;OMESSO NOMINATIVO NEL RISPETTO DELLA NORMATIVA SULLA PROTEZIONE DATI PERSONALI; ;L.162/98 MESE LUGLIO;10/09/2018;1927;3;87;1;Spese correnti;4;Trasferimenti correnti;2;Trasferimenti correnti a Famiglie;2;Interventi assistenziali;999;Altri assegni e sussidi assistenziali;10/09/2018
659;3;0;748,46;1.479,44;OMESSO NOMINATIVO NEL RISPETTO DELLA NORMATIVA SULLA PROTEZIONE DATI PERSONALI; ;L.162/98 MESE LUGLIO;10/09/2018;1927;3;87;1;Spese correnti;4;Trasferimenti correnti;2;Trasferimenti correnti a Famiglie;2;Interventi assistenziali;999;Altri assegni e sussidi assistenziali;10/09/2018
659;4;0;90,21;1.479,44;OMESSO NOMINATIVO NEL RISPETTO DELLA NORMATIVA SULLA PROTEZIONE DATI PERSONALI; ;L.162/98 MESE LUGLIO;10/09/2018;1927;3;87;1;Spese correnti;4;Trasferimenti correnti;2;Trasferimenti correnti a Famiglie;2;Interventi assistenziali;999;Altri assegni e sussidi assistenziali;10/09/2018
660;1;0;181,83;1.399,89;OMESSO NOMINATIVO NEL RISPETTO DELLA NORMATIVA SULLA PROTEZIONE DATI PERSONALI; ;L.162/98 MESE LUGLIO;10/09/2018;1927;3;87;1;Spese correnti;4;Trasferimenti correnti;2;Trasferimenti correnti a Famiglie;2;Interventi assistenziali;999;Altri assegni e sussidi assistenziali;10/09/2018
660;2;0;199,44;1.399,89;OMESSO NOMINATIVO NEL RISPETTO DELLA NORMATIVA SULLA PROTEZIONE DATI PERSONALI; ;L.162/98 MESE LUGLIO;10/09/2018;1927;3;87;1;Spese correnti;4;Trasferimenti correnti;2;Trasferimenti correnti a Famiglie;2;Interventi assistenziali;999;Altri assegni e sussidi assistenziali;10/09/2018
660;3;0;250,59;1.399,89;OMESSO NOMINATIVO NEL RISPETTO DELLA NORMATIVA SULLA PROTEZIONE DATI PERSONALI; ;L.162/98 MESE LUGLIO;10/09/2018;1927;3;87;1;Spese correnti;4;Trasferimenti correnti;2;Trasferimenti correnti a Famiglie;2;Interventi assistenziali;999;Altri assegni e sussidi assistenziali;10/09/2018
660;4;0;287,11;1.399,89;OMESSO NOMINATIVO NEL RISPETTO DELLA NORMATIVA SULLA PROTEZIONE DATI PERSONALI; ;L.162/98 MESE LUGLIO;10/09/2018;1927;3;87;1;Spese correnti;4;Trasferimenti correnti;2;Trasferimenti correnti a Famiglie;2;Interventi assistenziali;999;Altri assegni e sussidi assistenziali;10/09/2018
660;5;0;314,26;1.399,89;OMESSO NOMINATIVO NEL RISPETTO DELLA NORMATIVA SULLA PROTEZIONE DATI PERSONALI; ;L.162/98 MESE LUGLIO;10/09/2018;1927;3;87;1;Spese correnti;4;Trasferimenti correnti;2;Trasferimenti correnti a Famiglie;2;Interventi assistenziali;999;Altri assegni e sussidi assistenziali;10/09/2018
660;6;0;166,66;1.399,89;OMESSO NOMINATIVO NEL RISPETTO DELLA NORMATIVA SULLA PROTEZIONE DATI PERSONALI; ;L.162/98 MESE LUGLIO;10/09/2018;1927;3;87;1;Spese correnti;4;Trasferimenti correnti;2;Trasferimenti correnti a Famiglie;2;Interventi assistenziali;999;Altri assegni e sussidi assistenziali;10/09/2018
661;1;0;166,4;1.185,16;OMESSO NOMINATIVO NEL RISPETTO DELLA NORMATIVA SULLA PROTEZIONE DATI PERSONALI; ;L.162/98 MESE LUGLIO;10/09/2018;1927;3;87;1;Spese correnti;4;Trasferimenti correnti;2;Trasferimenti correnti a Famiglie;2;Interventi assistenziali;999;Altri assegni e sussidi assistenziali;10/09/2018
661;2;0;524,3;1.185,16;OMESSO NOMINATIVO NEL RISPETTO DELLA NORMATIVA SULLA PROTEZIONE DATI PERSONALI; ;L.162/98 MESE LUGLIO;10/09/2018;1927;3;87;1;Spese correnti;4;Trasferimenti correnti;2;Trasferimenti correnti a Famiglie;2;Interventi assistenziali;999;Altri assegni e sussidi assistenziali;10/09/2018
661;3;0;172,46;1.185,16;OMESSO NOMINATIVO NEL RISPETTO DELLA NORMATIVA SULLA PROTEZIONE DATI PERSONALI; ;L.162/98 MESE AGOSTO;10/09/2018;1927;3;87;1;Spese correnti;4;Trasferimenti correnti;2;Trasferimenti correnti a Famiglie;2;Interventi assistenziali;999;Altri assegni e sussidi assistenziali;10/09/2018
661;4;0;322;1.185,16;OMESSO NOMINATIVO NEL RISPETTO DELLA NORMATIVA SULLA PROTEZIONE DATI PERSONALI; ;L.162/98 MESE LUGLIO;10/09/2018;1927;3;87;1;Spese correnti;4;Trasferimenti correnti;2;Trasferimenti correnti a Famiglie;2;Interventi assistenziali;999;Altri assegni e sussidi assistenziali;10/09/2018
662;1;0;1.626,67;1.626,67;CHESSA ALESSANDRO;Z9A1CFA2F9;SALDO Fatt.n. FATTPA 88_18  del 01/09/2018 Servizio di manutenzione ordinaria impianto di illuminazione pubblica ed impianti elettrici immobili comunali AGOSTO 2018;10/09/2018;1939;0;34;1;Spese correnti;3;Acquisto di beni e servizi;2;Acquisto di servizi;9;Manutenzione ordinaria e riparazioni;8;Manutenzione ordinaria e riparazioni di beni immobili;10/09/2018
663;1;0;15.864,72;15.864,72;ECONOVA;5842041CBB;SALDO Fatt.n. 44  del 31/08/2018 FATTURA;10/09/2018;1738;0;107;1;Spese correnti;3;Acquisto di beni e servizi;2;Acquisto di servizi;15;Contratti di servizio pubblico;5;Contratti di servizio per il conferimento in discarica dei rifiuti;10/09/2018
664;1;0;108,16;108,16;OMESSO NOMINATIVO NEL RISPETTO DELLA NORMATIVA SULLA PROTEZIONE DATI PERSONALI; ;L.162/98 MESE LUGLIO;10/09/2018;1927;3;87;1;Spese correnti;4;Trasferimenti correnti;2;Trasferimenti correnti a Famiglie;2;Interventi assistenziali;999;Altri assegni e sussidi assistenziali;10/09/2018
665;1;0;375;375;OMESSO NOMINATIVO NEL RISPETTO DELLA NORMATIVA SULLA PROTEZIONE DATI PERSONALI; ;L.162/98 MESE LUGLIO;10/09/2018;1927;3;87;1;Spese correnti;4;Trasferimenti correnti;2;Trasferimenti correnti a Famiglie;2;Interventi assistenziali;999;Altri assegni e sussidi assistenziali;10/09/2018
666;1;0;250,28;250,28;OMESSO NOMINATIVO NEL RISPETTO DELLA NORMATIVA SULLA PROTEZIONE DATI PERSONALI; ;L.162/98 MESE LUGLIO;10/09/2018;1927;3;87;1;Spese correnti;4;Trasferimenti correnti;2;Trasferimenti correnti a Famiglie;2;Interventi assistenziali;999;Altri assegni e sussidi assistenziali;10/09/2018
667;1;0;126,39;126,39;OMESSO NOMINATIVO NEL RISPETTO DELLA NORMATIVA SULLA PROTEZIONE DATI PERSONALI; ;L.162/98 MESE agosto;10/09/2018;1927;3;87;1;Spese correnti;4;Trasferimenti correnti;2;Trasferimenti correnti a Famiglie;2;Interventi assistenziali;999;Altri assegni e sussidi assistenziali;10/09/2018
668;1;0;126,23;126,23;OMESSO NOMINATIVO NEL RISPETTO DELLA NORMATIVA SULLA PROTEZIONE DATI PERSONALI; ;L.162/98 MESE LUGLIO;10/09/2018;1927;3;87;1;Spese correnti;4;Trasferimenti correnti;2;Trasferimenti correnti a Famiglie;2;Interventi assistenziali;999;Altri assegni e sussidi assistenziali;10/09/2018
669;1;0;134,43;134,43;OMESSO NOMINATIVO NEL RISPETTO DELLA NORMATIVA SULLA PROTEZIONE DATI PERSONALI; ;L.162/98 MESE LUGLIO;10/09/2018;1927;3;87;1;Spese correnti;4;Trasferimenti correnti;2;Trasferimenti correnti a Famiglie;2;Interventi assistenziali;999;Altri assegni e sussidi assistenziali;10/09/2018
670;1;0;155,09;155,09;OMESSO NOMINATIVO NEL RISPETTO DELLA NORMATIVA SULLA PROTEZIONE DATI PERSONALI; ;L.162/98 MESE LUGLIO;10/09/2018;1927;3;87;1;Spese correnti;4;Trasferimenti correnti;2;Trasferimenti correnti a Famiglie;2;Interventi assistenziali;999;Altri assegni e sussidi assistenziali;10/09/2018
671;1;0;441,58;441,58;TURRA GAVINA; ;RIMBORSO SPESE VIAGGIO GIUGNO LUGLIO AGOSTO;10/09/2018;1024;3;115;1;Spese correnti;3;Acquisto di beni e servizi;2;Acquisto di servizi;2;Organizzazione eventi, pubblicita` e servizi per trasferta;1;Rimborso per viaggio e trasloco;10/09/2018
672;1;0;2.381,40;2.381,40;AIRONE COOPERATIVA SOCIALE DI ASSISTENZA ONLUS;ZEE2338B92;SALDO Fatt.n. 230  del 12/09/2018 Fattura Cliente;14/09/2018;1899;1;67;1;Spese correnti;3;Acquisto di beni e servizi;2;Acquisto di servizi;11;Prestazioni professionali e specialistiche;999;Altre prestazioni professionali e specialistiche n.a.c.;14/09/2018
673;1;0;1.829,49;1.829,49;OMESSO NOMINATIVO NEL RISPETTO DELLA NORMATIVA SULLA PROTEZIONE DATI PERSONALI;Z791CFA3E2;SALDO Fatt.n. 7/2018/PA  del 07/09/2018;14/09/2018;1699;0;76;1;Spese correnti;3;Acquisto di beni e servizi;2;Acquisto di servizi;9;Manutenzione ordinaria e riparazioni;8;Manutenzione ordinaria e riparazioni di beni immobili;14/09/2018
674;1;0;98,5;240,67;OMESSO NOMINATIVO NEL RISPETTO DELLA NORMATIVA SULLA PROTEZIONE DATI PERSONALI; ;L.162/98 COMPETENZE AGOSTO;14/09/2018;1927;3;87;1;Spese correnti;4;Trasferimenti correnti;2;Trasferimenti correnti a Famiglie;2;Interventi assistenziali;999;Altri assegni e sussidi assistenziali;14/09/2018
674;2;0;142,17;240,67;OMESSO NOMINATIVO NEL RISPETTO DELLA NORMATIVA SULLA PROTEZIONE DATI PERSONALI; ;L.162/98 COMPETENZE AGOSTO;14/09/2018;1927;3;87;1;Spese correnti;4;Trasferimenti correnti;2;Trasferimenti correnti a Famiglie;2;Interventi assistenziali;999;Altri assegni e sussidi assistenziali;14/09/2018
675;1;0;283,5;606,06;OMESSO NOMINATIVO NEL RISPETTO DELLA NORMATIVA SULLA PROTEZIONE DATI PERSONALI; ;L.162/98 COMPETENZE AGOSTO;14/09/2018;1927;3;87;1;Spese correnti;4;Trasferimenti correnti;2;Trasferimenti correnti a Famiglie;2;Interventi assistenziali;999;Altri assegni e sussidi assistenziali;14/09/2018
675;2;0;322,56;606,06;OMESSO NOMINATIVO NEL RISPETTO DELLA NORMATIVA SULLA PROTEZIONE DATI PERSONALI; ;L.162/98 COMPETENZE AGOSTO;14/09/2018;1927;3;87;1;Spese correnti;4;Trasferimenti correnti;2;Trasferimenti correnti a Famiglie;2;Interventi assistenziali;999;Altri assegni e sussidi assistenziali;14/09/2018
676;1;0;232,96;519,68;OMESSO NOMINATIVO NEL RISPETTO DELLA NORMATIVA SULLA PROTEZIONE DATI PERSONALI; ;L.162/98 COMPETENZE AGOSTO;14/09/2018;1927;3;87;1;Spese correnti;4;Trasferimenti correnti;2;Trasferimenti correnti a Famiglie;2;Interventi assistenziali;999;Altri assegni e sussidi assistenziali;14/09/2018
676;2;0;286,72;519,68;OMESSO NOMINATIVO NEL RISPETTO DELLA NORMATIVA SULLA PROTEZIONE DATI PERSONALI; ;L.162/98 COMPETENZE AGOSTO;14/09/2018;1927;3;87;1;Spese correnti;4;Trasferimenti correnti;2;Trasferimenti correnti a Famiglie;2;Interventi assistenziali;999;Altri assegni e sussidi assistenziali;14/09/2018
677;1;0;170,24;354,34;OMESSO NOMINATIVO NEL RISPETTO DELLA NORMATIVA SULLA PROTEZIONE DATI PERSONALI; ;L.162/98 COMPETENZE AGOSTO;14/09/2018;1927;3;87;1;Spese correnti;4;Trasferimenti correnti;2;Trasferimenti correnti a Famiglie;2;Interventi assistenziali;999;Altri assegni e sussidi assistenziali;14/09/2018
677;2;0;184,1;354,34;OMESSO NOMINATIVO NEL RISPETTO DELLA NORMATIVA SULLA PROTEZIONE DATI PERSONALI; ;L.162/98 COMPETENZE AGOSTO;14/09/2018;1927;3;87;1;Spese correnti;4;Trasferimenti correnti;2;Trasferimenti correnti a Famiglie;2;Interventi assistenziali;999;Altri assegni e sussidi assistenziali;14/09/2018
682;1;0;1.481,58;1.481,58;PERSONALE DIVERSO (Confr.Allegato); ;STIPENDI MESE DI: SETTEMBRE 18;17/09/2018;1001;0;0;1;Spese correnti;3;Acquisto di beni e servizi;2;Acquisto di servizi;1;Organi e incarichi istituzionali dell'amministrazione;1;Organi istituzionali dell'amministrazione - Indennità;17/09/2018
683;1;0;125,94;125,94;TESORERIA PROVINCIALE DELLO STATO; ;VERS. IMPOSTE MESE: SETTEMBRE 18 PER I.R.A.P.;17/09/2018;1001;0;0;1;Spese correnti;3;Acquisto di beni e servizi;2;Acquisto di servizi;1;Organi e incarichi istituzionali dell'amministrazione;1;Organi istituzionali dell'amministrazione - Indennità;17/09/2018
716;1;0;2.720,00;2.720,00;CROCE BIANCA; ;contributo per attivit di pubblica assistenza;24/09/2018;1925;0;117;1;Spese correnti;4;Trasferimenti correnti;4;Trasferimenti correnti a Istituzioni Sociali Private;1;Trasferimenti correnti a Istituzioni Sociali Private;1;Trasferimenti correnti a Istituzioni Sociali Private;24/09/2018
717;1;0;54,9;54,9;SETCOM DI GABRIELE DIANA;Z0723DF8E5;SALDO Fatt.n. 9/PA  del 17/09/2018;24/09/2018;1476;1;121;1;Spese correnti;3;Acquisto di beni e servizi;2;Acquisto di servizi;5;Utenze e canoni;2;Telefonia mobile;24/09/2018
718;1;0;2.265,00;2.265,00;A.I.A.S.; ;CONTRIBUZIONE PER UN UTENTE INSERITO IN STRUTTURA AGOSTO FATT.1501/A;24/09/2018;1934;0;78;1;Spese correnti;4;Trasferimenti correnti;4;Trasferimenti correnti a Istituzioni Sociali Private;1;Trasferimenti correnti a Istituzioni Sociali Private;1;Trasferimenti correnti a Istituzioni Sociali Private;24/09/2018
719;1;0;19,09;19,09;POSTE ITALIANE;Z2E22DE889;SALDO Fatt.n. 8718291528  del 31/08/2018 Fattura Elettronica relativa all'Identificativo Rendiconto 2098826813- B=033818871829152865;24/09/2018;1043;11;51;1;Spese correnti;3;Acquisto di beni e servizi;2;Acquisto di servizi;16;Servizi amministrativi;2;Spese postali;24/09/2018
720;1;0;1.794,00;1.794,00;GLOBAL POWER;Z6E2234C3D;ACCONTO Fatt.n. V0/97823  del 01/08/2018 Fattura Energia Elettrica;24/09/2018;1937;1;22;1;Spese correnti;3;Acquisto di beni e servizi;2;Acquisto di servizi;5;Utenze e canoni;4;Energia elettrica;24/09/2018
721;1;0;394,68;394,68;GLOBAL POWER;Z6E2234C3D;SALDO Fatt.n. V0/97823  del 01/08/2018 Fattura Energia Elettrica;24/09/2018;1937;1;22;1;Spese correnti;3;Acquisto di beni e servizi;2;Acquisto di servizi;5;Utenze e canoni;4;Energia elettrica;24/09/2018
722;1;0;851,67;851,67;GLOBAL POWER;Z6E2234C3D;ACCONTO Fatt.n. V0/97824  del 01/08/2018 Fattura Energia Elettrica;24/09/2018;1937;1;22;1;Spese correnti;3;Acquisto di beni e servizi;2;Acquisto di servizi;5;Utenze e canoni;4;Energia elettrica;24/09/2018
723;1;0;83,65;83,65;GLOBAL POWER;Z6E2234C3D;ACCONTO Fatt.n. V0/97824  del 01/08/2018 Fattura Energia Elettrica;24/09/2018;1476;1;24;1;Spese correnti;3;Acquisto di beni e servizi;2;Acquisto di servizi;5;Utenze e canoni;4;Energia elettrica;24/09/2018
724;1;0;110,32;110,32;GLOBAL POWER;Z6E2234C3D;SALDO Fatt.n. V0/97824  del 01/08/2018 Fattura Energia Elettrica;24/09/2018;1366;0;28;1;Spese correnti;3;Acquisto di beni e servizi;2;Acquisto di servizi;5;Utenze e canoni;4;Energia elettrica;24/09/2018
725;1;0;271,51;271,51;MELE CARLA - ECONOMO COMUNALE; ;Rimborso bollette;25/09/2018;1043;0;122;1;Spese correnti;3;Acquisto di beni e servizi;1;Acquisto di beni;2;Altri beni di consumo;1;Carta, cancelleria e stampati;25/09/2018
726;1;0;715,81;815,81;MELE CARLA - ECONOMO COMUNALE; ;Rimborso bollette;25/09/2018;1056;0;123;1;Spese correnti;3;Acquisto di beni e servizi;1;Acquisto di beni;2;Altri beni di consumo;2;Carburanti, combustibili e lubrificanti;25/09/2018
726;2;0;100;815,81;MELE CARLA - ECONOMO COMUNALE; ;Rimborso bollette;25/09/2018;1056;0;123;1;Spese correnti;3;Acquisto di beni e servizi;1;Acquisto di beni;2;Altri beni di consumo;2;Carburanti, combustibili e lubrificanti;25/09/2018
727;1;0;200;200;MELE CARLA - ECONOMO COMUNALE; ;Rimborso bollette;25/09/2018;1932;0;124;1;Spese correnti;3;Acquisto di beni e servizi;2;Acquisto di servizi;99;Altri servizi;999;Altri servizi diversi n.a.c.;25/09/2018
728;1;0;516,99;1.281,33;; ;leggi di settore 2 trimestre;28/09/2018;1906;0;93;1;Spese correnti;4;Trasferimenti correnti;2;Trasferimenti correnti a Famiglie;2;Interventi assistenziali;999;Altri assegni e sussidi assistenziali;28/09/2018
728;2;0;590,22;1.281,33;; ;leggi di settore 2 trimestre;28/09/2018;1906;0;93;1;Spese correnti;4;Trasferimenti correnti;2;Trasferimenti correnti a Famiglie;2;Interventi assistenziali;999;Altri assegni e sussidi assistenziali;28/09/2018
728;3;0;174,12;1.281,33;; ;leggi di settore 2 trimestre;28/09/2018;1906;0;93;1;Spese correnti;4;Trasferimenti correnti;2;Trasferimenti correnti a Famiglie;2;Interventi assistenziali;999;Altri assegni e sussidi assistenziali;28/09/2018
729;1;0;516,99;1.550,97;; ;leggi di settore 2 trimestre;28/09/2018;1906;0;93;1;Spese correnti;4;Trasferimenti correnti;2;Trasferimenti correnti a Famiglie;2;Interventi assistenziali;999;Altri assegni e sussidi assistenziali;28/09/2018
729;2;0;516,99;1.550,97;; ;leggi di settore 2 trimestre;28/09/2018;1906;0;93;1;Spese correnti;4;Trasferimenti correnti;2;Trasferimenti correnti a Famiglie;2;Interventi assistenziali;999;Altri assegni e sussidi assistenziali;28/09/2018
729;3;0;516,99;1.550,97;; ;leggi di settore 2 trimestre;28/09/2018;1906;0;93;1;Spese correnti;4;Trasferimenti correnti;2;Trasferimenti correnti a Famiglie;2;Interventi assistenziali;999;Altri assegni e sussidi assistenziali;28/09/2018
730;1;0;550,56;2.536,41;; ;leggi di settore 2 trimestre;28/09/2018;1906;0;93;1;Spese correnti;4;Trasferimenti correnti;2;Trasferimenti correnti a Famiglie;2;Interventi assistenziali;999;Altri assegni e sussidi assistenziali;28/09/2018
730;2;0;1.468,86;2.536,41;; ;leggi di settore 2 trimestre;28/09/2018;1906;0;93;1;Spese correnti;4;Trasferimenti correnti;2;Trasferimenti correnti a Famiglie;2;Interventi assistenziali;999;Altri assegni e sussidi assistenziali;28/09/2018
730;3;0;516,99;2.536,41;; ;leggi di settore 2 trimestre;28/09/2018;1906;0;93;1;Spese correnti;4;Trasferimenti correnti;2;Trasferimenti correnti a Famiglie;2;Interventi assistenziali;999;Altri assegni e sussidi assistenziali;28/09/2018
731;1;0;269,91;269,91;; ;leggi di settore 2 trimestre;28/09/2018;1906;0;93;1;Spese correnti;4;Trasferimenti correnti;2;Trasferimenti correnti a Famiglie;2;Interventi assistenziali;999;Altri assegni e sussidi assistenziali;28/09/2018
732;1;0;999,99;999,99;; ;leggi di settore 2 trimestre;28/09/2018;1906;0;93;1;Spese correnti;4;Trasferimenti correnti;2;Trasferimenti correnti a Famiglie;2;Interventi assistenziali;999;Altri assegni e sussidi assistenziali;28/09/2018
733;1;0;929,64;929,64;; ;leggi di settore 2 trimestre;28/09/2018;1906;0;93;1;Spese correnti;4;Trasferimenti correnti;2;Trasferimenti correnti a Famiglie;2;Interventi assistenziali;999;Altri assegni e sussidi assistenziali;28/09/2018
734;1;0;147,42;147,42;; ;leggi di settore 2 trimestre;28/09/2018;1906;0;93;1;Spese correnti;4;Trasferimenti correnti;2;Trasferimenti correnti a Famiglie;2;Interventi assistenziali;999;Altri assegni e sussidi assistenziali;28/09/2018
735;1;0;1.967,70;1.967,70;; ;leggi di settore 2 trimestre;28/09/2018;1906;0;93;1;Spese correnti;4;Trasferimenti correnti;2;Trasferimenti correnti a Famiglie;2;Interventi assistenziali;999;Altri assegni e sussidi assistenziali;28/09/2018
736;1;0;146,39;146,39;SETCOM DI GABRIELE DIANA;Z8124F4C15;SALDO Fatt.n. 11/PA  del 19/09/2018;28/09/2018;1043;0;120;1;Spese correnti;3;Acquisto di beni e servizi;1;Acquisto di beni;2;Altri beni di consumo;999;Altri beni e materiali di consumo n.a.c.;28/09/2018
738;1;0;999;999;; ;leggi di settore 2 trimestre;01/10/2018;1906;0;93;1;Spese correnti;4;Trasferimenti correnti;2;Trasferimenti correnti a Famiglie;2;Interventi assistenziali;999;Altri assegni e sussidi assistenziali;01/10/2018
739;1;0;15.864,72;15.864,72;ECONOVA;5842041CBB;SALDO Fatt.n. 67  del 29/09/2018 FATTURA;03/10/2018;1738;0;114;1;Spese correnti;3;Acquisto di beni e servizi;2;Acquisto di servizi;15;Contratti di servizio pubblico;5;Contratti di servizio per il conferimento in discarica dei rifiuti;03/10/2018
740;1;0;66,34;66,34;ABBANOA; ;SALDO Fatt.n. 0150020180031871300  del 19/09/2018 B/Bollettazione;03/10/2018;1043;5;126;1;Spese correnti;3;Acquisto di beni e servizi;2;Acquisto di servizi;5;Utenze e canoni;5;Acqua;03/10/2018
741;1;0;191,87;191,87;ABBANOA; ;SALDO Fatt.n. 0150020180031871200  del 19/09/2018 B/Bollettazione;03/10/2018;1386;2;125;1;Spese correnti;3;Acquisto di beni e servizi;2;Acquisto di servizi;5;Utenze e canoni;5;Acqua;03/10/2018
742;1;0;1.000,00;1.000,00;ABBANOA; ;ACCONTO Fatt.n. 0150020180031871100  del 19/09/2018 B/Bollettazione;03/10/2018;1514;1;127;1;Spese correnti;3;Acquisto di beni e servizi;2;Acquisto di servizi;9;Manutenzione ordinaria e riparazioni;11;Manutenzione ordinaria e riparazioni di altri beni materiali;03/10/2018
743;1;0;1.081,27;1.081,27;ABBANOA; ;SALDO Fatt.n. 0150020180031871100  del 19/09/2018 B/Bollettazione;03/10/2018;1514;2;128;1;Spese correnti;3;Acquisto di beni e servizi;2;Acquisto di servizi;5;Utenze e canoni;5;Acqua;03/10/2018
744;1;0;60,07;60,07;ABBANOA; ;SALDO Fatt.n. 0150020180031871000  del 19/09/2018 B/Bollettazione;03/10/2018;1476;3;129;1;Spese correnti;3;Acquisto di beni e servizi;1;Acquisto di beni;2;Altri beni di consumo;999;Altri beni e materiali di consumo n.a.c.;03/10/2018
745;1;0;62,39;62,39;ABBANOA; ;SALDO Fatt.n. 0150020180031870900  del 19/09/2018 B/Bollettazione;03/10/2018;1829;1;130;1;Spese correnti;3;Acquisto di beni e servizi;1;Acquisto di beni;2;Altri beni di consumo;999;Altri beni e materiali di consumo n.a.c.;03/10/2018
746;1;0;300;300;OMESSO NOMINATIVO NEL RISPETTO DELLA NORMATIVA SULLA PROTEZIONE DATI PERSONALI; ;CONTRIBUTO STRAORDINARIO;04/10/2018;1935;0;136;1;Spese correnti;4;Trasferimenti correnti;2;Trasferimenti correnti a Famiglie;2;Interventi assistenziali;999;Altri assegni e sussidi assistenziali;04/10/2018
747;1;0;550,38;583,31;; ;leggi di settore 2 trimestre;04/10/2018;1906;0;93;1;Spese correnti;4;Trasferimenti correnti;2;Trasferimenti correnti a Famiglie;2;Interventi assistenziali;999;Altri assegni e sussidi assistenziali;04/10/2018
747;2;0;32,93;583,31;; ;leggi di settore 2 trimestre;04/10/2018;1906;0;93;1;Spese correnti;4;Trasferimenti correnti;2;Trasferimenti correnti a Famiglie;2;Interventi assistenziali;999;Altri assegni e sussidi assistenziali;04/10/2018
748;1;0;1.626,67;1.626,67;CHESSA ALESSANDRO;Z9A1CFA2F9;SALDO Fatt.n. FATTPA 92_18  del 01/10/2018 Vs. dare per manutenzione ordinaria impianto di illuminazione pubblica ed impianti elettrici immobili comunali SETTEMBRE 2018;04/10/2018;1939;0;34;1;Spese correnti;3;Acquisto di beni e servizi;2;Acquisto di servizi;9;Manutenzione ordinaria e riparazioni;8;Manutenzione ordinaria e riparazioni di beni immobili;04/10/2018
749;1;0;2.686,77;2.686,77;HALLEY SARDEGNA SRL;ZA321A72EF;SALDO Fatt.n. 0001142  del 02/10/2018;04/10/2018;1042;0;5;1;Spese correnti;3;Acquisto di beni e servizi;2;Acquisto di servizi;9;Manutenzione ordinaria e riparazioni;6;Manutenzione ordinaria e riparazioni di macchine per ufficio;04/10/2018
750;1;0;2.096,57;2.096,57;SETCOM DI GABRIELE DIANA;ZF02506ECE;ACCONTO Fatt.n. 12/PA  del 01/10/2018;04/10/2018;1043;12;139;1;Spese correnti;3;Acquisto di beni e servizi;2;Acquisto di servizi;5;Utenze e canoni;3;Accesso a banche dati e a pubblicazioni on line;04/10/2018
751;1;0;2.096,58;2.096,58;SETCOM DI GABRIELE DIANA;ZF02506ECE;SALDO Fatt.n. 12/PA  del 01/10/2018;04/10/2018;1043;0;138;1;Spese correnti;3;Acquisto di beni e servizi;1;Acquisto di beni;2;Altri beni di consumo;6;Materiale informatico;04/10/2018
752;1;0;25,64;25,64;MELE CARLA - ECONOMO COMUNALE; ;Rimborso bollette;05/10/2018;1043;2;133;1;Spese correnti;3;Acquisto di beni e servizi;1;Acquisto di beni;2;Altri beni di consumo;1;Carta, cancelleria e stampati;05/10/2018
753;1;0;280;280;MELE CARLA - ECONOMO COMUNALE; ;Rimborso bollette;05/10/2018;1056;0;134;1;Spese correnti;3;Acquisto di beni e servizi;1;Acquisto di beni;2;Altri beni di consumo;2;Carburanti, combustibili e lubrificanti;05/10/2018
754;1;0;2.186,18;2.186,18;GLOBAL POWER;Z6E2234C3D;ACCONTO Fatt.n. V0/110943  del 04/09/2018 Fattura Energia Elettrica;09/10/2018;1937;1;22;1;Spese correnti;3;Acquisto di beni e servizi;2;Acquisto di servizi;5;Utenze e canoni;4;Energia elettrica;09/10/2018
755;1;0;480,96;480,96;GLOBAL POWER;Z6E2234C3D;SALDO Fatt.n. V0/110943  del 04/09/2018 Fattura Energia Elettrica;09/10/2018;1937;1;22;1;Spese correnti;3;Acquisto di beni e servizi;2;Acquisto di servizi;5;Utenze e canoni;4;Energia elettrica;09/10/2018
756;1;0;1.377,94;1.377,94;GLOBAL POWER;Z6E2234C3D;ACCONTO Fatt.n. V0/110944  del 04/09/2018 Fattura Energia Elettrica;09/10/2018;1937;1;22;1;Spese correnti;3;Acquisto di beni e servizi;2;Acquisto di servizi;5;Utenze e canoni;4;Energia elettrica;09/10/2018
757;1;0;303,15;303,15;GLOBAL POWER;Z6E2234C3D;SALDO Fatt.n. V0/110944  del 04/09/2018 Fattura Energia Elettrica;09/10/2018;1043;10;27;1;Spese correnti;3;Acquisto di beni e servizi;2;Acquisto di servizi;5;Utenze e canoni;4;Energia elettrica;09/10/2018
758;1;0;1;4;BANCO SARDEGNA; ;ONERI TESORERIA;09/10/2018;1054;0;0;1;Spese correnti;3;Acquisto di beni e servizi;2;Acquisto di servizi;17;Servizi finanziari;2;Oneri per servizio di tesoreria;09/10/2018
758;2;0;1;4;BANCO SARDEGNA; ;ONERI TESORERIA;09/10/2018;1054;0;0;1;Spese correnti;3;Acquisto di beni e servizi;2;Acquisto di servizi;17;Servizi finanziari;2;Oneri per servizio di tesoreria;09/10/2018
758;3;0;1;4;BANCO SARDEGNA; ;ONERI TESORERIA;09/10/2018;1054;0;0;1;Spese correnti;3;Acquisto di beni e servizi;2;Acquisto di servizi;17;Servizi finanziari;2;Oneri per servizio di tesoreria;09/10/2018
758;4;0;1;4;BANCO SARDEGNA; ;ONERI TESORERIA;09/10/2018;1054;0;0;1;Spese correnti;3;Acquisto di beni e servizi;2;Acquisto di servizi;17;Servizi finanziari;2;Oneri per servizio di tesoreria;09/10/2018
759;1;0;9.599,99;9.599,99;GT INGEGNERIA SRL;Z3F200AAEB;SALDO Fatt.n. FatPAM 02  del 02/10/2018;09/10/2018;3578;0;275;2;Spese in conto capitale;2;Investimenti fissi lordi e acquisto di terreni;1;Beni materiali;9;Beni immobili;999;Beni immobili n.a.c.;09/10/2018
760;1;0;1.829,49;1.829,49;OMESSO NOMINATIVO NEL RISPETTO DELLA NORMATIVA SULLA PROTEZIONE DATI PERSONALI;Z791CFA3E2;SALDO Fatt.n. 8/2018/PA  del 03/10/2018;09/10/2018;1699;0;76;1;Spese correnti;3;Acquisto di beni e servizi;2;Acquisto di servizi;9;Manutenzione ordinaria e riparazioni;8;Manutenzione ordinaria e riparazioni di beni immobili;09/10/2018
761;1;0;170,95;624,95;OMESSO NOMINATIVO NEL RISPETTO DELLA NORMATIVA SULLA PROTEZIONE DATI PERSONALI; ;l.162/98 settembre;16/10/2018;1927;3;87;1;Spese correnti;4;Trasferimenti correnti;2;Trasferimenti correnti a Famiglie;2;Interventi assistenziali;999;Altri assegni e sussidi assistenziali;16/10/2018
761;2;0;79;624,95;OMESSO NOMINATIVO NEL RISPETTO DELLA NORMATIVA SULLA PROTEZIONE DATI PERSONALI; ;l.162/98 settembre;16/10/2018;1927;3;87;1;Spese correnti;4;Trasferimenti correnti;2;Trasferimenti correnti a Famiglie;2;Interventi assistenziali;999;Altri assegni e sussidi assistenziali;16/10/2018
761;3;0;375;624,95;OMESSO NOMINATIVO NEL RISPETTO DELLA NORMATIVA SULLA PROTEZIONE DATI PERSONALI; ;l.162/98 settembre;16/10/2018;1927;3;87;1;Spese correnti;4;Trasferimenti correnti;2;Trasferimenti correnti a Famiglie;2;Interventi assistenziali;999;Altri assegni e sussidi assistenziali;16/10/2018
762;1;0;117,5;526,84;OMESSO NOMINATIVO NEL RISPETTO DELLA NORMATIVA SULLA PROTEZIONE DATI PERSONALI; ;l.162/98 settembre;16/10/2018;1927;3;87;1;Spese correnti;4;Trasferimenti correnti;2;Trasferimenti correnti a Famiglie;2;Interventi assistenziali;999;Altri assegni e sussidi assistenziali;16/10/2018
762;2;0;252,56;526,84;OMESSO NOMINATIVO NEL RISPETTO DELLA NORMATIVA SULLA PROTEZIONE DATI PERSONALI; ;l.162/98 settembre;16/10/2018;1927;3;87;1;Spese correnti;4;Trasferimenti correnti;2;Trasferimenti correnti a Famiglie;2;Interventi assistenziali;999;Altri assegni e sussidi assistenziali;16/10/2018
762;3;0;156,78;526,84;OMESSO NOMINATIVO NEL RISPETTO DELLA NORMATIVA SULLA PROTEZIONE DATI PERSONALI; ;l.162/98 settembre;16/10/2018;1927;3;87;1;Spese correnti;4;Trasferimenti correnti;2;Trasferimenti correnti a Famiglie;2;Interventi assistenziali;999;Altri assegni e sussidi assistenziali;16/10/2018
763;1;0;197,36;600,35;OMESSO NOMINATIVO NEL RISPETTO DELLA NORMATIVA SULLA PROTEZIONE DATI PERSONALI; ;l.162/98 settembre;16/10/2018;1927;3;87;1;Spese correnti;4;Trasferimenti correnti;2;Trasferimenti correnti a Famiglie;2;Interventi assistenziali;999;Altri assegni e sussidi assistenziali;16/10/2018
763;2;0;191,79;600,35;OMESSO NOMINATIVO NEL RISPETTO DELLA NORMATIVA SULLA PROTEZIONE DATI PERSONALI; ;l.162/98 settembre;16/10/2018;1927;3;87;1;Spese correnti;4;Trasferimenti correnti;2;Trasferimenti correnti a Famiglie;2;Interventi assistenziali;999;Altri assegni e sussidi assistenziali;16/10/2018
763;3;0;211,2;600,35;OMESSO NOMINATIVO NEL RISPETTO DELLA NORMATIVA SULLA PROTEZIONE DATI PERSONALI; ;l.162/98 settembre;16/10/2018;1927;3;87;1;Spese correnti;4;Trasferimenti correnti;2;Trasferimenti correnti a Famiglie;2;Interventi assistenziali;999;Altri assegni e sussidi assistenziali;16/10/2018
764;1;0;329,16;1.106,73;OMESSO NOMINATIVO NEL RISPETTO DELLA NORMATIVA SULLA PROTEZIONE DATI PERSONALI; ;l.162/98 settembre;16/10/2018;1927;3;87;1;Spese correnti;4;Trasferimenti correnti;2;Trasferimenti correnti a Famiglie;2;Interventi assistenziali;999;Altri assegni e sussidi assistenziali;16/10/2018
764;2;0;634,71;1.106,73;OMESSO NOMINATIVO NEL RISPETTO DELLA NORMATIVA SULLA PROTEZIONE DATI PERSONALI; ;l.162/98 settembre;16/10/2018;1927;3;87;1;Spese correnti;4;Trasferimenti correnti;2;Trasferimenti correnti a Famiglie;2;Interventi assistenziali;999;Altri assegni e sussidi assistenziali;16/10/2018
764;3;0;142,86;1.106,73;OMESSO NOMINATIVO NEL RISPETTO DELLA NORMATIVA SULLA PROTEZIONE DATI PERSONALI; ;l.162/98 settembre;16/10/2018;1927;3;87;1;Spese correnti;4;Trasferimenti correnti;2;Trasferimenti correnti a Famiglie;2;Interventi assistenziali;999;Altri assegni e sussidi assistenziali;16/10/2018
765;1;0;181,83;1.240,99;OMESSO NOMINATIVO NEL RISPETTO DELLA NORMATIVA SULLA PROTEZIONE DATI PERSONALI; ;l.162/98 settembre;16/10/2018;1927;3;87;1;Spese correnti;4;Trasferimenti correnti;2;Trasferimenti correnti a Famiglie;2;Interventi assistenziali;999;Altri assegni e sussidi assistenziali;16/10/2018
765;2;0;310,7;1.240,99;OMESSO NOMINATIVO NEL RISPETTO DELLA NORMATIVA SULLA PROTEZIONE DATI PERSONALI; ;l.162/98 settembre;16/10/2018;1927;3;87;1;Spese correnti;4;Trasferimenti correnti;2;Trasferimenti correnti a Famiglie;2;Interventi assistenziali;999;Altri assegni e sussidi assistenziali;16/10/2018
765;3;0;748,46;1.240,99;OMESSO NOMINATIVO NEL RISPETTO DELLA NORMATIVA SULLA PROTEZIONE DATI PERSONALI; ;l.162/98 settembre;16/10/2018;1927;3;87;1;Spese correnti;4;Trasferimenti correnti;2;Trasferimenti correnti a Famiglie;2;Interventi assistenziali;999;Altri assegni e sussidi assistenziali;16/10/2018
766;1;0;201,18;770,88;OMESSO NOMINATIVO NEL RISPETTO DELLA NORMATIVA SULLA PROTEZIONE DATI PERSONALI; ;l.162/98 settembre;16/10/2018;1927;3;87;1;Spese correnti;4;Trasferimenti correnti;2;Trasferimenti correnti a Famiglie;2;Interventi assistenziali;999;Altri assegni e sussidi assistenziali;16/10/2018
766;2;0;403,04;770,88;OMESSO NOMINATIVO NEL RISPETTO DELLA NORMATIVA SULLA PROTEZIONE DATI PERSONALI; ;l.162/98 settembre;16/10/2018;1927;3;87;1;Spese correnti;4;Trasferimenti correnti;2;Trasferimenti correnti a Famiglie;2;Interventi assistenziali;999;Altri assegni e sussidi assistenziali;16/10/2018
766;3;0;166,66;770,88;OMESSO NOMINATIVO NEL RISPETTO DELLA NORMATIVA SULLA PROTEZIONE DATI PERSONALI; ;l.162/98 settembre;16/10/2018;1927;3;87;1;Spese correnti;4;Trasferimenti correnti;2;Trasferimenti correnti a Famiglie;2;Interventi assistenziali;999;Altri assegni e sussidi assistenziali;16/10/2018
767;1;0;277;875,02;OMESSO NOMINATIVO NEL RISPETTO DELLA NORMATIVA SULLA PROTEZIONE DATI PERSONALI; ;l.162/98 settembre;16/10/2018;1927;3;87;1;Spese correnti;4;Trasferimenti correnti;2;Trasferimenti correnti a Famiglie;2;Interventi assistenziali;999;Altri assegni e sussidi assistenziali;16/10/2018
767;2;0;455,85;875,02;OMESSO NOMINATIVO NEL RISPETTO DELLA NORMATIVA SULLA PROTEZIONE DATI PERSONALI; ;l.162/98 settembre;16/10/2018;1927;3;87;1;Spese correnti;4;Trasferimenti correnti;2;Trasferimenti correnti a Famiglie;2;Interventi assistenziali;999;Altri assegni e sussidi assistenziali;16/10/2018
767;3;0;142,17;875,02;OMESSO NOMINATIVO NEL RISPETTO DELLA NORMATIVA SULLA PROTEZIONE DATI PERSONALI; ;l.162/98 settembre;16/10/2018;1927;3;87;1;Spese correnti;4;Trasferimenti correnti;2;Trasferimenti correnti a Famiglie;2;Interventi assistenziali;999;Altri assegni e sussidi assistenziali;16/10/2018
768;1;0;166,4;257,26;OMESSO NOMINATIVO NEL RISPETTO DELLA NORMATIVA SULLA PROTEZIONE DATI PERSONALI; ;l.162/98 settembre;16/10/2018;1927;3;87;1;Spese correnti;4;Trasferimenti correnti;2;Trasferimenti correnti a Famiglie;2;Interventi assistenziali;999;Altri assegni e sussidi assistenziali;16/10/2018
768;2;0;90,86;257,26;OMESSO NOMINATIVO NEL RISPETTO DELLA NORMATIVA SULLA PROTEZIONE DATI PERSONALI; ;l.162/98 settembre;16/10/2018;1927;3;87;1;Spese correnti;4;Trasferimenti correnti;2;Trasferimenti correnti a Famiglie;2;Interventi assistenziali;999;Altri assegni e sussidi assistenziali;16/10/2018
769;1;0;1.481,58;1.481,58;PERSONALE DIVERSO (Confr.Allegato); ;STIPENDI MESE DI: OTTOBRE 18;16/10/2018;1001;0;0;1;Spese correnti;3;Acquisto di beni e servizi;2;Acquisto di servizi;1;Organi e incarichi istituzionali dell'amministrazione;1;Organi istituzionali dell'amministrazione - Indennità;16/10/2018
770;1;0;125,94;125,94;TESORERIA PROVINCIALE DELLO STATO; ;VERS. IMPOSTE MESE: OTTOBRE 18 PER I.R.A.P.;16/10/2018;1001;0;0;1;Spese correnti;3;Acquisto di beni e servizi;2;Acquisto di servizi;1;Organi e incarichi istituzionali dell'amministrazione;1;Organi istituzionali dell'amministrazione - Indennità;16/10/2018
802;1;0;2.718,00;2.718,00;A.I.A.S.; ;fatt. n. 1852/a mese settembre;17/10/2018;1934;0;78;1;Spese correnti;4;Trasferimenti correnti;4;Trasferimenti correnti a Istituzioni Sociali Private;1;Trasferimenti correnti a Istituzioni Sociali Private;1;Trasferimenti correnti a Istituzioni Sociali Private;17/10/2018
803;1;0;307,13;898,49;OMESSO NOMINATIVO NEL RISPETTO DELLA NORMATIVA SULLA PROTEZIONE DATI PERSONALI; ;l.162/98 settembre;17/10/2018;1927;3;87;1;Spese correnti;4;Trasferimenti correnti;2;Trasferimenti correnti a Famiglie;2;Interventi assistenziali;999;Altri assegni e sussidi assistenziali;17/10/2018
803;2;0;277,76;898,49;OMESSO NOMINATIVO NEL RISPETTO DELLA NORMATIVA SULLA PROTEZIONE DATI PERSONALI; ;l.162/98 settembre;17/10/2018;1927;3;87;1;Spese correnti;4;Trasferimenti correnti;2;Trasferimenti correnti a Famiglie;2;Interventi assistenziali;999;Altri assegni e sussidi assistenziali;17/10/2018
803;3;0;313,6;898,49;OMESSO NOMINATIVO NEL RISPETTO DELLA NORMATIVA SULLA PROTEZIONE DATI PERSONALI; ;l.162/98 settembre;17/10/2018;1927;3;87;1;Spese correnti;4;Trasferimenti correnti;2;Trasferimenti correnti a Famiglie;2;Interventi assistenziali;999;Altri assegni e sussidi assistenziali;17/10/2018
804;1;0;215,04;560,42;OMESSO NOMINATIVO NEL RISPETTO DELLA NORMATIVA SULLA PROTEZIONE DATI PERSONALI; ;L.162/98 SETTEMBRE;17/10/2018;1927;3;87;1;Spese correnti;4;Trasferimenti correnti;2;Trasferimenti correnti a Famiglie;2;Interventi assistenziali;999;Altri assegni e sussidi assistenziali;17/10/2018
804;2;0;161,28;560,42;OMESSO NOMINATIVO NEL RISPETTO DELLA NORMATIVA SULLA PROTEZIONE DATI PERSONALI; ;L.162/98 SETTEMBRE;17/10/2018;1927;3;87;1;Spese correnti;4;Trasferimenti correnti;2;Trasferimenti correnti a Famiglie;2;Interventi assistenziali;999;Altri assegni e sussidi assistenziali;17/10/2018
804;3;0;184,1;560,42;OMESSO NOMINATIVO NEL RISPETTO DELLA NORMATIVA SULLA PROTEZIONE DATI PERSONALI; ;L.162/98 SETTEMBRE;17/10/2018;1927;3;87;1;Spese correnti;4;Trasferimenti correnti;2;Trasferimenti correnti a Famiglie;2;Interventi assistenziali;999;Altri assegni e sussidi assistenziali;17/10/2018
805;1;0;250,88;392,63;OMESSO NOMINATIVO NEL RISPETTO DELLA NORMATIVA SULLA PROTEZIONE DATI PERSONALI; ;L.162/98 SETTEMBRE;17/10/2018;1927;3;87;1;Spese correnti;4;Trasferimenti correnti;2;Trasferimenti correnti a Famiglie;2;Interventi assistenziali;999;Altri assegni e sussidi assistenziali;17/10/2018
805;2;0;141,75;392,63;OMESSO NOMINATIVO NEL RISPETTO DELLA NORMATIVA SULLA PROTEZIONE DATI PERSONALI; ;L.162/98 SETTEMBRE;17/10/2018;1927;3;87;1;Spese correnti;4;Trasferimenti correnti;2;Trasferimenti correnti a Famiglie;2;Interventi assistenziali;999;Altri assegni e sussidi assistenziali;17/10/2018
806;1;0;929,64;929,64;; ;legge 8/99;22/10/2018;1906;0;93;1;Spese correnti;4;Trasferimenti correnti;2;Trasferimenti correnti a Famiglie;2;Interventi assistenziali;999;Altri assegni e sussidi assistenziali;22/10/2018
807;1;0;429,95;429,95;PROVINCIA DI SASSARI; ;LIQUIDAZIONE TEFA SECONDO E TERZO TRIMESTRE 2018;23/10/2018;1055;2;142;1;Spese correnti;4;Trasferimenti correnti;1;Trasferimenti correnti a Amministrazioni Pubbliche;2;Trasferimenti correnti a Amministrazioni Locali;2;Trasferimenti correnti a Province;23/10/2018
808;1;0;26,14;26,14;ZANDA MONICA; ;RIMBORSO SPESE VIAGGIO VICE SEGRETARIO;23/10/2018;1024;3;143;1;Spese correnti;3;Acquisto di beni e servizi;2;Acquisto di servizi;2;Organizzazione eventi, pubblicita` e servizi per trasferta;1;Rimborso per viaggio e trasloco;23/10/2018
809;1;0;564,52;564,52;IL PICCOLO PRINCIPE;Z2B14002E4;SALDO Fatt.n. 199PA /2018  del 28/09/2018 SERVIZI IN RETE CIG-Z2B14002E4 periodo AGOSTO 2018;23/10/2018;1902;0;82;1;Spese correnti;3;Acquisto di beni e servizi;2;Acquisto di servizi;15;Contratti di servizio pubblico;9;Contratti di servizio di assistenza sociale domiciliare;23/10/2018
810;1;0;539,82;539,82;BOSINCO LUIGI;Z341F3FOCC;SALDO Fatt.n. FATTPA 21_18  del 02/10/2018 codice identificativo gara Z341F3FOCC;23/10/2018;1400;0;132;1;Spese correnti;3;Acquisto di beni e servizi;2;Acquisto di servizi;15;Contratti di servizio pubblico;2;Contratti di servizio di trasporto scolastico;23/10/2018
811;1;0;100;100;OMESSO NOMINATIVO NEL RISPETTO DELLA NORMATIVA SULLA PROTEZIONE DATI PERSONALI; ;CONTRIBUTO STRAORDINARIO;24/10/2018;1935;0;146;1;Spese correnti;4;Trasferimenti correnti;2;Trasferimenti correnti a Famiglie;2;Interventi assistenziali;999;Altri assegni e sussidi assistenziali;24/10/2018
812;1;0;58,21;58,21;TELECOM ITALIA SPA;ZD32272852;SALDO Fatt.n. 8R00211278  del 05/10/2018 6BIM 2018;25/10/2018;1043;12;36;1;Spese correnti;3;Acquisto di beni e servizi;2;Acquisto di servizi;5;Utenze e canoni;1;Telefonia fissa;25/10/2018
813;1;0;41,72;41,72;TELECOM ITALIA SPA;ZD32272852;SALDO Fatt.n. 8R00210901  del 05/10/2018 6BIM 2018;25/10/2018;1476;1;37;1;Spese correnti;3;Acquisto di beni e servizi;2;Acquisto di servizi;5;Utenze e canoni;1;Telefonia fissa;25/10/2018
814;1;0;55,99;55,99;TELECOM ITALIA SPA;ZD32272852;SALDO Fatt.n. 8R00212366  del 05/10/2018 6BIM 2018;25/10/2018;1366;0;38;1;Spese correnti;3;Acquisto di beni e servizi;2;Acquisto di servizi;5;Utenze e canoni;1;Telefonia fissa;25/10/2018
815;1;0;82,05;382,77;TELECOM ITALIA SPA;ZD32272852;SALDO Fatt.n. 8R00211962  del 05/10/2018 6BIM 2018;25/10/2018;1043;12;36;1;Spese correnti;3;Acquisto di beni e servizi;2;Acquisto di servizi;5;Utenze e canoni;1;Telefonia fissa;25/10/2018
815;2;0;93,72;382,77;TELECOM ITALIA SPA;ZD32272852;SALDO Fatt.n. 8R00211126  del 05/10/2018 6BIM 2018;25/10/2018;1043;12;36;1;Spese correnti;3;Acquisto di beni e servizi;2;Acquisto di servizi;5;Utenze e canoni;1;Telefonia fissa;25/10/2018
815;3;0;103,25;382,77;TELECOM ITALIA SPA;ZD32272852;SALDO Fatt.n. 8R00210003  del 05/10/2018 6BIM 2018;25/10/2018;1043;12;36;1;Spese correnti;3;Acquisto di beni e servizi;2;Acquisto di servizi;5;Utenze e canoni;1;Telefonia fissa;25/10/2018
815;4;0;103,75;382,77;TELECOM ITALIA SPA;ZD32272852;SALDO Fatt.n. 8R00210562  del 05/10/2018 6BIM 2018;25/10/2018;1043;12;36;1;Spese correnti;3;Acquisto di beni e servizi;2;Acquisto di servizi;5;Utenze e canoni;1;Telefonia fissa;25/10/2018
816;1;0;2.646,00;2.646,00;AIRONE COOPERATIVA SOCIALE DI ASSISTENZA ONLUS;ZEE2338B92;SALDO Fatt.n. 262  del 16/10/2018 Fattura Cliente;25/10/2018;1899;1;67;1;Spese correnti;3;Acquisto di beni e servizi;2;Acquisto di servizi;11;Prestazioni professionali e specialistiche;999;Altre prestazioni professionali e specialistiche n.a.c.;25/10/2018
817;1;0;35.854,53;35.854,53;SUNSERVICE SRL;Z4F24566CD;SALDO Fatt.n. 120  del 22/10/2018 POR FESR SARDEGNA 2014/2020 - ASSE PRIORITARIO IV - AZIONE 4.3.1 AZIONI SPERIMENTALI PER LO SVILUPPO DI PROGETTI SPERIMENTALI DI RETI INTELLIGENTI NEI COMUNI DELLA SARDEGNA - REALIZZAZIONE DI UN SISTE;25/10/2018;3173;0;262;2;Spese in conto capitale;2;Investimenti fissi lordi e acquisto di terreni;1;Beni materiali;9;Beni immobili;3;Fabbricati ad uso scolastico;25/10/2018
818;1;0;7.641,29;7.641,29;DENEGRI PAOLO;Z8F1EFB75B;SALDO Fatt.n. PA4/2018  del 22/10/2018;25/10/2018;3200;0;263;2;Spese in conto capitale;2;Investimenti fissi lordi e acquisto di terreni;1;Beni materiali;9;Beni immobili;16;Impianti sportivi;25/10/2018
819;1;0;82,36;82,36;DITTA GASPARI;Z2124FACC4;SALDO Fatt.n. 16313  del 22/10/2018;25/10/2018;1043;2;118;1;Spese correnti;3;Acquisto di beni e servizi;1;Acquisto di beni;2;Altri beni di consumo;1;Carta, cancelleria e stampati;25/10/2018
820;1;0;111,02;111,02;MAGGIOLI EDITORE;Z49253BF00;SALDO Fatt.n. 0002141684  del 22/10/2018 FATT. IVA SPLIT P.;25/10/2018;1043;2;144;1;Spese correnti;3;Acquisto di beni e servizi;1;Acquisto di beni;2;Altri beni di consumo;14;Stampati specialistici;25/10/2018
821;1;0;55;55;MAGGIOLI EDITORE;Z49253BF00;SALDO Fatt.n. 0004502281  del 22/10/2018 FATTURA;25/10/2018;1043;2;144;1;Spese correnti;3;Acquisto di beni e servizi;1;Acquisto di beni;2;Altri beni di consumo;14;Stampati specialistici;25/10/2018
822;1;0;120.230,00;120.230,00;TENNIS TECNICA;72387315CA;SALDO Fatt.n. FATTPA 57_18  del 24/10/2018;26/10/2018;3200;0;228;2;Spese in conto capitale;2;Investimenti fissi lordi e acquisto di terreni;1;Beni materiali;9;Beni immobili;16;Impianti sportivi;26/10/2018
823;1;0;1.404,00;1.404,00;COMUNE DI PLOAGHE; ;inserimento utente presso comunita protetta;31/10/2018;1908;1;234;1;Spese correnti;4;Trasferimenti correnti;3;Trasferimenti correnti a Imprese;99;Trasferimenti correnti a altre imprese;999;Trasferimenti correnti a altre imprese;31/10/2018
824;1;0;1.080,00;1.080,00;COMUNE DI PLOAGHE; ;INSERIMENTO IN STRUTTURA UTENTE;31/10/2018;1908;1;99;1;Spese correnti;4;Trasferimenti correnti;3;Trasferimenti correnti a Imprese;99;Trasferimenti correnti a altre imprese;999;Trasferimenti correnti a altre imprese;31/10/2018
825;1;0;895,97;895,97;LIBRERIA BARDAMU' DI DEIANA ANDREA;ZB52528BCF;SALDO Fatt.n. 261-18  del 25/10/2018 Riferimento bolla n. 35-18 del 13/10/2018;31/10/2018;1892;1;131;1;Spese correnti;3;Acquisto di beni e servizi;1;Acquisto di beni;2;Altri beni di consumo;14;Stampati specialistici;31/10/2018
826;1;0;36;36;COMUNE DI PLOAGHE; ;INSERIMENTO UTENTE IN STRUTTURA;31/10/2018;1908;1;147;1;Spese correnti;4;Trasferimenti correnti;3;Trasferimenti correnti a Imprese;99;Trasferimenti correnti a altre imprese;999;Trasferimenti correnti a altre imprese;31/10/2018
827;1;0;30;30;BANCA MONTE DEI PASCHI DI SIENA; ;pagamento mav per procedura negoziata affidamento servizio mensa;31/10/2018;1043;8;151;1;Spese correnti;3;Acquisto di beni e servizi;1;Acquisto di beni;2;Altri beni di consumo;14;Stampati specialistici;31/10/2018
828;1;0;47;47;MARA MARGHERITA; ;RESTITUZIONE SOMME PER TRIBUTO NON DOVUTO;31/10/2018;1029;0;152;1;Spese correnti;4;Trasferimenti correnti;2;Trasferimenti correnti a Famiglie;2;Interventi assistenziali;999;Altri assegni e sussidi assistenziali;31/10/2018
831;1;0;480;480;CROCE BIANCA; ;CONTRIBUTO CROCE BIANCA;05/11/2018;1925;0;155;1;Spese correnti;4;Trasferimenti correnti;4;Trasferimenti correnti a Istituzioni Sociali Private;1;Trasferimenti correnti a Istituzioni Sociali Private;1;Trasferimenti correnti a Istituzioni Sociali Private;05/11/2018
832;1;0;1.375,28;1.375,28;IL PICCOLO PRINCIPE;Z2B14002E4;SALDO Fatt.n. 232PA /2018  del 24/10/2018 SERVIZI IN RETE CIG-Z2B14002E4 periodo SETTEMBRE 2018;05/11/2018;1902;0;74;1;Spese correnti;3;Acquisto di beni e servizi;2;Acquisto di servizi;15;Contratti di servizio pubblico;9;Contratti di servizio di assistenza sociale domiciliare;05/11/2018
833;1;0;-7.053,90;7.122,15;IL PICCOLO PRINCIPE;65708347BF;SALDO Fatt.n. 226PA /2018  del 22/10/2018 SERVIZI IN RETE CIG-65708347BF periodo LUGLIO AGOSTO 2018;05/11/2018;1902;0;82;1;Spese correnti;3;Acquisto di beni e servizi;2;Acquisto di servizi;15;Contratti di servizio pubblico;9;Contratti di servizio di assistenza sociale domiciliare;05/11/2018
833;2;0;7.053,90;7.122,15;IL PICCOLO PRINCIPE;65708347BF;SALDO Fatt.n. 205PA /2018  del 28/09/2018 SERVIZI IN RETE CIG-65708347BF periodo LUGLIO AGOSTO 2018;05/11/2018;1902;0;82;1;Spese correnti;3;Acquisto di beni e servizi;2;Acquisto di servizi;15;Contratti di servizio pubblico;9;Contratti di servizio di assistenza sociale domiciliare;05/11/2018
833;3;0;7.122,15;7.122,15;IL PICCOLO PRINCIPE;65708347BF;SALDO Fatt.n. 227PA /2018  del 22/10/2018 SERVIZI IN RETE CIG-65708347BF periodo LUGLIO AGOSTO 2018;05/11/2018;1902;0;82;1;Spese correnti;3;Acquisto di beni e servizi;2;Acquisto di servizi;15;Contratti di servizio pubblico;9;Contratti di servizio di assistenza sociale domiciliare;05/11/2018
834;1;0;1.286,56;1.286,56;BOSINCO LUIGI;Z341F3FOCC;SALDO Fatt.n. FATTPA 26_18  del 02/11/2018;05/11/2018;1400;0;132;1;Spese correnti;3;Acquisto di beni e servizi;2;Acquisto di servizi;15;Contratti di servizio pubblico;2;Contratti di servizio di trasporto scolastico;05/11/2018
835;1;0;-539,82;53,98;BOSINCO LUIGI;Z341F3FOCC;SALDO Fatt.n. FATTPA 23_18  del 25/10/2018;05/11/2018;1400;0;132;1;Spese correnti;3;Acquisto di beni e servizi;2;Acquisto di servizi;15;Contratti di servizio pubblico;2;Contratti di servizio di trasporto scolastico;05/11/2018
835;2;0;593,8;53,98;BOSINCO LUIGI;Z341F3FOCC;SALDO Fatt.n. FATTPA 25_18  del 02/11/2018;05/11/2018;1400;0;132;1;Spese correnti;3;Acquisto di beni e servizi;2;Acquisto di servizi;15;Contratti di servizio pubblico;2;Contratti di servizio di trasporto scolastico;05/11/2018
836;1;0;2.465,78;2.465,78;GLOBAL POWER;Z6E2234C3D;ACCONTO Fatt.n. V0/124362  del 01/10/2018 Fattura Energia Elettrica;05/11/2018;1937;1;22;1;Spese correnti;3;Acquisto di beni e servizi;2;Acquisto di servizi;5;Utenze e canoni;4;Energia elettrica;05/11/2018
837;1;0;542,47;542,47;GLOBAL POWER;Z6E2234C3D;SALDO Fatt.n. V0/124362  del 01/10/2018 Fattura Energia Elettrica;05/11/2018;1937;1;22;1;Spese correnti;3;Acquisto di beni e servizi;2;Acquisto di servizi;5;Utenze e canoni;4;Energia elettrica;05/11/2018
838;1;0;889,68;889,68;GLOBAL POWER;Z6E2234C3D;ACCONTO Fatt.n. V0/124363  del 01/10/2018 Fattura Energia Elettrica;06/11/2018;1366;0;28;1;Spese correnti;3;Acquisto di beni e servizi;2;Acquisto di servizi;5;Utenze e canoni;4;Energia elettrica;06/11/2018
839;1;0;498,83;498,83;GLOBAL POWER;Z6E2234C3D;ACCONTO Fatt.n. V0/124363  del 01/10/2018 Fattura Energia Elettrica;06/11/2018;1937;1;22;1;Spese correnti;3;Acquisto di beni e servizi;2;Acquisto di servizi;5;Utenze e canoni;4;Energia elettrica;06/11/2018
840;1;0;309,87;309,87;GLOBAL POWER;Z6E2234C3D;SALDO Fatt.n. V0/124363  del 01/10/2018 Fattura Energia Elettrica;06/11/2018;1829;0;23;1;Spese correnti;3;Acquisto di beni e servizi;2;Acquisto di servizi;5;Utenze e canoni;4;Energia elettrica;06/11/2018
841;1;0;495;1.539,27;; ;RIMBORSO SPESE VIAGGIO STUDENTI SCUOLA SECONDARIA;06/11/2018;1418;0;140;1;Spese correnti;4;Trasferimenti correnti;2;Trasferimenti correnti a Famiglie;2;Interventi assistenziali;999;Altri assegni e sussidi assistenziali;06/11/2018
841;2;0;441;1.539,27;; ;RIMBORSO SPESE VIAGGIO STUDENTI SCUOLA SECONDARIA;06/11/2018;1418;0;140;1;Spese correnti;4;Trasferimenti correnti;2;Trasferimenti correnti a Famiglie;2;Interventi assistenziali;999;Altri assegni e sussidi assistenziali;06/11/2018
841;3;0;603,27;1.539,27;; ;RIMBORSO SPESE VIAGGIO STUDENTI SCUOLA SECONDARIA;06/11/2018;1418;0;140;1;Spese correnti;4;Trasferimenti correnti;2;Trasferimenti correnti a Famiglie;2;Interventi assistenziali;999;Altri assegni e sussidi assistenziali;06/11/2018
842;1;0;630;1.477,00;; ;RIMBORSO SPESE VIAGGIO STUDENTI SCUOLA SECONDARIA;06/11/2018;1418;0;140;1;Spese correnti;4;Trasferimenti correnti;2;Trasferimenti correnti a Famiglie;2;Interventi assistenziali;999;Altri assegni e sussidi assistenziali;06/11/2018
842;2;0;567;1.477,00;; ;RIMBORSO SPESE VIAGGIO STUDENTI SCUOLA SECONDARIA;06/11/2018;1418;0;140;1;Spese correnti;4;Trasferimenti correnti;2;Trasferimenti correnti a Famiglie;2;Interventi assistenziali;999;Altri assegni e sussidi assistenziali;06/11/2018
842;3;0;280;1.477,00;; ;RIMBORSO SPESE VIAGGIO STUDENTI SCUOLA SECONDARIA;06/11/2018;1418;0;140;1;Spese correnti;4;Trasferimenti correnti;2;Trasferimenti correnti a Famiglie;2;Interventi assistenziali;999;Altri assegni e sussidi assistenziali;06/11/2018
843;1;0;902,7;1.525,50;; ;RIMBORSO SPESE VIAGGIO STUDENTI SCUOLA SECONDARIA;06/11/2018;1418;0;140;1;Spese correnti;4;Trasferimenti correnti;2;Trasferimenti correnti a Famiglie;2;Interventi assistenziali;999;Altri assegni e sussidi assistenziali;06/11/2018
843;2;0;441;1.525,50;; ;RIMBORSO SPESE VIAGGIO STUDENTI SCUOLA SECONDARIA;06/11/2018;1418;0;140;1;Spese correnti;4;Trasferimenti correnti;2;Trasferimenti correnti a Famiglie;2;Interventi assistenziali;999;Altri assegni e sussidi assistenziali;06/11/2018
843;3;0;181,8;1.525,50;; ;RIMBORSO SPESE VIAGGIO STUDENTI SCUOLA SECONDARIA;06/11/2018;1418;0;140;1;Spese correnti;4;Trasferimenti correnti;2;Trasferimenti correnti a Famiglie;2;Interventi assistenziali;999;Altri assegni e sussidi assistenziali;06/11/2018
844;1;0;200,8;707;; ;RIMBORSO SPESE VIAGGIO STUDENTI SCUOLA SECONDARIA;06/11/2018;1418;0;140;1;Spese correnti;4;Trasferimenti correnti;2;Trasferimenti correnti a Famiglie;2;Interventi assistenziali;999;Altri assegni e sussidi assistenziali;06/11/2018
844;2;0;350;707;; ;RIMBORSO SPESE VIAGGIO STUDENTI SCUOLA SECONDARIA;06/11/2018;1418;0;140;1;Spese correnti;4;Trasferimenti correnti;2;Trasferimenti correnti a Famiglie;2;Interventi assistenziali;999;Altri assegni e sussidi assistenziali;06/11/2018
844;3;0;156,2;707;; ;RIMBORSO SPESE VIAGGIO STUDENTI SCUOLA SECONDARIA;06/11/2018;1418;0;140;1;Spese correnti;4;Trasferimenti correnti;2;Trasferimenti correnti a Famiglie;2;Interventi assistenziali;999;Altri assegni e sussidi assistenziali;06/11/2018
845;1;0;755,1;1.237,14;; ;RIMBORSO SPESE VIAGGIO STUDENTI SCUOLA SECONDARIA;06/11/2018;1418;0;140;1;Spese correnti;4;Trasferimenti correnti;2;Trasferimenti correnti a Famiglie;2;Interventi assistenziali;999;Altri assegni e sussidi assistenziali;06/11/2018
845;2;0;301,32;1.237,14;; ;RIMBORSO SPESE VIAGGIO STUDENTI SCUOLA SECONDARIA;06/11/2018;1418;0;140;1;Spese correnti;4;Trasferimenti correnti;2;Trasferimenti correnti a Famiglie;2;Interventi assistenziali;999;Altri assegni e sussidi assistenziali;06/11/2018
845;3;0;180,72;1.237,14;; ;RIMBORSO SPESE VIAGGIO STUDENTI SCUOLA SECONDARIA;06/11/2018;1418;0;140;1;Spese correnti;4;Trasferimenti correnti;2;Trasferimenti correnti a Famiglie;2;Interventi assistenziali;999;Altri assegni e sussidi assistenziali;06/11/2018
846;1;0;765;4.069,60;; ;RIMBORSO SPESE VIAGGIO STUDENTI SCUOLA SECONDARIA;06/11/2018;1418;0;140;1;Spese correnti;4;Trasferimenti correnti;2;Trasferimenti correnti a Famiglie;2;Interventi assistenziali;999;Altri assegni e sussidi assistenziali;06/11/2018
846;2;0;1.954,70;4.069,60;; ;RIMBORSO SPESE VIAGGIO STUDENTI SCUOLA SECONDARIA;06/11/2018;1418;0;140;1;Spese correnti;4;Trasferimenti correnti;2;Trasferimenti correnti a Famiglie;2;Interventi assistenziali;999;Altri assegni e sussidi assistenziali;06/11/2018
846;3;0;682,7;4.069,60;; ;RIMBORSO SPESE VIAGGIO STUDENTI SCUOLA SECONDARIA;06/11/2018;1418;0;140;1;Spese correnti;4;Trasferimenti correnti;2;Trasferimenti correnti a Famiglie;2;Interventi assistenziali;999;Altri assegni e sussidi assistenziali;06/11/2018
846;4;0;667,2;4.069,60;; ;RIMBORSO SPESE VIAGGIO STUDENTI SCUOLA SECONDARIA;06/11/2018;1418;0;140;1;Spese correnti;4;Trasferimenti correnti;2;Trasferimenti correnti a Famiglie;2;Interventi assistenziali;999;Altri assegni e sussidi assistenziali;06/11/2018
847;1;0;736,74;736,74;; ;RIMBORSO SPESE VIAGGIO STUDENTI SCUOLA SECONDARIA;06/11/2018;1418;0;140;1;Spese correnti;4;Trasferimenti correnti;2;Trasferimenti correnti a Famiglie;2;Interventi assistenziali;999;Altri assegni e sussidi assistenziali;06/11/2018
848;1;0;13.240,00;13.240,00;COMUNE DI OSILO; ;GESTIONE SET saldo anno 2018;09/11/2018;1920;10;64;1;Spese correnti;4;Trasferimenti correnti;1;Trasferimenti correnti a Amministrazioni Pubbliche;2;Trasferimenti correnti a Amministrazioni Locali;3;Trasferimenti correnti a Comuni;09/11/2018
854;1;0;1.626,67;1.626,67;CHESSA ALESSANDRO;Z9A1CFA2F9;SALDO Fatt.n. FATTPA 98_18  del 02/11/2018 Vs.dare per manutenzione ordinaria impianto di illuminazione pubblica ed impianti elettrici immobili comunali OTTOBRE 2018;09/11/2018;1939;0;34;1;Spese correnti;3;Acquisto di beni e servizi;2;Acquisto di servizi;9;Manutenzione ordinaria e riparazioni;8;Manutenzione ordinaria e riparazioni di beni immobili;09/11/2018
855;1;0;7,82;32,96;POSTE ITALIANE;Z2E22DE889;SALDO Fatt.n. 8718329448  del 02/10/2018 Fattura Elettronica relativa all'Identificativo Rendiconto 2099258162;09/11/2018;1043;11;51;1;Spese correnti;3;Acquisto di beni e servizi;2;Acquisto di servizi;16;Servizi amministrativi;2;Spese postali;09/11/2018
855;2;0;25,14;32,96;POSTE ITALIANE;Z2E22DE889;SALDO Fatt.n. 8718367018  del 06/11/2018 Fattura Elettronica relativa all'Identificativo Rendiconto 2099489657 B- 055218871836701858;09/11/2018;1043;11;51;1;Spese correnti;3;Acquisto di beni e servizi;2;Acquisto di servizi;16;Servizi amministrativi;2;Spese postali;09/11/2018
856;1;0;6.000,00;6.000,00;COMUNE DI OSILO; ;trasferimento somme assistenza domiciliare;09/11/2018;1920;11;255;1;Spese correnti;4;Trasferimenti correnti;1;Trasferimenti correnti a Amministrazioni Pubbliche;2;Trasferimenti correnti a Amministrazioni Locali;3;Trasferimenti correnti a Comuni;09/11/2018
857;1;0;13.000,00;13.000,00;COMUNE DI OSILO; ;ASSISTENZA DOMICILIARE ANZIANI;09/11/2018;1920;11;65;1;Spese correnti;4;Trasferimenti correnti;1;Trasferimenti correnti a Amministrazioni Pubbliche;2;Trasferimenti correnti a Amministrazioni Locali;3;Trasferimenti correnti a Comuni;09/11/2018
858;1;0;126,29;658,07;OMESSO NOMINATIVO NEL RISPETTO DELLA NORMATIVA SULLA PROTEZIONE DATI PERSONALI; ;L.162/98 OTTOBRE;09/11/2018;1927;3;87;1;Spese correnti;4;Trasferimenti correnti;2;Trasferimenti correnti a Famiglie;2;Interventi assistenziali;999;Altri assegni e sussidi assistenziali;09/11/2018
858;2;0;375;658,07;OMESSO NOMINATIVO NEL RISPETTO DELLA NORMATIVA SULLA PROTEZIONE DATI PERSONALI; ;L.162/98 OTTOBRE;09/11/2018;1927;3;87;1;Spese correnti;4;Trasferimenti correnti;2;Trasferimenti correnti a Famiglie;2;Interventi assistenziali;999;Altri assegni e sussidi assistenziali;09/11/2018
858;3;0;156,78;658,07;OMESSO NOMINATIVO NEL RISPETTO DELLA NORMATIVA SULLA PROTEZIONE DATI PERSONALI; ;L.162/98 OTTOBRE;09/11/2018;1927;3;87;1;Spese correnti;4;Trasferimenti correnti;2;Trasferimenti correnti a Famiglie;2;Interventi assistenziali;999;Altri assegni e sussidi assistenziali;09/11/2018
859;1;0;117,5;495,61;OMESSO NOMINATIVO NEL RISPETTO DELLA NORMATIVA SULLA PROTEZIONE DATI PERSONALI; ;L.162/98 OTTOBRE;09/11/2018;1927;3;87;1;Spese correnti;4;Trasferimenti correnti;2;Trasferimenti correnti a Famiglie;2;Interventi assistenziali;999;Altri assegni e sussidi assistenziali;09/11/2018
859;2;0;125,55;495,61;OMESSO NOMINATIVO NEL RISPETTO DELLA NORMATIVA SULLA PROTEZIONE DATI PERSONALI; ;L.162/98 OTTOBRE;09/11/2018;1927;3;87;1;Spese correnti;4;Trasferimenti correnti;2;Trasferimenti correnti a Famiglie;2;Interventi assistenziali;999;Altri assegni e sussidi assistenziali;09/11/2018
859;3;0;252,56;495,61;OMESSO NOMINATIVO NEL RISPETTO DELLA NORMATIVA SULLA PROTEZIONE DATI PERSONALI; ;L.162/98 OTTOBRE;09/11/2018;1927;3;87;1;Spese correnti;4;Trasferimenti correnti;2;Trasferimenti correnti a Famiglie;2;Interventi assistenziali;999;Altri assegni e sussidi assistenziali;09/11/2018
860;1;0;128,64;353,76;OMESSO NOMINATIVO NEL RISPETTO DELLA NORMATIVA SULLA PROTEZIONE DATI PERSONALI; ;L.162/98 OTTOBRE;09/11/2018;1927;3;87;1;Spese correnti;4;Trasferimenti correnti;2;Trasferimenti correnti a Famiglie;2;Interventi assistenziali;999;Altri assegni e sussidi assistenziali;09/11/2018
860;2;0;132,66;353,76;OMESSO NOMINATIVO NEL RISPETTO DELLA NORMATIVA SULLA PROTEZIONE DATI PERSONALI; ;L.162/98 OTTOBRE;09/11/2018;1927;3;87;1;Spese correnti;4;Trasferimenti correnti;2;Trasferimenti correnti a Famiglie;2;Interventi assistenziali;999;Altri assegni e sussidi assistenziali;09/11/2018
860;3;0;92,46;353,76;OMESSO NOMINATIVO NEL RISPETTO DELLA NORMATIVA SULLA PROTEZIONE DATI PERSONALI; ;L.162/98 OTTOBRE;09/11/2018;1927;3;87;1;Spese correnti;4;Trasferimenti correnti;2;Trasferimenti correnti a Famiglie;2;Interventi assistenziali;999;Altri assegni e sussidi assistenziali;09/11/2018
861;1;0;209,04;1.387,83;OMESSO NOMINATIVO NEL RISPETTO DELLA NORMATIVA SULLA PROTEZIONE DATI PERSONALI; ;L.162/98 OTTOBRE;09/11/2018;1927;3;87;1;Spese correnti;4;Trasferimenti correnti;2;Trasferimenti correnti a Famiglie;2;Interventi assistenziali;999;Altri assegni e sussidi assistenziali;09/11/2018
861;2;0;430,33;1.387,83;OMESSO NOMINATIVO NEL RISPETTO DELLA NORMATIVA SULLA PROTEZIONE DATI PERSONALI; ;L.162/98 OTTOBRE;09/11/2018;1927;3;87;1;Spese correnti;4;Trasferimenti correnti;2;Trasferimenti correnti a Famiglie;2;Interventi assistenziali;999;Altri assegni e sussidi assistenziali;09/11/2018
861;3;0;748,46;1.387,83;OMESSO NOMINATIVO NEL RISPETTO DELLA NORMATIVA SULLA PROTEZIONE DATI PERSONALI; ;L.162/98 OTTOBRE;09/11/2018;1927;3;87;1;Spese correnti;4;Trasferimenti correnti;2;Trasferimenti correnti a Famiglie;2;Interventi assistenziali;999;Altri assegni e sussidi assistenziali;09/11/2018
862;1;0;181,83;747,89;OMESSO NOMINATIVO NEL RISPETTO DELLA NORMATIVA SULLA PROTEZIONE DATI PERSONALI; ;L162/98 OTTOBRE;09/11/2018;1927;3;87;1;Spese correnti;4;Trasferimenti correnti;2;Trasferimenti correnti a Famiglie;2;Interventi assistenziali;999;Altri assegni e sussidi assistenziali;09/11/2018
862;2;0;250,58;747,89;OMESSO NOMINATIVO NEL RISPETTO DELLA NORMATIVA SULLA PROTEZIONE DATI PERSONALI; ;L162/98 OTTOBRE;09/11/2018;1927;3;87;1;Spese correnti;4;Trasferimenti correnti;2;Trasferimenti correnti a Famiglie;2;Interventi assistenziali;999;Altri assegni e sussidi assistenziali;09/11/2018
862;3;0;315,48;747,89;OMESSO NOMINATIVO NEL RISPETTO DELLA NORMATIVA SULLA PROTEZIONE DATI PERSONALI; ;L162/98 OTTOBRE;09/11/2018;1927;3;87;1;Spese correnti;4;Trasferimenti correnti;2;Trasferimenti correnti a Famiglie;2;Interventi assistenziali;999;Altri assegni e sussidi assistenziali;09/11/2018
863;1;0;200;651,51;OMESSO NOMINATIVO NEL RISPETTO DELLA NORMATIVA SULLA PROTEZIONE DATI PERSONALI; ;L.162/98 OTTOBRE2018;09/11/2018;1927;3;87;1;Spese correnti;4;Trasferimenti correnti;2;Trasferimenti correnti a Famiglie;2;Interventi assistenziali;999;Altri assegni e sussidi assistenziali;09/11/2018
863;2;0;284,85;651,51;OMESSO NOMINATIVO NEL RISPETTO DELLA NORMATIVA SULLA PROTEZIONE DATI PERSONALI; ;L.162/98 OTTOBRE2018;09/11/2018;1927;3;87;1;Spese correnti;4;Trasferimenti correnti;2;Trasferimenti correnti a Famiglie;2;Interventi assistenziali;999;Altri assegni e sussidi assistenziali;09/11/2018
863;3;0;166,66;651,51;OMESSO NOMINATIVO NEL RISPETTO DELLA NORMATIVA SULLA PROTEZIONE DATI PERSONALI; ;L.162/98 OTTOBRE2018;09/11/2018;1927;3;87;1;Spese correnti;4;Trasferimenti correnti;2;Trasferimenti correnti a Famiglie;2;Interventi assistenziali;999;Altri assegni e sussidi assistenziali;09/11/2018
864;1;0;166,4;786;OMESSO NOMINATIVO NEL RISPETTO DELLA NORMATIVA SULLA PROTEZIONE DATI PERSONALI; ;L.182/98 OTTOBRE;09/11/2018;1927;3;87;1;Spese correnti;4;Trasferimenti correnti;2;Trasferimenti correnti a Famiglie;2;Interventi assistenziali;999;Altri assegni e sussidi assistenziali;09/11/2018
864;2;0;477,43;786;OMESSO NOMINATIVO NEL RISPETTO DELLA NORMATIVA SULLA PROTEZIONE DATI PERSONALI; ;L.182/98 OTTOBRE;09/11/2018;1927;3;87;1;Spese correnti;4;Trasferimenti correnti;2;Trasferimenti correnti a Famiglie;2;Interventi assistenziali;999;Altri assegni e sussidi assistenziali;09/11/2018
864;3;0;142,17;786;OMESSO NOMINATIVO NEL RISPETTO DELLA NORMATIVA SULLA PROTEZIONE DATI PERSONALI; ;L.182/98 OTTOBRE;09/11/2018;1927;3;87;1;Spese correnti;4;Trasferimenti correnti;2;Trasferimenti correnti a Famiglie;2;Interventi assistenziali;999;Altri assegni e sussidi assistenziali;09/11/2018
865;1;0;302,22;302,22;MINISTERO INTERNO; ;COMUNE DI LAERRU CORRISPETTIVO N.18 C. IDENTITA' 01/09/2018 AL 31/10/2018;12/11/2018;1039;0;157;1;Spese correnti;3;Acquisto di beni e servizi;2;Acquisto di servizi;16;Servizi amministrativi;999;Altre spese per servizi amministrativi;12/11/2018
866;1;0;1.481,58;1.481,58;PERSONALE DIVERSO (Confr.Allegato); ;STIPENDI MESE DI: NOVEMBRE 18;12/11/2018;1001;0;0;1;Spese correnti;3;Acquisto di beni e servizi;2;Acquisto di servizi;1;Organi e incarichi istituzionali dell'amministrazione;1;Organi istituzionali dell'amministrazione - Indennità;12/11/2018
867;1;0;125,94;125,94;TESORERIA PROVINCIALE DELLO STATO; ;VERS. IMPOSTE MESE: NOVEMBRE 18 PER I.R.A.P.;12/11/2018;1001;0;0;1;Spese correnti;3;Acquisto di beni e servizi;2;Acquisto di servizi;1;Organi e incarichi istituzionali dell'amministrazione;1;Organi istituzionali dell'amministrazione - Indennità;12/11/2018
894;1;0;150;330;; ;REIS;13/11/2018;1912;3;153;1;Spese correnti;4;Trasferimenti correnti;2;Trasferimenti correnti a Famiglie;2;Interventi assistenziali;999;Altri assegni e sussidi assistenziali;13/11/2018
894;2;0;60;330;; ;REIS;13/11/2018;1912;3;153;1;Spese correnti;4;Trasferimenti correnti;2;Trasferimenti correnti a Famiglie;2;Interventi assistenziali;999;Altri assegni e sussidi assistenziali;13/11/2018
894;3;0;60;330;; ;REIS;13/11/2018;1912;3;153;1;Spese correnti;4;Trasferimenti correnti;2;Trasferimenti correnti a Famiglie;2;Interventi assistenziali;999;Altri assegni e sussidi assistenziali;13/11/2018
894;4;0;60;330;; ;REIS;13/11/2018;1912;3;153;1;Spese correnti;4;Trasferimenti correnti;2;Trasferimenti correnti a Famiglie;2;Interventi assistenziali;999;Altri assegni e sussidi assistenziali;13/11/2018
895;1;0;150;450;; ;REIS;13/11/2018;1912;3;153;1;Spese correnti;4;Trasferimenti correnti;2;Trasferimenti correnti a Famiglie;2;Interventi assistenziali;999;Altri assegni e sussidi assistenziali;13/11/2018
895;2;0;90;450;; ;REIS;13/11/2018;1912;3;153;1;Spese correnti;4;Trasferimenti correnti;2;Trasferimenti correnti a Famiglie;2;Interventi assistenziali;999;Altri assegni e sussidi assistenziali;13/11/2018
895;3;0;150;450;; ;REIS;13/11/2018;1912;3;153;1;Spese correnti;4;Trasferimenti correnti;2;Trasferimenti correnti a Famiglie;2;Interventi assistenziali;999;Altri assegni e sussidi assistenziali;13/11/2018
895;4;0;60;450;; ;REIS;13/11/2018;1912;3;153;1;Spese correnti;4;Trasferimenti correnti;2;Trasferimenti correnti a Famiglie;2;Interventi assistenziali;999;Altri assegni e sussidi assistenziali;13/11/2018
896;1;0;400;1.400,00;; ;REIS;13/11/2018;1912;3;153;1;Spese correnti;4;Trasferimenti correnti;2;Trasferimenti correnti a Famiglie;2;Interventi assistenziali;999;Altri assegni e sussidi assistenziali;13/11/2018
896;2;0;400;1.400,00;; ;REIS;13/11/2018;1912;3;153;1;Spese correnti;4;Trasferimenti correnti;2;Trasferimenti correnti a Famiglie;2;Interventi assistenziali;999;Altri assegni e sussidi assistenziali;13/11/2018
896;3;0;300;1.400,00;; ;REIS;13/11/2018;1912;3;153;1;Spese correnti;4;Trasferimenti correnti;2;Trasferimenti correnti a Famiglie;2;Interventi assistenziali;999;Altri assegni e sussidi assistenziali;13/11/2018
896;4;0;300;1.400,00;; ;REIS;13/11/2018;1912;3;153;1;Spese correnti;4;Trasferimenti correnti;2;Trasferimenti correnti a Famiglie;2;Interventi assistenziali;999;Altri assegni e sussidi assistenziali;13/11/2018
897;1;0;200;1.200,00;; ;REIS;13/11/2018;1912;3;153;1;Spese correnti;4;Trasferimenti correnti;2;Trasferimenti correnti a Famiglie;2;Interventi assistenziali;999;Altri assegni e sussidi assistenziali;13/11/2018
897;2;0;300;1.200,00;; ;REIS;13/11/2018;1912;3;153;1;Spese correnti;4;Trasferimenti correnti;2;Trasferimenti correnti a Famiglie;2;Interventi assistenziali;999;Altri assegni e sussidi assistenziali;13/11/2018
897;3;0;300;1.200,00;; ;REIS;13/11/2018;1912;3;153;1;Spese correnti;4;Trasferimenti correnti;2;Trasferimenti correnti a Famiglie;2;Interventi assistenziali;999;Altri assegni e sussidi assistenziali;13/11/2018
897;4;0;400;1.200,00;; ;REIS;13/11/2018;1912;3;153;1;Spese correnti;4;Trasferimenti correnti;2;Trasferimenti correnti a Famiglie;2;Interventi assistenziali;999;Altri assegni e sussidi assistenziali;13/11/2018
898;1;0;400;1.800,00;; ;REIS;13/11/2018;1912;3;153;1;Spese correnti;4;Trasferimenti correnti;2;Trasferimenti correnti a Famiglie;2;Interventi assistenziali;999;Altri assegni e sussidi assistenziali;13/11/2018
898;2;0;400;1.800,00;; ;REIS;13/11/2018;1912;3;153;1;Spese correnti;4;Trasferimenti correnti;2;Trasferimenti correnti a Famiglie;2;Interventi assistenziali;999;Altri assegni e sussidi assistenziali;13/11/2018
898;3;0;500;1.800,00;; ;REIS;13/11/2018;1912;3;153;1;Spese correnti;4;Trasferimenti correnti;2;Trasferimenti correnti a Famiglie;2;Interventi assistenziali;999;Altri assegni e sussidi assistenziali;13/11/2018
898;4;0;500;1.800,00;; ;REIS;13/11/2018;1912;3;153;1;Spese correnti;4;Trasferimenti correnti;2;Trasferimenti correnti a Famiglie;2;Interventi assistenziali;999;Altri assegni e sussidi assistenziali;13/11/2018
899;1;0;500;1.900,00;; ;REIS;13/11/2018;1912;3;153;1;Spese correnti;4;Trasferimenti correnti;2;Trasferimenti correnti a Famiglie;2;Interventi assistenziali;999;Altri assegni e sussidi assistenziali;13/11/2018
899;2;0;500;1.900,00;; ;REIS;13/11/2018;1912;3;153;1;Spese correnti;4;Trasferimenti correnti;2;Trasferimenti correnti a Famiglie;2;Interventi assistenziali;999;Altri assegni e sussidi assistenziali;13/11/2018
899;3;0;500;1.900,00;; ;REIS;13/11/2018;1912;3;153;1;Spese correnti;4;Trasferimenti correnti;2;Trasferimenti correnti a Famiglie;2;Interventi assistenziali;999;Altri assegni e sussidi assistenziali;13/11/2018
899;4;0;400;1.900,00;; ;REIS;13/11/2018;1912;3;153;1;Spese correnti;4;Trasferimenti correnti;2;Trasferimenti correnti a Famiglie;2;Interventi assistenziali;999;Altri assegni e sussidi assistenziali;13/11/2018
900;1;0;534,6;534,6;TURRA GAVINA; ;rimborso spese viaggio settembre ottobre 2018;14/11/2018;1024;3;160;1;Spese correnti;3;Acquisto di beni e servizi;2;Acquisto di servizi;2;Organizzazione eventi, pubblicita` e servizi per trasferta;1;Rimborso per viaggio e trasloco;14/11/2018
901;1;0;315;915,32;OMESSO NOMINATIVO NEL RISPETTO DELLA NORMATIVA SULLA PROTEZIONE DATI PERSONALI; ;l.162/98 ottobre;14/11/2018;1927;3;87;1;Spese correnti;4;Trasferimenti correnti;2;Trasferimenti correnti a Famiglie;2;Interventi assistenziali;999;Altri assegni e sussidi assistenziali;14/11/2018
901;2;0;277,76;915,32;OMESSO NOMINATIVO NEL RISPETTO DELLA NORMATIVA SULLA PROTEZIONE DATI PERSONALI; ;l.162/98 ottobre;14/11/2018;1927;3;87;1;Spese correnti;4;Trasferimenti correnti;2;Trasferimenti correnti a Famiglie;2;Interventi assistenziali;999;Altri assegni e sussidi assistenziali;14/11/2018
901;3;0;322,56;915,32;OMESSO NOMINATIVO NEL RISPETTO DELLA NORMATIVA SULLA PROTEZIONE DATI PERSONALI; ;l.162/98 ottobre;14/11/2018;1927;3;87;1;Spese correnti;4;Trasferimenti correnti;2;Trasferimenti correnti a Famiglie;2;Interventi assistenziali;999;Altri assegni e sussidi assistenziali;14/11/2018
902;1;0;250,88;605,22;OMESSO NOMINATIVO NEL RISPETTO DELLA NORMATIVA SULLA PROTEZIONE DATI PERSONALI; ;l.162/98 ottobre 2018;14/11/2018;1927;3;87;1;Spese correnti;4;Trasferimenti correnti;2;Trasferimenti correnti a Famiglie;2;Interventi assistenziali;999;Altri assegni e sussidi assistenziali;14/11/2018
902;2;0;170,24;605,22;OMESSO NOMINATIVO NEL RISPETTO DELLA NORMATIVA SULLA PROTEZIONE DATI PERSONALI; ;l.162/98 ottobre 2018;14/11/2018;1927;3;87;1;Spese correnti;4;Trasferimenti correnti;2;Trasferimenti correnti a Famiglie;2;Interventi assistenziali;999;Altri assegni e sussidi assistenziali;14/11/2018
902;3;0;184,1;605,22;OMESSO NOMINATIVO NEL RISPETTO DELLA NORMATIVA SULLA PROTEZIONE DATI PERSONALI; ;l.162/98 ottobre 2018;14/11/2018;1927;3;87;1;Spese correnti;4;Trasferimenti correnti;2;Trasferimenti correnti a Famiglie;2;Interventi assistenziali;999;Altri assegni e sussidi assistenziali;14/11/2018
903;1;0;241,92;312,8;OMESSO NOMINATIVO NEL RISPETTO DELLA NORMATIVA SULLA PROTEZIONE DATI PERSONALI; ;l.162/98 ottobre;14/11/2018;1927;3;87;1;Spese correnti;4;Trasferimenti correnti;2;Trasferimenti correnti a Famiglie;2;Interventi assistenziali;999;Altri assegni e sussidi assistenziali;14/11/2018
903;2;0;70,88;312,8;OMESSO NOMINATIVO NEL RISPETTO DELLA NORMATIVA SULLA PROTEZIONE DATI PERSONALI; ;l.162/98 ottobre;14/11/2018;1927;3;87;1;Spese correnti;4;Trasferimenti correnti;2;Trasferimenti correnti a Famiglie;2;Interventi assistenziali;999;Altri assegni e sussidi assistenziali;14/11/2018
904;1;0;132,9;132,9;OMESSO NOMINATIVO NEL RISPETTO DELLA NORMATIVA SULLA PROTEZIONE DATI PERSONALI; ;l.162/98 ottobre 2018;14/11/2018;1927;3;87;1;Spese correnti;4;Trasferimenti correnti;2;Trasferimenti correnti a Famiglie;2;Interventi assistenziali;999;Altri assegni e sussidi assistenziali;14/11/2018
905;1;0;1.829,49;1.829,49;OMESSO NOMINATIVO NEL RISPETTO DELLA NORMATIVA SULLA PROTEZIONE DATI PERSONALI;Z791CFA3E2;SALDO Fatt.n. 9/2018/PA  del 09/11/2018;14/11/2018;1699;0;76;1;Spese correnti;3;Acquisto di beni e servizi;2;Acquisto di servizi;9;Manutenzione ordinaria e riparazioni;8;Manutenzione ordinaria e riparazioni di beni immobili;14/11/2018
906;1;0;1.164,91;1.164,91;TESTONI SRL;ZBC259C2F0;SALDO Fatt.n. 700462  del 07/11/2018 Consegna a: COMUNE DI LAERRU VIA GRAZIA DELEDDA 4 LAERRU 07030 SS;14/11/2018;1043;0;158;1;Spese correnti;3;Acquisto di beni e servizi;1;Acquisto di beni;2;Altri beni di consumo;2;Carburanti, combustibili e lubrificanti;14/11/2018
907;1;0;1.164,91;1.164,91;TESTONI SRL;ZBC259C2F0;SALDO Fatt.n. 700464  del 07/11/2018 Consegna a: CENTRO DI AGGREGAZIONE SOCIALE VIA GRAZIA DELEDDA 4 LAERRU 07030 SS;14/11/2018;1514;0;159;1;Spese correnti;3;Acquisto di beni e servizi;1;Acquisto di beni;2;Altri beni di consumo;2;Carburanti, combustibili e lubrificanti;14/11/2018
909;1;0;1.307,19;1.307,19;TESTONI SRL;ZBC259C2F0;ACCONTO Fatt.n. 700463  del 07/11/2018 Consegna a: SCUOLA MATERNA VIA GRAZIA DELEDDA 4 LAERRU 07030 SS;15/11/2018;1344;1;161;1;Spese correnti;3;Acquisto di beni e servizi;1;Acquisto di beni;2;Altri beni di consumo;2;Carburanti, combustibili e lubrificanti;15/11/2018
910;1;0;440,17;440,17;TESTONI SRL;ZBC259C2F0;SALDO Fatt.n. 700463  del 07/11/2018 Consegna a: SCUOLA MATERNA VIA GRAZIA DELEDDA 4 LAERRU 07030 SS;15/11/2018;1043;0;158;1;Spese correnti;3;Acquisto di beni e servizi;1;Acquisto di beni;2;Altri beni di consumo;2;Carburanti, combustibili e lubrificanti;15/11/2018
911;1;0;3.350,94;3.350,94;SILODEMA SOCIETA' COOPERATIVA SOCIALE A R.L.;7587760F2B;SALDO Fatt.n. FATTPA 42_18  del 05/11/2018 Servizio mensa svolto nel mese di ottobre  CIG 7585760F2B;15/11/2018;1352;3;135;1;Spese correnti;3;Acquisto di beni e servizi;2;Acquisto di servizi;15;Contratti di servizio pubblico;6;Contratti di servizio per le mense scolastiche;15/11/2018
912;1;0;300;300;OMESSO NOMINATIVO NEL RISPETTO DELLA NORMATIVA SULLA PROTEZIONE DATI PERSONALI; ;erogazione contributo straordinario;15/11/2018;1935;0;162;1;Spese correnti;4;Trasferimenti correnti;2;Trasferimenti correnti a Famiglie;2;Interventi assistenziali;999;Altri assegni e sussidi assistenziali;15/11/2018
913;1;0;500;500;ARST; ;SALDO Fatt.n. 1000001273  del 06/11/2018;15/11/2018;3012;0;163;2;Spese in conto capitale;2;Investimenti fissi lordi e acquisto di terreni;1;Beni materiali;9;Beni immobili;999;Beni immobili n.a.c.;15/11/2018
914;1;0;1.920,00;1.920,00;MM IMPIANTISTICA DI MONAGHEDDU MASSIMILIANO VITTORIO;ZA325CA074;SALDO Fatt.n. 000001-2018-VENDITE  del 16/11/2018 MANUTENZIONE STRAORDINARIA CALDAIA BIBLIOTECA COMUNALE E SCUOLA MATERNA, COME DA DETERMINA N. 204  DEL 16/11/2018;19/11/2018;3012;0;164;2;Spese in conto capitale;2;Investimenti fissi lordi e acquisto di terreni;1;Beni materiali;9;Beni immobili;999;Beni immobili n.a.c.;19/11/2018
915;1;0;261,68;261,68;ABBANOA; ;SALDO Fatt.n. 0150020180032225200  del 31/10/2018 B/Bollettazione;19/11/2018;1690;1;166;1;Spese correnti;3;Acquisto di beni e servizi;2;Acquisto di servizi;5;Utenze e canoni;5;Acqua;19/11/2018
916;1;0;1.712,70;1.712,70;AUTORITA' D'AMBITO DELLA SARDEGNA; ;TRASFERIMENTO QUOTA CONSORTILE ANNO 2018;19/11/2018;1702;0;167;1;Spese correnti;4;Trasferimenti correnti;1;Trasferimenti correnti a Amministrazioni Pubbliche;2;Trasferimenti correnti a Amministrazioni Locali;999;Trasferimenti correnti a altre Amministrazioni Locali n.a.c.;19/11/2018
917;1;0;18.150,00;18.150,00;CICLAT TRASPORTI AMBIENTE SOC.COOP.;7,63E+14;SALDO Fatt.n. 743 -P  del 31/10/2018 FATTURA;19/11/2018;1738;0;137;1;Spese correnti;3;Acquisto di beni e servizi;2;Acquisto di servizi;15;Contratti di servizio pubblico;5;Contratti di servizio per il conferimento in discarica dei rifiuti;19/11/2018
918;1;0;174;174;COMUNE DI MACOMER; ;RESTITUZIONE SOMME  IMU NON DOVUTE;21/11/2018;1029;0;169;1;Spese correnti;4;Trasferimenti correnti;2;Trasferimenti correnti a Famiglie;2;Interventi assistenziali;999;Altri assegni e sussidi assistenziali;21/11/2018
919;1;0;100;100;COMUNE DI MACOMER; ;restituzione somme IMU  NON DOVUTE;21/11/2018;1029;0;168;1;Spese correnti;4;Trasferimenti correnti;2;Trasferimenti correnti a Famiglie;2;Interventi assistenziali;999;Altri assegni e sussidi assistenziali;21/11/2018
920;1;0;1.581,84;1.581,84;COMUNE DI SASSARI; ;SALDO Fatt.n. 57/12  del 15/11/2018 SCISSIONE DEI PAGAMENTI;27/11/2018;1738;0;170;1;Spese correnti;3;Acquisto di beni e servizi;2;Acquisto di servizi;15;Contratti di servizio pubblico;5;Contratti di servizio per il conferimento in discarica dei rifiuti;27/11/2018
921;1;0;3.660,00;3.660,00;DITTA LND SERVIZI SRL LEGA NAZIONALE DILETTANTI;Z6325DA5A8;ISTANZA COLLAUDO SOTTOFONDO TERRENO GIOCO;27/11/2018;3200;0;263;2;Spese in conto capitale;2;Investimenti fissi lordi e acquisto di terreni;1;Beni materiali;9;Beni immobili;16;Impianti sportivi;27/11/2018
922;1;0;29.355,12;29.355,12;SANNA GIUSEPPE;ZCF253A16D;ACCONTO Fatt.n. 1  del 20/11/2018 INTERVENTI PER LA MANUTENZIONE DEI CORSI D'ACQUA E DI MITIGAZIONE DEL RISCHIO IDROGEOLOGICO DEI BACINI IDROGRAFICI DELLA SARDEGNA . D.G.R. . 33/16  DEL 04/07/2017. MANUTENZIONE ORDINARIA DEL RIO MEDUL;27/11/2018;3350;0;145;2;Spese in conto capitale;5;Altre spese in conto capitale;99;Altre spese in conto capitale n.a.c.;99;Altre spese in conto capitale n.a.c.;999;Altre spese in conto capitale n.a.c.;27/11/2018
923;1;0;10.808,50;10.808,50;SANNA GIUSEPPE;ZCF253A16D;SALDO Fatt.n. 1  del 20/11/2018 INTERVENTI PER LA MANUTENZIONE DEI CORSI D'ACQUA E DI MITIGAZIONE DEL RISCHIO IDROGEOLOGICO DEI BACINI IDROGRAFICI DELLA SARDEGNA . D.G.R. . 33/16  DEL 04/07/2017. MANUTENZIONE ORDINARIA DEL RIO MEDUL;27/11/2018;3350;0;265;2;Spese in conto capitale;5;Altre spese in conto capitale;99;Altre spese in conto capitale n.a.c.;99;Altre spese in conto capitale n.a.c.;999;Altre spese in conto capitale n.a.c.;27/11/2018
924;1;0;2.808,60;2.808,60;A.I.A.S.; ;FATT.N. 1959/A MESE DI OTTOBRE;27/11/2018;1934;0;78;1;Spese correnti;4;Trasferimenti correnti;4;Trasferimenti correnti a Istituzioni Sociali Private;1;Trasferimenti correnti a Istituzioni Sociali Private;1;Trasferimenti correnti a Istituzioni Sociali Private;27/11/2018
931;1;0;281,8;281,8;MEF CASSA DEPOSITI; ;mutui 2 semestre 2018;29/11/2018;1941;1;0;1;Spese correnti;7;Interessi passivi;5;Interessi su Mutui e altri finanziamenti a medio lungo termine;4;Interessi passivi su finanziamenti a medio lungo termine a Imprese;3;Interessi passivi a Cassa Depositi e Prestiti SPA su mutui e altri finanziamenti a medio lungo termine;29/11/2018
932;1;0;575,23;575,23;MEF CASSA DEPOSITI; ;2 SEMESTRE MUTUI 2018;29/11/2018;1943;0;0;1;Spese correnti;7;Interessi passivi;5;Interessi su Mutui e altri finanziamenti a medio lungo termine;4;Interessi passivi su finanziamenti a medio lungo termine a Imprese;3;Interessi passivi a Cassa Depositi e Prestiti SPA su mutui e altri finanziamenti a medio lungo termine;29/11/2018
934;1;0;146,5;146,5;CASSA DEPOSITI E PRESTITI; ;QUOTA INTERESSI 2 SEM.2018;29/11/2018;1692;0;0;1;Spese correnti;7;Interessi passivi;5;Interessi su Mutui e altri finanziamenti a medio lungo termine;4;Interessi passivi su finanziamenti a medio lungo termine a Imprese;3;Interessi passivi a Cassa Depositi e Prestiti SPA su mutui e altri finanziamenti a medio lungo termine;29/11/2018
937;1;0;5.336,82;5.336,82;BANCO SARDEGNA; ;QUOTA INTERESSI MUTUO 2 SEM.2018;29/11/2018;1427;0;0;1;Spese correnti;7;Interessi passivi;5;Interessi su Mutui e altri finanziamenti a medio lungo termine;5;Interessi passivi su mutui e altri finanziamenti a medio lungo termine ad altri soggetti;999;Interessi passivi su mutui e altri finanziamenti a medio lungo termine ad altri soggetti;29/11/2018
939;1;0;1;4;BANCO SARDEGNA; ;bollo;30/11/2018;1054;0;0;1;Spese correnti;3;Acquisto di beni e servizi;2;Acquisto di servizi;17;Servizi finanziari;2;Oneri per servizio di tesoreria;30/11/2018
939;2;0;1;4;BANCO SARDEGNA; ;bollo;30/11/2018;1054;0;0;1;Spese correnti;3;Acquisto di beni e servizi;2;Acquisto di servizi;17;Servizi finanziari;2;Oneri per servizio di tesoreria;30/11/2018
939;3;0;1;4;BANCO SARDEGNA; ;bollo;30/11/2018;1054;0;0;1;Spese correnti;3;Acquisto di beni e servizi;2;Acquisto di servizi;17;Servizi finanziari;2;Oneri per servizio di tesoreria;30/11/2018
939;4;0;1;4;BANCO SARDEGNA; ;bollo;30/11/2018;1054;0;0;1;Spese correnti;3;Acquisto di beni e servizi;2;Acquisto di servizi;17;Servizi finanziari;2;Oneri per servizio di tesoreria;30/11/2018
941;1;0;1.070,32;1.070,32;GLOBAL POWER;Z6E2234C3D;ACCONTO Fatt.n. V0/137584  del 01/11/2018 Fattura Energia Elettrica;30/11/2018;1937;1;22;1;Spese correnti;3;Acquisto di beni e servizi;2;Acquisto di servizi;5;Utenze e canoni;4;Energia elettrica;30/11/2018
942;1;0;237,67;237,67;GLOBAL POWER;Z6E2234C3D;SALDO Fatt.n. V0/137584  del 01/11/2018 Fattura Energia Elettrica;30/11/2018;1344;2;25;1;Spese correnti;3;Acquisto di beni e servizi;2;Acquisto di servizi;5;Utenze e canoni;4;Energia elettrica;30/11/2018
943;1;0;2.832,64;2.832,64;GLOBAL POWER;Z6E2234C3D;ACCONTO Fatt.n. V0/137583  del 01/11/2018 Fattura Energia Elettrica;30/11/2018;1937;1;22;1;Spese correnti;3;Acquisto di beni e servizi;2;Acquisto di servizi;5;Utenze e canoni;4;Energia elettrica;30/11/2018
944;1;0;288,56;288,56;GLOBAL POWER;Z6E2234C3D;ACCONTO Fatt.n. V0/137583  del 01/11/2018 Fattura Energia Elettrica;30/11/2018;1344;2;25;1;Spese correnti;3;Acquisto di beni e servizi;2;Acquisto di servizi;5;Utenze e canoni;4;Energia elettrica;30/11/2018
945;1;0;334,62;334,62;GLOBAL POWER;Z6E2234C3D;SALDO Fatt.n. V0/137583  del 01/11/2018 Fattura Energia Elettrica;30/11/2018;1690;1;26;1;Spese correnti;3;Acquisto di beni e servizi;2;Acquisto di servizi;5;Utenze e canoni;4;Energia elettrica;30/11/2018
946;1;0;565;565;UNIPOL SAI AGENTI BECCU MARCO- TERROSU MASSIMILIANO;ZB626020D2;polizza motocarro;30/11/2018;1056;1;176;1;Spese correnti;3;Acquisto di beni e servizi;2;Acquisto di servizi;9;Manutenzione ordinaria e riparazioni;1;Manutenzione ordinaria e riparazioni di mezzi di trasporto ad uso civile, di sicurezza e ordine pubblico;30/11/2018
947;1;0;35.830,44;35.830,44;ENEL ENERGIA SPA MERCATO LIBERO;ZA925F3106;liquidazione somme dovute;30/11/2018;1044;0;175;1;Spese correnti;3;Acquisto di beni e servizi;2;Acquisto di servizi;5;Utenze e canoni;4;Energia elettrica;30/11/2018
949;1;0;1.481,58;1.481,58;PERSONALE DIVERSO (Confr.Allegato); ;STIPENDI MESE DI: DICEMBRE 18;07/12/2018;1001;0;0;1;Spese correnti;3;Acquisto di beni e servizi;2;Acquisto di servizi;1;Organi e incarichi istituzionali dell'amministrazione;1;Organi istituzionali dell'amministrazione - Indennità;07/12/2018
950;1;0;125,94;125,94;TESORERIA PROVINCIALE DELLO STATO; ;VERS. IMPOSTE MESE: DICEMBRE 18 PER I.R.A.P.;07/12/2018;1001;0;0;1;Spese correnti;3;Acquisto di beni e servizi;2;Acquisto di servizi;1;Organi e incarichi istituzionali dell'amministrazione;1;Organi istituzionali dell'amministrazione - Indennità;07/12/2018
980;1;0;18.150,00;18.150,00;CICLAT TRASPORTI AMBIENTE SOC.COOP.;7,63E+14;SALDO Fatt.n. 769 -P  del 30/11/2018 FATTURA;11/12/2018;1738;0;137;1;Spese correnti;3;Acquisto di beni e servizi;2;Acquisto di servizi;15;Contratti di servizio pubblico;5;Contratti di servizio per il conferimento in discarica dei rifiuti;11/12/2018
981;1;0;973,66;973,66;MM IMPIANTISTICA DI MONAGHEDDU MASSIMILIANO VITTORIO;Z32256DAD3;ACCONTO Fatt.n. 000002-2018-VENDITE  del 07/12/2018 LAVORI DI CONDUZIONE E MANUTENZIONE IMPIANTI;11/12/2018;1043;9;148;1;Spese correnti;3;Acquisto di beni e servizi;2;Acquisto di servizi;9;Manutenzione ordinaria e riparazioni;4;Manutenzione ordinaria e riparazioni di impianti e macchinari;11/12/2018
982;1;0;973,66;973,66;MM IMPIANTISTICA DI MONAGHEDDU MASSIMILIANO VITTORIO;Z32256DAD3;ACCONTO Fatt.n. 000002-2018-VENDITE  del 07/12/2018 LAVORI DI CONDUZIONE E MANUTENZIONE IMPIANTI;11/12/2018;1344;0;149;1;Spese correnti;3;Acquisto di beni e servizi;2;Acquisto di servizi;9;Manutenzione ordinaria e riparazioni;4;Manutenzione ordinaria e riparazioni di impianti e macchinari;11/12/2018
983;1;0;204,46;204,46;MM IMPIANTISTICA DI MONAGHEDDU MASSIMILIANO VITTORIO;Z32256DAD3;SALDO Fatt.n. 000002-2018-VENDITE  del 07/12/2018 LAVORI DI CONDUZIONE E MANUTENZIONE IMPIANTI;11/12/2018;1514;2;150;1;Spese correnti;3;Acquisto di beni e servizi;2;Acquisto di servizi;5;Utenze e canoni;999;Utenze e canoni per altri servizi n.a.c.;11/12/2018
984;1;0;3.042,90;3.042,90;AIRONE COOPERATIVA SOCIALE DI ASSISTENZA ONLUS;Z04256347E;SALDO Fatt.n. 300  del 14/11/2018 Fattura Cliente;11/12/2018;1899;1;141;1;Spese correnti;3;Acquisto di beni e servizi;2;Acquisto di servizi;11;Prestazioni professionali e specialistiche;999;Altre prestazioni professionali e specialistiche n.a.c.;11/12/2018
985;1;0;329,01;329,01;ASARA MAURIZIO;ZD725234E3;SALDO Fatt.n. FATTPA 64_18  del 30/11/2018;11/12/2018;1600;0;171;1;Spese correnti;3;Acquisto di beni e servizi;2;Acquisto di servizi;18;Servizi sanitari;13;Acquisti di servizi di trasporto in emergenza e urgenza;11/12/2018
986;1;0;346,5;1.108,10;OMESSO NOMINATIVO NEL RISPETTO DELLA NORMATIVA SULLA PROTEZIONE DATI PERSONALI; ;L.162/98 NOVEMBRE;11/12/2018;1927;3;87;1;Spese correnti;4;Trasferimenti correnti;2;Trasferimenti correnti a Famiglie;2;Interventi assistenziali;999;Altri assegni e sussidi assistenziali;11/12/2018
986;2;0;313,6;1.108,10;OMESSO NOMINATIVO NEL RISPETTO DELLA NORMATIVA SULLA PROTEZIONE DATI PERSONALI; ;L.162/98 NOVEMBRE;11/12/2018;1927;3;87;1;Spese correnti;4;Trasferimenti correnti;2;Trasferimenti correnti a Famiglie;2;Interventi assistenziali;999;Altri assegni e sussidi assistenziali;11/12/2018
986;3;0;448;1.108,10;OMESSO NOMINATIVO NEL RISPETTO DELLA NORMATIVA SULLA PROTEZIONE DATI PERSONALI; ;L.162/98 NOVEMBRE;11/12/2018;1927;3;87;1;Spese correnti;4;Trasferimenti correnti;2;Trasferimenti correnti a Famiglie;2;Interventi assistenziali;999;Altri assegni e sussidi assistenziali;11/12/2018
987;1;0;241,92;688,98;OMESSO NOMINATIVO NEL RISPETTO DELLA NORMATIVA SULLA PROTEZIONE DATI PERSONALI; ;L.162/98 NOVEMBRE;11/12/2018;1927;3;87;1;Spese correnti;4;Trasferimenti correnti;2;Trasferimenti correnti a Famiglie;2;Interventi assistenziali;999;Altri assegni e sussidi assistenziali;11/12/2018
987;2;0;179,2;688,98;OMESSO NOMINATIVO NEL RISPETTO DELLA NORMATIVA SULLA PROTEZIONE DATI PERSONALI; ;L.162/98 NOVEMBRE;11/12/2018;1927;3;87;1;Spese correnti;4;Trasferimenti correnti;2;Trasferimenti correnti a Famiglie;2;Interventi assistenziali;999;Altri assegni e sussidi assistenziali;11/12/2018
987;3;0;267,86;688,98;OMESSO NOMINATIVO NEL RISPETTO DELLA NORMATIVA SULLA PROTEZIONE DATI PERSONALI; ;L.162/98 NOVEMBRE;11/12/2018;1927;3;87;1;Spese correnti;4;Trasferimenti correnti;2;Trasferimenti correnti a Famiglie;2;Interventi assistenziali;999;Altri assegni e sussidi assistenziali;11/12/2018
988;1;0;322,56;684,81;OMESSO NOMINATIVO NEL RISPETTO DELLA NORMATIVA SULLA PROTEZIONE DATI PERSONALI; ;L.162/98 NOVEMBRE;11/12/2018;1927;3;87;1;Spese correnti;4;Trasferimenti correnti;2;Trasferimenti correnti a Famiglie;2;Interventi assistenziali;999;Altri assegni e sussidi assistenziali;11/12/2018
988;2;0;362,25;684,81;OMESSO NOMINATIVO NEL RISPETTO DELLA NORMATIVA SULLA PROTEZIONE DATI PERSONALI; ;L.162/98 NOVEMBRE;11/12/2018;1927;3;87;1;Spese correnti;4;Trasferimenti correnti;2;Trasferimenti correnti a Famiglie;2;Interventi assistenziali;999;Altri assegni e sussidi assistenziali;11/12/2018
989;1;0;90;420;; ;REIS DICEMBRE;11/12/2018;1912;3;153;1;Spese correnti;4;Trasferimenti correnti;2;Trasferimenti correnti a Famiglie;2;Interventi assistenziali;999;Altri assegni e sussidi assistenziali;11/12/2018
989;2;0;150;420;; ;REIS DICEMBRE;11/12/2018;1912;3;153;1;Spese correnti;4;Trasferimenti correnti;2;Trasferimenti correnti a Famiglie;2;Interventi assistenziali;999;Altri assegni e sussidi assistenziali;11/12/2018
989;3;0;60;420;; ;REIS DICEMBRE;11/12/2018;1912;3;153;1;Spese correnti;4;Trasferimenti correnti;2;Trasferimenti correnti a Famiglie;2;Interventi assistenziali;999;Altri assegni e sussidi assistenziali;11/12/2018
989;4;0;60;420;; ;REIS DICEMBRE;11/12/2018;1912;3;153;1;Spese correnti;4;Trasferimenti correnti;2;Trasferimenti correnti a Famiglie;2;Interventi assistenziali;999;Altri assegni e sussidi assistenziali;11/12/2018
989;5;0;60;420;; ;REIS DICEMBRE;11/12/2018;1912;3;153;1;Spese correnti;4;Trasferimenti correnti;2;Trasferimenti correnti a Famiglie;2;Interventi assistenziali;999;Altri assegni e sussidi assistenziali;11/12/2018
990;1;0;150;1.060,00;; ;REIS DICEMMBRE;11/12/2018;1912;3;153;1;Spese correnti;4;Trasferimenti correnti;2;Trasferimenti correnti a Famiglie;2;Interventi assistenziali;999;Altri assegni e sussidi assistenziali;11/12/2018
990;2;0;400;1.060,00;; ;REIS DICEMMBRE;11/12/2018;1912;3;153;1;Spese correnti;4;Trasferimenti correnti;2;Trasferimenti correnti a Famiglie;2;Interventi assistenziali;999;Altri assegni e sussidi assistenziali;11/12/2018
990;3;0;300;1.060,00;; ;REIS DICEMMBRE;11/12/2018;1912;3;153;1;Spese correnti;4;Trasferimenti correnti;2;Trasferimenti correnti a Famiglie;2;Interventi assistenziali;999;Altri assegni e sussidi assistenziali;11/12/2018
990;4;0;150;1.060,00;; ;REIS DICEMMBRE;11/12/2018;1912;3;153;1;Spese correnti;4;Trasferimenti correnti;2;Trasferimenti correnti a Famiglie;2;Interventi assistenziali;999;Altri assegni e sussidi assistenziali;11/12/2018
990;5;0;60;1.060,00;; ;REIS DICEMMBRE;11/12/2018;1912;3;153;1;Spese correnti;4;Trasferimenti correnti;2;Trasferimenti correnti a Famiglie;2;Interventi assistenziali;999;Altri assegni e sussidi assistenziali;11/12/2018
991;1;0;200;1.500,00;; ;REIS NOVEMBRE;11/12/2018;1912;3;153;1;Spese correnti;4;Trasferimenti correnti;2;Trasferimenti correnti a Famiglie;2;Interventi assistenziali;999;Altri assegni e sussidi assistenziali;11/12/2018
991;2;0;400;1.500,00;; ;REIS NOVEMBRE;11/12/2018;1912;3;153;1;Spese correnti;4;Trasferimenti correnti;2;Trasferimenti correnti a Famiglie;2;Interventi assistenziali;999;Altri assegni e sussidi assistenziali;11/12/2018
991;3;0;300;1.500,00;; ;REIS NOVEMBRE;11/12/2018;1912;3;153;1;Spese correnti;4;Trasferimenti correnti;2;Trasferimenti correnti a Famiglie;2;Interventi assistenziali;999;Altri assegni e sussidi assistenziali;11/12/2018
991;4;0;300;1.500,00;; ;REIS NOVEMBRE;11/12/2018;1912;3;153;1;Spese correnti;4;Trasferimenti correnti;2;Trasferimenti correnti a Famiglie;2;Interventi assistenziali;999;Altri assegni e sussidi assistenziali;11/12/2018
991;5;0;300;1.500,00;; ;REIS NOVEMBRE;11/12/2018;1912;3;153;1;Spese correnti;4;Trasferimenti correnti;2;Trasferimenti correnti a Famiglie;2;Interventi assistenziali;999;Altri assegni e sussidi assistenziali;11/12/2018
992;1;0;400;2.200,00;; ;REISDICEMBRE;11/12/2018;1912;3;153;1;Spese correnti;4;Trasferimenti correnti;2;Trasferimenti correnti a Famiglie;2;Interventi assistenziali;999;Altri assegni e sussidi assistenziali;11/12/2018
992;2;0;400;2.200,00;; ;REISDICEMBRE;11/12/2018;1912;3;153;1;Spese correnti;4;Trasferimenti correnti;2;Trasferimenti correnti a Famiglie;2;Interventi assistenziali;999;Altri assegni e sussidi assistenziali;11/12/2018
992;3;0;400;2.200,00;; ;REISDICEMBRE;11/12/2018;1912;3;153;1;Spese correnti;4;Trasferimenti correnti;2;Trasferimenti correnti a Famiglie;2;Interventi assistenziali;999;Altri assegni e sussidi assistenziali;11/12/2018
992;4;0;500;2.200,00;; ;REISDICEMBRE;11/12/2018;1912;3;153;1;Spese correnti;4;Trasferimenti correnti;2;Trasferimenti correnti a Famiglie;2;Interventi assistenziali;999;Altri assegni e sussidi assistenziali;11/12/2018
992;5;0;500;2.200,00;; ;REISDICEMBRE;11/12/2018;1912;3;153;1;Spese correnti;4;Trasferimenti correnti;2;Trasferimenti correnti a Famiglie;2;Interventi assistenziali;999;Altri assegni e sussidi assistenziali;11/12/2018
993;1;0;500;1.900,00;; ;REIS DICEMBRE 2018;11/12/2018;1912;3;153;1;Spese correnti;4;Trasferimenti correnti;2;Trasferimenti correnti a Famiglie;2;Interventi assistenziali;999;Altri assegni e sussidi assistenziali;11/12/2018
993;2;0;500;1.900,00;; ;REIS DICEMBRE 2018;11/12/2018;1912;3;153;1;Spese correnti;4;Trasferimenti correnti;2;Trasferimenti correnti a Famiglie;2;Interventi assistenziali;999;Altri assegni e sussidi assistenziali;11/12/2018
993;3;0;500;1.900,00;; ;REIS DICEMBRE 2018;11/12/2018;1912;3;153;1;Spese correnti;4;Trasferimenti correnti;2;Trasferimenti correnti a Famiglie;2;Interventi assistenziali;999;Altri assegni e sussidi assistenziali;11/12/2018
993;4;0;400;1.900,00;; ;REIS DICEMBRE 2018;11/12/2018;1912;3;153;1;Spese correnti;4;Trasferimenti correnti;2;Trasferimenti correnti a Famiglie;2;Interventi assistenziali;999;Altri assegni e sussidi assistenziali;11/12/2018
994;1;0;1.175,59;1.175,59;CONSORZIO LA SORGENTE;7591934620;SALDO Fatt.n. 3/304  del 03/12/2018 VENDITA;11/12/2018;1902;0;180;1;Spese correnti;3;Acquisto di beni e servizi;2;Acquisto di servizi;15;Contratti di servizio pubblico;9;Contratti di servizio di assistenza sociale domiciliare;11/12/2018
995;1;0;2.941,79;2.941,79;SILODEMA SOCIETA' COOPERATIVA SOCIALE A R.L.;7587760F2B;SALDO Fatt.n. FATTPA 51_18  del 01/12/2018 Servizio mensa svolto nel mese di Novembre   CIG 7585760F2B;11/12/2018;1352;3;135;1;Spese correnti;3;Acquisto di beni e servizi;2;Acquisto di servizi;15;Contratti di servizio pubblico;6;Contratti di servizio per le mense scolastiche;11/12/2018
996;1;0;83,48;742,07;OMESSO NOMINATIVO NEL RISPETTO DELLA NORMATIVA SULLA PROTEZIONE DATI PERSONALI; ;L.162/98 NOVEMBRE2018;11/12/2018;1927;3;87;1;Spese correnti;4;Trasferimenti correnti;2;Trasferimenti correnti a Famiglie;2;Interventi assistenziali;999;Altri assegni e sussidi assistenziali;11/12/2018
996;2;0;98,5;742,07;OMESSO NOMINATIVO NEL RISPETTO DELLA NORMATIVA SULLA PROTEZIONE DATI PERSONALI; ;L.162/98 NOVEMBRE2018;11/12/2018;1927;3;87;1;Spese correnti;4;Trasferimenti correnti;2;Trasferimenti correnti a Famiglie;2;Interventi assistenziali;999;Altri assegni e sussidi assistenziali;11/12/2018
996;3;0;375;742,07;OMESSO NOMINATIVO NEL RISPETTO DELLA NORMATIVA SULLA PROTEZIONE DATI PERSONALI; ;L.162/98 NOVEMBRE2018;11/12/2018;1927;3;87;1;Spese correnti;4;Trasferimenti correnti;2;Trasferimenti correnti a Famiglie;2;Interventi assistenziali;999;Altri assegni e sussidi assistenziali;11/12/2018
996;4;0;30;742,07;OMESSO NOMINATIVO NEL RISPETTO DELLA NORMATIVA SULLA PROTEZIONE DATI PERSONALI; ;L.162/98 NOVEMBRE2018;11/12/2018;1927;3;87;1;Spese correnti;4;Trasferimenti correnti;2;Trasferimenti correnti a Famiglie;2;Interventi assistenziali;999;Altri assegni e sussidi assistenziali;11/12/2018
996;5;0;155,09;742,07;OMESSO NOMINATIVO NEL RISPETTO DELLA NORMATIVA SULLA PROTEZIONE DATI PERSONALI; ;L.162/98 NOVEMBRE2018;11/12/2018;1927;3;87;1;Spese correnti;4;Trasferimenti correnti;2;Trasferimenti correnti a Famiglie;2;Interventi assistenziali;999;Altri assegni e sussidi assistenziali;11/12/2018
997;1;0;90,03;718,47;OMESSO NOMINATIVO NEL RISPETTO DELLA NORMATIVA SULLA PROTEZIONE DATI PERSONALI; ;L.162/98 NOVEMBRE 2018;11/12/2018;1927;3;87;1;Spese correnti;4;Trasferimenti correnti;2;Trasferimenti correnti a Famiglie;2;Interventi assistenziali;999;Altri assegni e sussidi assistenziali;11/12/2018
997;2;0;117,5;718,47;OMESSO NOMINATIVO NEL RISPETTO DELLA NORMATIVA SULLA PROTEZIONE DATI PERSONALI; ;L.162/98 NOVEMBRE 2018;11/12/2018;1927;3;87;1;Spese correnti;4;Trasferimenti correnti;2;Trasferimenti correnti a Famiglie;2;Interventi assistenziali;999;Altri assegni e sussidi assistenziali;11/12/2018
997;3;0;126,23;718,47;OMESSO NOMINATIVO NEL RISPETTO DELLA NORMATIVA SULLA PROTEZIONE DATI PERSONALI; ;L.162/98 NOVEMBRE 2018;11/12/2018;1927;3;87;1;Spese correnti;4;Trasferimenti correnti;2;Trasferimenti correnti a Famiglie;2;Interventi assistenziali;999;Altri assegni e sussidi assistenziali;11/12/2018
997;4;0;134,43;718,47;OMESSO NOMINATIVO NEL RISPETTO DELLA NORMATIVA SULLA PROTEZIONE DATI PERSONALI; ;L.162/98 NOVEMBRE 2018;11/12/2018;1927;3;87;1;Spese correnti;4;Trasferimenti correnti;2;Trasferimenti correnti a Famiglie;2;Interventi assistenziali;999;Altri assegni e sussidi assistenziali;11/12/2018
997;5;0;250,28;718,47;OMESSO NOMINATIVO NEL RISPETTO DELLA NORMATIVA SULLA PROTEZIONE DATI PERSONALI; ;L.162/98 NOVEMBRE 2018;11/12/2018;1927;3;87;1;Spese correnti;4;Trasferimenti correnti;2;Trasferimenti correnti a Famiglie;2;Interventi assistenziali;999;Altri assegni e sussidi assistenziali;11/12/2018
998;1;0;72,36;1.547,70;OMESSO NOMINATIVO NEL RISPETTO DELLA NORMATIVA SULLA PROTEZIONE DATI PERSONALI; ;L.162/98 NOVEMBRE;11/12/2018;1927;3;87;1;Spese correnti;4;Trasferimenti correnti;2;Trasferimenti correnti a Famiglie;2;Interventi assistenziali;999;Altri assegni e sussidi assistenziali;11/12/2018
998;2;0;209,04;1.547,70;OMESSO NOMINATIVO NEL RISPETTO DELLA NORMATIVA SULLA PROTEZIONE DATI PERSONALI; ;L.162/98 NOVEMBRE;11/12/2018;1927;3;87;1;Spese correnti;4;Trasferimenti correnti;2;Trasferimenti correnti a Famiglie;2;Interventi assistenziali;999;Altri assegni e sussidi assistenziali;11/12/2018
998;3;0;423,58;1.547,70;OMESSO NOMINATIVO NEL RISPETTO DELLA NORMATIVA SULLA PROTEZIONE DATI PERSONALI; ;L.162/98 NOVEMBRE;11/12/2018;1927;3;87;1;Spese correnti;4;Trasferimenti correnti;2;Trasferimenti correnti a Famiglie;2;Interventi assistenziali;999;Altri assegni e sussidi assistenziali;11/12/2018
998;4;0;748,46;1.547,70;OMESSO NOMINATIVO NEL RISPETTO DELLA NORMATIVA SULLA PROTEZIONE DATI PERSONALI; ;L.162/98 NOVEMBRE;11/12/2018;1927;3;87;1;Spese correnti;4;Trasferimenti correnti;2;Trasferimenti correnti a Famiglie;2;Interventi assistenziali;999;Altri assegni e sussidi assistenziali;11/12/2018
998;5;0;94,26;1.547,70;OMESSO NOMINATIVO NEL RISPETTO DELLA NORMATIVA SULLA PROTEZIONE DATI PERSONALI; ;L.162/98 NOVEMBRE;11/12/2018;1927;3;87;1;Spese correnti;4;Trasferimenti correnti;2;Trasferimenti correnti a Famiglie;2;Interventi assistenziali;999;Altri assegni e sussidi assistenziali;11/12/2018
999;1;0;181,83;1.112,60;OMESSO NOMINATIVO NEL RISPETTO DELLA NORMATIVA SULLA PROTEZIONE DATI PERSONALI; ;L.162/98 NOVEMBRE;11/12/2018;1927;3;87;1;Spese correnti;4;Trasferimenti correnti;2;Trasferimenti correnti a Famiglie;2;Interventi assistenziali;999;Altri assegni e sussidi assistenziali;11/12/2018
999;2;0;199,44;1.112,60;OMESSO NOMINATIVO NEL RISPETTO DELLA NORMATIVA SULLA PROTEZIONE DATI PERSONALI; ;L.162/98 NOVEMBRE;11/12/2018;1927;3;87;1;Spese correnti;4;Trasferimenti correnti;2;Trasferimenti correnti a Famiglie;2;Interventi assistenziali;999;Altri assegni e sussidi assistenziali;11/12/2018
999;3;0;251,7;1.112,60;OMESSO NOMINATIVO NEL RISPETTO DELLA NORMATIVA SULLA PROTEZIONE DATI PERSONALI; ;L.162/98 NOVEMBRE;11/12/2018;1927;3;87;1;Spese correnti;4;Trasferimenti correnti;2;Trasferimenti correnti a Famiglie;2;Interventi assistenziali;999;Altri assegni e sussidi assistenziali;11/12/2018
999;4;0;314,26;1.112,60;OMESSO NOMINATIVO NEL RISPETTO DELLA NORMATIVA SULLA PROTEZIONE DATI PERSONALI; ;L.162/98 NOVEMBRE;11/12/2018;1927;3;87;1;Spese correnti;4;Trasferimenti correnti;2;Trasferimenti correnti a Famiglie;2;Interventi assistenziali;999;Altri assegni e sussidi assistenziali;11/12/2018
999;5;0;165,37;1.112,60;OMESSO NOMINATIVO NEL RISPETTO DELLA NORMATIVA SULLA PROTEZIONE DATI PERSONALI; ;L.162/98 NOVEMBRE;11/12/2018;1927;3;87;1;Spese correnti;4;Trasferimenti correnti;2;Trasferimenti correnti a Famiglie;2;Interventi assistenziali;999;Altri assegni e sussidi assistenziali;11/12/2018
1000;1;0;166,4;853,91;OMESSO NOMINATIVO NEL RISPETTO DELLA NORMATIVA SULLA PROTEZIONE DATI PERSONALI; ;L.162/98 NOVEMBRE;11/12/2018;1927;3;87;1;Spese correnti;4;Trasferimenti correnti;2;Trasferimenti correnti a Famiglie;2;Interventi assistenziali;999;Altri assegni e sussidi assistenziali;11/12/2018
1000;2;0;80,4;853,91;OMESSO NOMINATIVO NEL RISPETTO DELLA NORMATIVA SULLA PROTEZIONE DATI PERSONALI; ;L.162/98 NOVEMBRE;11/12/2018;1927;3;87;1;Spese correnti;4;Trasferimenti correnti;2;Trasferimenti correnti a Famiglie;2;Interventi assistenziali;999;Altri assegni e sussidi assistenziali;11/12/2018
1000;3;0;320;853,91;OMESSO NOMINATIVO NEL RISPETTO DELLA NORMATIVA SULLA PROTEZIONE DATI PERSONALI; ;L.162/98 NOVEMBRE;11/12/2018;1927;3;87;1;Spese correnti;4;Trasferimenti correnti;2;Trasferimenti correnti a Famiglie;2;Interventi assistenziali;999;Altri assegni e sussidi assistenziali;11/12/2018
1000;4;0;287,11;853,91;OMESSO NOMINATIVO NEL RISPETTO DELLA NORMATIVA SULLA PROTEZIONE DATI PERSONALI; ;L.162/98 NOVEMBRE;11/12/2018;1927;3;87;1;Spese correnti;4;Trasferimenti correnti;2;Trasferimenti correnti a Famiglie;2;Interventi assistenziali;999;Altri assegni e sussidi assistenziali;11/12/2018
1001;1;0;1.237,08;1.237,08;BOSINCO LUIGI;Z341F3FOCC;SALDO Fatt.n. FATTPA 30_18  del 02/12/2018 Cig:Z341F3FOCC;11/12/2018;1400;0;132;1;Spese correnti;3;Acquisto di beni e servizi;2;Acquisto di servizi;15;Contratti di servizio pubblico;2;Contratti di servizio di trasporto scolastico;11/12/2018
1002;1;0;1.567,38;1.567,38;CONSORZIO LA SORGENTE;7591934620;SALDO Fatt.n. 3/309  del 10/12/2018 VENDITA;11/12/2018;1902;0;180;1;Spese correnti;3;Acquisto di beni e servizi;2;Acquisto di servizi;15;Contratti di servizio pubblico;9;Contratti di servizio di assistenza sociale domiciliare;11/12/2018
1003;1;0;1.719,90;1.719,90;AIRONE COOPERATIVA SOCIALE DI ASSISTENZA ONLUS;ZEE2338B92;ACCONTO Fatt.n. 330  del 05/12/2018 Fattura Cliente;11/12/2018;1899;1;67;1;Spese correnti;3;Acquisto di beni e servizi;2;Acquisto di servizi;11;Prestazioni professionali e specialistiche;999;Altre prestazioni professionali e specialistiche n.a.c.;11/12/2018
1004;1;0;1.058,40;1.058,40;AIRONE COOPERATIVA SOCIALE DI ASSISTENZA ONLUS;Z04256347E;SALDO Fatt.n. 330  del 05/12/2018 Fattura Cliente;11/12/2018;1899;1;141;1;Spese correnti;3;Acquisto di beni e servizi;2;Acquisto di servizi;11;Prestazioni professionali e specialistiche;999;Altre prestazioni professionali e specialistiche n.a.c.;11/12/2018
1005;1;0;3.050,00;3.050,00;PIU ANTONIO;ZA3233707E;SALDO Fatt.n. FATTPA 13_18  del 07/12/2018;11/12/2018;3173;0;262;2;Spese in conto capitale;2;Investimenti fissi lordi e acquisto di terreni;1;Beni materiali;9;Beni immobili;3;Fabbricati ad uso scolastico;11/12/2018
1006;1;0;10.000,00;10.000,00;GRUPPO SPORTIVO ANGLONA LAERRU; ;concessione contributo associazioni sportive;11/12/2018;1830;0;178;1;Spese correnti;4;Trasferimenti correnti;4;Trasferimenti correnti a Istituzioni Sociali Private;1;Trasferimenti correnti a Istituzioni Sociali Private;1;Trasferimenti correnti a Istituzioni Sociali Private;11/12/2018
1007;1;0;300;300;OMESSO NOMINATIVO NEL RISPETTO DELLA NORMATIVA SULLA PROTEZIONE DATI PERSONALI; ;contributo straordinario;11/12/2018;1935;0;181;1;Spese correnti;4;Trasferimenti correnti;2;Trasferimenti correnti a Famiglie;2;Interventi assistenziali;999;Altri assegni e sussidi assistenziali;11/12/2018
1008;1;0;4,8;4,8;UNIONE DEI COMUNI DELL'ANGLONA E BASSA VALLE; ;TRASFERIMENTO QUOTA ASSOCIATIVA 2018;13/12/2018;1043;2;188;1;Spese correnti;3;Acquisto di beni e servizi;1;Acquisto di beni;2;Altri beni di consumo;999;Altri beni e materiali di consumo n.a.c.;13/12/2018
1009;1;0;4.000,00;4.000,00;UNIONE DEI COMUNI DELL'ANGLONA E BASSA VALLE; ;trasferimento quota 2018;13/12/2018;1015;0;182;1;Spese correnti;4;Trasferimenti correnti;1;Trasferimenti correnti a Amministrazioni Pubbliche;2;Trasferimenti correnti a Amministrazioni Locali;5;Trasferimenti correnti a Unioni di Comuni;13/12/2018
1010;1;0;1.500,00;1.500,00;UNIONE DEI COMUNI DELL'ANGLONA E BASSA VALLE; ;TRASFERIMENTO QUOTA ASSOCIATIVA 2018;13/12/2018;1370;0;183;1;Spese correnti;4;Trasferimenti correnti;1;Trasferimenti correnti a Amministrazioni Pubbliche;2;Trasferimenti correnti a Amministrazioni Locali;5;Trasferimenti correnti a Unioni di Comuni;13/12/2018
1011;1;0;2.000,00;2.000,00;UNIONE DEI COMUNI DELL'ANGLONA E BASSA VALLE; ;TRASFERIMENTO QUOTA ASSOCIATIVA 2018;13/12/2018;1326;0;185;1;Spese correnti;4;Trasferimenti correnti;1;Trasferimenti correnti a Amministrazioni Pubbliche;2;Trasferimenti correnti a Amministrazioni Locali;5;Trasferimenti correnti a Unioni di Comuni;13/12/2018
1012;1;0;500;500;UNIONE DEI COMUNI DELL'ANGLONA E BASSA VALLE; ;TRASFERIMENTO QUOTA ASSOCIATIVA 2018;13/12/2018;1372;0;186;1;Spese correnti;4;Trasferimenti correnti;1;Trasferimenti correnti a Amministrazioni Pubbliche;2;Trasferimenti correnti a Amministrazioni Locali;5;Trasferimenti correnti a Unioni di Comuni;13/12/2018
1013;1;0;1.566,84;1.566,84;UNIONE DEI COMUNI DELL'ANGLONA E BASSA VALLE; ;TRASFERIMENTO QUOTA ASSOCIATIVA 2018;13/12/2018;1375;0;187;1;Spese correnti;4;Trasferimenti correnti;1;Trasferimenti correnti a Amministrazioni Pubbliche;2;Trasferimenti correnti a Amministrazioni Locali;5;Trasferimenti correnti a Unioni di Comuni;13/12/2018
1014;1;0;900;900;UNIONE DEI COMUNI DELL'ANGLONA E BASSA VALLE; ;TRASFERIMENTO QUOTA ASSOCIATIVA 2018 MECUC FUNZIONI PAESAGGISTICHE;13/12/2018;1379;0;189;1;Spese correnti;4;Trasferimenti correnti;1;Trasferimenti correnti a Amministrazioni Pubbliche;2;Trasferimenti correnti a Amministrazioni Locali;5;Trasferimenti correnti a Unioni di Comuni;13/12/2018
1015;1;0;19.500,00;19.500,00;UNIONE DEI COMUNI DELL'ANGLONA E BASSA VALLE; ;TRASFERIMENTO SOMME GESTIONE ASSOCIATA POLO BIBLIOTECARIO;13/12/2018;1490;0;190;1;Spese correnti;4;Trasferimenti correnti;1;Trasferimenti correnti a Amministrazioni Pubbliche;2;Trasferimenti correnti a Amministrazioni Locali;5;Trasferimenti correnti a Unioni di Comuni;13/12/2018
1016;1;0;2.000,00;2.000,00;ISTITUTO COMPRENSIVO SCUOLA MATERNA ELEMENTARE E MEDIA; ;CONTRIBUTO PER SPESE DI FUNZIONAMENTO A.S. 2018/2019;13/12/2018;1404;0;191;1;Spese correnti;4;Trasferimenti correnti;1;Trasferimenti correnti a Amministrazioni Pubbliche;2;Trasferimenti correnti a Amministrazioni Locali;999;Trasferimenti correnti a altre Amministrazioni Locali n.a.c.;13/12/2018
1017;1;0;739,15;739,15;OMESSO NOMINATIVO NEL RISPETTO DELLA NORMATIVA SULLA PROTEZIONE DATI PERSONALI; ;FONDO NAZIONALE SOSTEGNO ALL'ACCESSO ALLE ABITAZIONI CANONE DI LOCAZIONE;13/12/2018;1919;0;192;1;Spese correnti;4;Trasferimenti correnti;2;Trasferimenti correnti a Famiglie;2;Interventi assistenziali;999;Altri assegni e sussidi assistenziali;13/12/2018
1018;1;0;3.180,41;3.180,41;COMUNE DI CASTELSARDO; ;TRASFERIMENTO QUOTE;13/12/2018;1068;0;196;1;Spese correnti;4;Trasferimenti correnti;1;Trasferimenti correnti a Amministrazioni Pubbliche;2;Trasferimenti correnti a Amministrazioni Locali;3;Trasferimenti correnti a Comuni;13/12/2018
1019;1;0;23;23;OGGIANO BARBARA; ;SOMME NON DOVUTE;13/12/2018;1029;0;0;1;Spese correnti;4;Trasferimenti correnti;2;Trasferimenti correnti a Famiglie;2;Interventi assistenziali;999;Altri assegni e sussidi assistenziali;13/12/2018
1020;1;0;13.294,84;13.294,84;SETCOM DI GABRIELE DIANA;ZAA260B880;SALDO Fatt.n. 16/PA  del 11/12/2018;13/12/2018;1035;0;195;1;Spese correnti;3;Acquisto di beni e servizi;2;Acquisto di servizi;19;Servizi informatici e di telecomunicazioni;5;Servizi per i sistemi e relativa manutenzione;13/12/2018
1021;1;0;13,46;13,46;POSTE ITALIANE;Z2E22DE889;SALDO Fatt.n. 8718408462  del 04/12/2018 Fattura Elettronica relativa all'Identificativo Rendiconto 2099957067;13/12/2018;1043;11;51;1;Spese correnti;3;Acquisto di beni e servizi;2;Acquisto di servizi;16;Servizi amministrativi;2;Spese postali;13/12/2018
1022;1;0;516,99;1.624,20;BORRIELLI GABRIELA; ;legge 8/99;13/12/2018;1906;0;93;1;Spese correnti;4;Trasferimenti correnti;2;Trasferimenti correnti a Famiglie;2;Interventi assistenziali;999;Altri assegni e sussidi assistenziali;13/12/2018
1022;2;0;516,99;1.624,20;; ;legge 8/99;13/12/2018;1906;0;93;1;Spese correnti;4;Trasferimenti correnti;2;Trasferimenti correnti a Famiglie;2;Interventi assistenziali;999;Altri assegni e sussidi assistenziali;13/12/2018
1022;3;0;590,22;1.624,20;; ;legge 8/99;13/12/2018;1906;0;93;1;Spese correnti;4;Trasferimenti correnti;2;Trasferimenti correnti a Famiglie;2;Interventi assistenziali;999;Altri assegni e sussidi assistenziali;13/12/2018
1023;1;0;516,99;1.033,98;; ;legge 8/99;13/12/2018;1906;0;93;1;Spese correnti;4;Trasferimenti correnti;2;Trasferimenti correnti a Famiglie;2;Interventi assistenziali;999;Altri assegni e sussidi assistenziali;13/12/2018
1023;2;0;516,99;1.033,98;; ;legge 8/99;13/12/2018;1906;0;93;1;Spese correnti;4;Trasferimenti correnti;2;Trasferimenti correnti a Famiglie;2;Interventi assistenziali;999;Altri assegni e sussidi assistenziali;13/12/2018
1024;1;0;550,56;2.536,41;; ;legge 8/99;13/12/2018;1906;0;93;1;Spese correnti;4;Trasferimenti correnti;2;Trasferimenti correnti a Famiglie;2;Interventi assistenziali;999;Altri assegni e sussidi assistenziali;13/12/2018
1024;2;0;1.468,86;2.536,41;; ;legge 8/99;13/12/2018;1906;0;93;1;Spese correnti;4;Trasferimenti correnti;2;Trasferimenti correnti a Famiglie;2;Interventi assistenziali;999;Altri assegni e sussidi assistenziali;13/12/2018
1024;3;0;516,99;2.536,41;; ;legge 8/99;13/12/2018;1906;0;93;1;Spese correnti;4;Trasferimenti correnti;2;Trasferimenti correnti a Famiglie;2;Interventi assistenziali;999;Altri assegni e sussidi assistenziali;13/12/2018
1025;1;0;774,69;2.748,93;; ;legge 8/99;13/12/2018;1906;0;93;1;Spese correnti;4;Trasferimenti correnti;2;Trasferimenti correnti a Famiglie;2;Interventi assistenziali;999;Altri assegni e sussidi assistenziali;13/12/2018
1025;2;0;929,64;2.748,93;; ;legge 8/99;13/12/2018;1906;0;93;1;Spese correnti;4;Trasferimenti correnti;2;Trasferimenti correnti a Famiglie;2;Interventi assistenziali;999;Altri assegni e sussidi assistenziali;13/12/2018
1025;3;0;269,91;2.748,93;; ;legge 8/99;13/12/2018;1906;0;93;1;Spese correnti;4;Trasferimenti correnti;2;Trasferimenti correnti a Famiglie;2;Interventi assistenziali;999;Altri assegni e sussidi assistenziali;13/12/2018
1025;4;0;774,69;2.748,93;; ;legge 8/99;13/12/2018;1906;0;93;1;Spese correnti;4;Trasferimenti correnti;2;Trasferimenti correnti a Famiglie;2;Interventi assistenziali;999;Altri assegni e sussidi assistenziali;13/12/2018
1026;1;0;983,85;983,85;; ;legge 8/99;13/12/2018;1906;0;93;1;Spese correnti;4;Trasferimenti correnti;2;Trasferimenti correnti a Famiglie;2;Interventi assistenziali;999;Altri assegni e sussidi assistenziali;13/12/2018
1027;1;0;338,4;576,19;; ;legge 8/99;14/12/2018;1906;0;93;1;Spese correnti;4;Trasferimenti correnti;2;Trasferimenti correnti a Famiglie;2;Interventi assistenziali;999;Altri assegni e sussidi assistenziali;14/12/2018
1027;2;0;140,89;576,19;; ;legge 8/99;14/12/2018;1906;0;93;1;Spese correnti;4;Trasferimenti correnti;2;Trasferimenti correnti a Famiglie;2;Interventi assistenziali;999;Altri assegni e sussidi assistenziali;14/12/2018
1027;3;0;96,9;576,19;; ;legge 8/99;14/12/2018;1906;0;93;1;Spese correnti;4;Trasferimenti correnti;2;Trasferimenti correnti a Famiglie;2;Interventi assistenziali;999;Altri assegni e sussidi assistenziali;14/12/2018
1028;1;0;189,54;660;; ;legge 8/99;14/12/2018;1906;0;93;1;Spese correnti;4;Trasferimenti correnti;2;Trasferimenti correnti a Famiglie;2;Interventi assistenziali;999;Altri assegni e sussidi assistenziali;14/12/2018
1028;2;0;126,36;660;; ;legge 8/99;14/12/2018;1906;0;93;1;Spese correnti;4;Trasferimenti correnti;2;Trasferimenti correnti a Famiglie;2;Interventi assistenziali;999;Altri assegni e sussidi assistenziali;14/12/2018
1028;3;0;280,92;660;; ;legge 8/99;14/12/2018;1906;0;93;1;Spese correnti;4;Trasferimenti correnti;2;Trasferimenti correnti a Famiglie;2;Interventi assistenziali;999;Altri assegni e sussidi assistenziali;14/12/2018
1028;4;0;63,18;660;; ;legge 8/99;14/12/2018;1906;0;93;1;Spese correnti;4;Trasferimenti correnti;2;Trasferimenti correnti a Famiglie;2;Interventi assistenziali;999;Altri assegni e sussidi assistenziali;14/12/2018
1029;1;0;574,88;574,88;OMESSO NOMINATIVO NEL RISPETTO DELLA NORMATIVA SULLA PROTEZIONE DATI PERSONALI; ;L.162/98 NOVEMBRE;14/12/2018;1927;3;87;1;Spese correnti;4;Trasferimenti correnti;2;Trasferimenti correnti a Famiglie;2;Interventi assistenziali;999;Altri assegni e sussidi assistenziali;14/12/2018
1030;1;0;151,56;151,56;; ;L.162/98 NOVEMBRE;14/12/2018;1927;3;21;1;Spese correnti;4;Trasferimenti correnti;2;Trasferimenti correnti a Famiglie;2;Interventi assistenziali;999;Altri assegni e sussidi assistenziali;14/12/2018
1031;1;0;3.733,20;3.733,20;MAZZEO FRANCESCO;ZCF253A16D;SALDO Fatt.n. 2  del 12/12/2018;14/12/2018;3350;0;165;2;Spese in conto capitale;5;Altre spese in conto capitale;99;Altre spese in conto capitale n.a.c.;99;Altre spese in conto capitale n.a.c.;999;Altre spese in conto capitale n.a.c.;14/12/2018
1032;1;0;100,74;100,74;MINISTERO INTERNO; ;n .6 carte identita' novembre 2018 comune di laerru;14/12/2018;1039;0;198;1;Spese correnti;3;Acquisto di beni e servizi;2;Acquisto di servizi;16;Servizi amministrativi;999;Altre spese per servizi amministrativi;14/12/2018
1033;1;0;585,6;585,6;DITTA GASPARI;Z0B24FBFS9;SALDO Fatt.n. 18313  del 14/11/2018;17/12/2018;1043;3;119;1;Spese correnti;3;Acquisto di beni e servizi;2;Acquisto di servizi;4;Acquisto di servizi per formazione e addestramento del personale dell'ente;999;Acquisto di servizi per altre spese per formazione e addestramento n.a.c.;17/12/2018
1036;1;0;30;30;ROZZO MARCO; ;piani personalizzati;21/12/2018;1927;3;96;1;Spese correnti;4;Trasferimenti correnti;2;Trasferimenti correnti a Famiglie;2;Interventi assistenziali;999;Altri assegni e sussidi assistenziali;21/12/2018
1038;1;0;1;2;BANCO SARDEGNA; ;oneri;27/12/2018;1054;0;0;1;Spese correnti;3;Acquisto di beni e servizi;2;Acquisto di servizi;17;Servizi finanziari;2;Oneri per servizio di tesoreria;27/12/2018
1038;2;0;1;2;BANCO SARDEGNA; ;oneri;27/12/2018;1054;0;0;1;Spese correnti;3;Acquisto di beni e servizi;2;Acquisto di servizi;17;Servizi finanziari;2;Oneri per servizio di tesoreria;27/12/2018
1039;1;0;2.639,37;2.639,37;GLOBAL POWER;Z6E2234C3D;ACCONTO Fatt.n. V0/151240  del 01/12/2018 Fattura Energia Elettrica;27/12/2018;1937;1;179;1;Spese correnti;3;Acquisto di beni e servizi;2;Acquisto di servizi;5;Utenze e canoni;4;Energia elettrica;27/12/2018
1040;1;0;1.194,31;1.194,31;GLOBAL POWER;Z6E2234C3D;ACCONTO Fatt.n. V0/151241  del 01/12/2018 Fattura Energia Elettrica;27/12/2018;1937;1;22;1;Spese correnti;3;Acquisto di beni e servizi;2;Acquisto di servizi;5;Utenze e canoni;4;Energia elettrica;27/12/2018
1041;1;0;1;2;BANCO SARDEGNA; ;spese tesoreria;31/12/2018;1054;0;0;1;Spese correnti;3;Acquisto di beni e servizi;2;Acquisto di servizi;17;Servizi finanziari;2;Oneri per servizio di tesoreria;31/12/2018
1041;2;0;1;2;BANCO SARDEGNA; ;spese tesoreria;31/12/2018;1054;0;0;1;Spese correnti;3;Acquisto di beni e servizi;2;Acquisto di servizi;17;Servizi finanziari;2;Oneri per servizio di tesoreria;31/12/2018
1042;1;0;353,46;353,46;BANCO SARDEGNA; ;spese tesoreria;31/12/2018;1054;0;0;1;Spese correnti;3;Acquisto di beni e servizi;2;Acquisto di servizi;17;Servizi finanziari;2;Oneri per servizio di tesoreria;31/12/2018
